Workbook

Sheet Start
A1: Main menu
K9: 2015-10-07 | L9: Modellen er under forandring, da den fremover kun skal behandle biomasserne hen til lågen. Der tilføjes en model der behandler biomassen på anlægget og en der håndterer biomasen efter afgasning

Sheet Straw
A1: Entry for straw
N2: Facility | T2: Entries for decentral briquetting | AG2: 2
A3: Yield | H3: Storage | N3: Pretreatment, facility | AG3: 1
A4: Yield | C4: =CultivatedArea*Yieldperha -> 676 | D4: ton | H4: Yield as bales | I4: =IF(AG13=1,StrawYield/DensityBigBale,(IF(AG13=2,StrawYield/Normer!M29,StrawYield/Normer!M31))) -> 2812.16 | J4: m3 | N4: Choose either extruding, briquetting or none | AG4: TRUE
A5: Cultivated area | C5: 200 | D5: ha. | T5: Distance to briquetter, km | V5: 17 | W5: km | AG5: 1
A6: Yield per hectare | C6: 3.38 | D6: ton/ha. | N6: Capacity | O6: =IF($AG$18=TRUE,Ex_kap,"") ->  | Q6: ton/yr
A7: Dry matter | C7: 0.89 | H7: Prices for main buildings can be changed in tabels | N7: Used capacity for straw | O7: =IF($AG$18=TRUE,StrawYield/O6,"") ->  | P7: =IF(AG18=TRUE,I27/Ex_kap*100,"") ->  | T7: Loading/unloading - briquettes | AG7: 2 | AI7: 1
A8: Organic matter - VS/total | C8: =0.86 -> 0.86 | H8: Open barn | I8: =-Tabels!C33 -> -1001500 | J8: kr/5000m3 | N8: Total used capacity | O8: 0.8 | P8: 48 | T8: Telescopic loader | V8: =BrLoadCost -> -700 | W8: kr./hr | AG8: 6
H9: Barn, concrete floor | I9: =-Tabels!C34 -> -1816500 | J9: kr/5000m3 | N9: Yearly costs | O9: =Ex_payment -> -822940.7868 | Q9: kr/yr | T9: Loading speed | V9: =Normer!I23 -> 0.6 | W9: min/ton | AG9: 3
H10: Barn, gravel floor | I10: =-Tabels!C35 -> -1391500 | J10: kr/5000m3 | N10: Cost covered by straw | O10: =IF($AG$18=TRUE,(O9/O8)*O7,"") ->  | Q10: kr/yr | AG10: 3 | AK10: TRUE
A11: Field expenses | H11: POMI Tube wrap | I11: -30 | J11: kr/bale | N11: Cost covered by straw | O11: =IF($AG$18=TRUE,O10/I27,0) -> 0 | Q11: kr/ton | AG11: 3
H12: Rick/stack (labour not incl.) | I12: =Tabels!D45 -> -11.4 | J12: kr/bale | T12: Decentral pretreatment | AG12: 1
A13: Tedding & Raking | C13: =IF(AK10,-160*CultivatedArea/StrawYield,0) -> -47.33727811 | D13: kr./ton | T13: Capacity | V13: =BrKap -> 5800 | W13: ton/yr | AG13: 3
A14: Bale type | C14: =VLOOKUP(AG13,Tabels!K15:N17,4)/1000 -> 0.9 | D14: ton | H14: Skal have indbygget det sidste nye med haybuster og ensilering af våd halm | N14: Capacity | O14: =IF($AG$19=TRUE,BrKap,"") ->  | Q14: ton/yr | T14: %-usage for straw from this farm | V14: =StrawYield/PresserKap*100 -> 11.65517241 | W14: %
A15: Baling | C15: =-78*Strawbaleweight -> -70.2 | D15: kr./ton | H15: Storage at farm | N15: Used capacity for straw | O15: =IF($AG$19=TRUE,StrawYield/O14,"") ->  | P15: =IF(AG26=TRUE,I35/Ex_kap*100,"") ->  | T15: %-usage in total | V15: 80 | W15: % | AG15: 2
N16: Total used capacity | O16: 0.8 | P16: 48 | T16: Yearly costs | V16: =Br_Payment -> -785398.3642 | W16: kr./yr | AG16: 6
N17: Yearly costs | O17: =Br_Payment -> -785398.3642 | Q17: kr/yr | T17: Cost covered by straw | V17: =(V16/V15)*V14 -> -114424.4168 | W17: kr./yr | AG17: 3
A18: Transport to farmer/barn | H18: =VLOOKUP(AG8,Storage,2) -> No storage | I18: =IF(AG13=1,VLOOKUP(AG8,Storage,4),(IF(AG13=2,VLOOKUP(AG8,Storage,5),VLOOKUP(AG8,Storage,7)))) -> 0 | J18: kr/ton | N18: Cost covered by straw | O18: =IF($AG$19=TRUE,(O17/O16)*O15,"") ->  | Q18: kr/yr | T18: Cost covered by straw | V18: =V17/StrawYield -> -169.2668888 | W18: kr./ton | AG18: FALSE
A19: Distance | C19: 2 | D19: km | N19: Cost covered by straw | O19: =IF($AG$19=TRUE,O18/I27,0) -> 0 | Q19: kr/ton | AG19: FALSE
A20: Tractor equipped with front loader & 2 bale trailers | C20: =Normer!TractorFrontWagon -> -675 | D20: kr./hr | H20: =IF(AI7=2,"Note: Briquettes can be stored in barn for bales","") ->  | T20: Transport videre til anlæg
A21: Bale capacity | C21: =Normer!F_kapacitet_baller_1mand -> 24 | D21: bales/load | N21: Storage of bales at facility | T21: Distance, km | V21: 10 | W21: km
A22: Capacity in tonnes | C22: =BaleCapacity*Strawbaleweight -> 21.6 | D22: ton/load | H22: Storage period at farm | T22: =VLOOKUP(AG7,Tabels!K8:N10,2) -> Large dump truck | V22: =VLOOKUP(AG7,Tabels!$K$8:$N$10,3) -> -650 | W22: kr./hr
A23: Loading rate, field | C23: =Loading_field/Yieldperha -> 2.662721893 | D23: min/ton | H23: Storage loss calculation | T23: Capacitet, m3/load | V23: =VLOOKUP(AG7,Tabels!$K$8:$N$10,4) -> 48 | W23: m3/load
H24: Months until delievery | I24: 5 | N24: =VLOOKUP(AG16,Storage,2) -> No storage | O24: =IF(AG8=1,VLOOKUP(AG16,Storage,4),VLOOKUP(AG16,Storage,5)) -> 0 | P24: kr/ton | T24: Capacitet, ton/load | V24: =V23*DensBr -> 21.6 | W24: ton/load
A25: Farm Loading | H25: Storage loss per month | I25: 0.005 | N25: Months until delievery | O25: 3
H26: Storage loss | I26: =IF(AG8=6,"No storage",StrawYield*(1-POWER((1-I25),I24))) -> No storage | J26: =IF(AG8=6,"","ton") ->  | N26: Storage loss per month | O26: 0.005
A27: =VLOOKUP(AG7,Tabels!K4:N5,2) -> Telescopic loader | C27: =VLOOKUP(AG7,Tabels!K4:M5,3) -> -700 | D27: kr./hr | H27: Remaining yield | I27: =IF(AG8=6,StrawYield,StrawYield*POWER(1-I25,I24)) -> 676 | J27: ton | N27: Storage loss | O27: =IF(AG16=6,"No storage",I27*(1-POWER((1-O26),O25))) -> No storage | P27: ton | Q27: =IF(AG16=6,"","ton") -> 
A28: =VLOOKUP(AG7,Tabels!K4:P5,5) -> Loading speed | C28: =VLOOKUP(AG7,Tabels!K4:P6,6) -> 0.82 | D28: min/ton | N28: Remaining yield | O28: =IF(AG16=6,I27,I27*POWER(1-O26,O25)) -> 676 | P28: ton | Q28: ton | T28: Storage of bales at decentral
N30: Storage of briquettes at facility
A31: Transport of bales to facility or decentral storage | T31: =VLOOKUP(AG10,Storage,2) -> Barn, gravel floor | U31: =IF(AG8=1,VLOOKUP(AG10,Storage,4),VLOOKUP(AG10,Storage,5)) -> -209.921247 | V31: kr/ton
H32: Haybuster og ensilering af halm | T32: Months until delievery | U32: 3
A33: Distance from farm to facility | C33: 5 | D33: km | I33: =136*Normer!X5+(1400/100) -> 95.6 | J33: kr/ton | N33: =VLOOKUP(AG17,Tabels!$H$42:$J$44,2) -> No storage | O33: =VLOOKUP(AG17,Tabels!$H$42:$J$44,3) -> 0 | P33: kr/ton | T33: Storage loss per month | U33: 0.005
A34: =VLOOKUP(AG3,Tabels!K12:M13,2) -> Truck & 2 trailers | C34: =VLOOKUP(AG3,Tabels!K12:M13,3) -> -675 | D34: kr./time | H34: Haybuster drives ved hjælp af traktor. Der bruges 136 kWh/ton tør halm | N34: Months until delievery | O34: 1 | T34: Storage loss | U34: =IF(AG10=6,"No storage",StrawYield*(1-POWER((1-U33),U32))) -> 10.0893845 | V34: =IF(AG10=6,"","ton") -> ton
A35: Bale capacity | C35: =VLOOKUP(AG13,Tabels!K15:O17,5) -> 24 | D35: bales/load | H35: Hvis den blev drevet af elmotor ville energiforbruget være 1/3 (45 kwh/t) | N35: Storage loss per month | O35: 0.001 | T35: Remaining yield after storage | U35: =IF(AG10=3,StrawYield,StrawYield*POWER(1-U33,U32)) -> 676 | V35: ton
A36: Capacity in tonnes | C36: =VLOOKUP(AG13,Tabels!K15:O17,4)*TransBaleCap/1000 -> 21.6 | D36: ton/load | H36: Kilde: Møller i taskforce rapport fra 2016 | N36: Storage loss | O36: =IF(AG17=3,"No storage",O28*(1-POWER((1-O35),O34))) -> No storage | P36: ton | Q36: =IF(AG17=6,"","ton") -> ton
A37: Driving speed, main road | C37: =VLOOKUP(AG3,Tabels!K12:P13,6) -> 51.5 | D37: km/hr | N37: Remaining yield after storage | O37: =IF(AG17=3,O28,O28*POWER(1-O35,O34)) -> 676 | P37: tonnes | Q37: ton | T37: Storage of briquettes at decentral
H38: Rådden halm derimod ligger omkring 250 /90 dage
A40: Facility loading | T40: =VLOOKUP(AG11,Tabels!$H$42:$J$44,2) -> No storage | U40: =VLOOKUP(AG11,Tabels!$H$42:$J$44,3) -> 0 | V40: kr/ton
T41: Months until delievery | U41: 3
A42: =VLOOKUP(AG2,Tabels!K4:M7,2) -> Telescopic loader | C42: =VLOOKUP(AG2,Tabels!K4:M7,3) -> -700 | D42: kr./hr | T42: Storage loss per month | U42: 0.001
A43: =VLOOKUP(AG2,Tabels!K4:P5,5) -> Loading speed | C43: =VLOOKUP(AG2,Tabels!K4:P7,6) -> 0.82 | D43: min/ton | T43: Storage loss | U43: =IF(AG11=3,"No storage",U35*(1-POWER((1-U42),U41))) -> No storage | V43: =IF(AG11=3,"","ton") -> 
T44: Remaining yield after storage | U44: =IF(AG11=3,U35,U35*POWER(1-U42,U41)) -> 676 | V44: ton
E45: =IF(AG2=4,"Loading costs is covered by plant construction costs","") -> 
T46: Storage of briquettes at facility
T49: =VLOOKUP(AG12,Tabels!$H$42:$J$44,2) -> Barn, concrete floor | U49: =VLOOKUP(AG12,Tabels!$H$42:$J$44,3) -> -117.4711127 | V49: kr/ton
T50: Months until delievery | U50: 3
T51: Storage loss per month | U51: 0.001
T52: Storage loss | U52: =IF(AG12=3,"No storage",U44*(1-POWER((1-U51),U50))) -> 2.025972676 | V52: =IF(AG12=3,"","ton") -> ton
T53: Remaining yield after storage | U53: =IF(AG12=3,U44,U44*POWER(1-U51,U50)) -> 673.9740273 | V53: ton

Sheet Rape straw
A1: Entry for rape straw | M1: Facility | AA1: 1 | AB1: FALSE | AJ1: 1 | AR1: 1
AA2: 3 | AB2: FALSE | AR2: 1
A3: =Straw!A3 -> Yield | G3: =Straw!H3 -> Storage | M3: Pretreatment | AA3: 6 | AR3: 1
A4: =Straw!A4 -> Yield | C4: =C5*C6 -> 650 | D4: ton | G4: =A4 -> Yield | H4: =RapeYield -> 650 | I4: ton | M4: Choose either extruding, briquetting or none | AR4: 2
A5: =Straw!A5 -> Cultivated area | C5: 200 | D5: ha. | G5: =Straw!H4 -> Yield as bales | H5: =H4/C18 -> 4062.5 | I5: m3 | AJ5: 2 | AR5: 1
A6: =Straw!A6 -> Yield per hectare | C6: 3.25 | D6: ton/ha. | G6: Yield as briquettes | H6: =H4/DensBr -> 1444.444444 | I6: m3 | M6: Capacity | N6: =IF(AB1=TRUE,Ex_kap,"") ->  | P6: ton/yr | AR6: 1
A7: =Straw!A7 -> Dry matter | C7: 0.89 | M7: Used capacity for straw | N7: =IF($AG$18=TRUE,StrawYield/N6,"") ->  | O7: =IF(AB1=TRUE,H4/N6,"") ->  | AR7: 2
A8: =Straw!A8 -> Organic matter - VS/total | C8: 0.816 | G8: =Straw!H7 -> Prices for main buildings can be changed in tabels | H8: Cost | M8: Total used capacity | N8: =IF($AG$18=TRUE,StrawYield/N7,"") ->  | O8: 0.8 | Z8: 1 | AR8: 1
A9: Methane potential | C9: =MethaneRape -> 310 | D9: L CH4/kg VS | G9: =Straw!H8 -> Open barn | H9: =Straw!I8 -> -1001500 | I9: =Straw!J8 -> kr/5000m3 | M9: Yearly costs | N9: =IF($AG$18=TRUE,StrawYield/N8,"") ->  | O9: =Ex_payment -> -822940.7868 | P9: kr/yr | Z9: 3 | AR9: 1
G10: =Straw!H9 -> Barn, concrete floor | H10: =Straw!I9 -> -1816500 | I10: =Straw!J9 -> kr/5000m3 | M10: Cost covered by straw | N10: =IF($AG$18=TRUE,(N9/N8)*N7,"") ->  | O10: =IF(AB1=TRUE,(O9/O8)*O7,"") ->  | P10: kr/yr | AK10: TRUE | AR10: 1
A11: =Straw!A11 -> Field expenses | G11: =Straw!H10 -> Barn, gravel floor | H11: =Straw!I10 -> -1391500 | I11: =Straw!J10 -> kr/5000m3 | M11: Cost covered by straw | O11: =IF(AB1=TRUE,O10/H26,0) -> 0 | P11: kr/ton | AR11: 1
A12: Tedding & Raking | C12: =IF(AK10,-160*C5/RapeYield,0) -> -49.23076923 | D12: kr./ton | G12: =Straw!H11 -> POMI Tube wrap | H12: =Straw!I11 -> -30 | I12: =Straw!J11 -> kr/bale | AR12: 1
A13: =Straw!A15 -> Baling | C13: =-78*C17 -> -42.9 | D13: kr./ton | G13: =Straw!H12 -> Rick/stack (labour not incl.) | H13: =Straw!I12 -> -11.4 | I13: =Straw!J12 -> kr/bale | AR13: 3
M14: Capacity | N14: =IF(AB2=TRUE,BrKap,"") ->  | P14: ton/yr | AR14: 2
A15: Bale type | M15: Used capacity for straw | O15: =IF(AB2=TRUE,RapeYield/BrKap,"") -> 
G16: Storage of bales at farm | M16: Total used capacity | O16: 0.8
A17: Weight | C17: =IF(Z8=1,BigBaleWeight,Normer!M28) -> 0.55 | D17: ton | M17: Yearly costs | O17: =Br_Payment -> -785398.3642 | P17: kr/yr
A18: Density | C18: =IF(Z8=1,DensityBigBale,Normer!M29) -> 0.16 | D18: ton/m3 | M18: Cost covered by straw | O18: =IF(AB2=TRUE,(O17/O16)*O15,"") ->  | P18: kr/yr
G19: =VLOOKUP(AA1,Storage,2) -> Open barn | H19: =IF(Z8=1,VLOOKUP(AA1,Storage,4),VLOOKUP(AA1,Storage,5)) -> -193.8146462 | I19: kr/ton | M19: Cost covered by straw | O19: =IF(AB2=TRUE,O18/H26,0) -> 0 | P19: kr/ton | AG19: TRUE
A20: =Straw!A18 -> Transport to farmer/barn
A21: =Straw!A19 -> Distance | C21: 5 | D21: km
A22: =Straw!A20 -> Tractor equipped with front loader & 2 bale trailers | C22: =Normer!TractorFrontWagon -> -675 | D22: kr/hr | G22: Storage loss calculation | M22: Storage of bales at facility
A23: =Straw!A21 -> Bale capacity | C23: =Normer!F_kapacitet_baller_1mand -> 24 | D23: bales/load | G23: Months until delievery | H23: 6
A24: =Straw!A22 -> Capacity in tonnes | C24: =Normer!F_kapacitet_baller_1mand*C17 -> 13.2 | D24: ton | G24: Storage loss per month | H24: 0.08 | I24: 0.005
A25: =Straw!A23 -> Loading rate, field | C25: =Loading_field/C6 -> 2.769230769 | D25: min/ton | G25: Storage loss | H25: =IF(AA1=6,"No storage",RapeYield*(1-POWER((1-H24),H23))) -> 255.8692491 | I25: 0.005 | M25: =VLOOKUP(AA3,Storage,2) -> No storage | O25: =IF(Z8=1,VLOOKUP(AA3,Storage,4),VLOOKUP(AA3,Storage,5)) -> 0 | P25: kr/ton
E26: =3*2+1 -> 7 | G26: Remaining yield after storage | H26: =IF(AA1=6,RapeYield,RapeYield*POWER(1-H24,H23)) -> 394.1307509 | M26: Months until delievery | O26: 6
A27: =Straw!A25 -> Farm Loading | E27: =7*6+5 -> 47 | M27: Storage loss per month | O27: 0.05
E28: =10*9+8 -> 98 | M28: Storage loss | O28: =IF(AA3=6,"No storage",H26*(1-POWER((1-O27),O26))) -> No storage | P28: =IF(AB3=6,"","ton") -> ton
A29: =VLOOKUP(AR2,Tabels!K4:N5,2) -> Tractor & Frontloader | C29: =VLOOKUP(AR2,Tabels!K4:M6,3) -> -675 | D29: kr./hr | E29: =9*8+7 -> 79 | M29: Remaining yield after storage | O29: =IF(AA3=6,H26,H26*POWER(1-O27,O26)) -> 394.1307509 | P29: ton
A30: =VLOOKUP(AR2,Tabels!K4:P5,5) -> Loading speed | C30: =VLOOKUP(AR2,Tabels!K4:P6,6) -> 0.61 | D30: min/ton | E30: =10*9+8 -> 98
M31: Storage of briquettes at facility
A32: Transport to facility
A34: Distance | C34: 5 | D34: km | M34: =IF(AR4=2,VLOOKUP(AA2,Tabels!H42:J44,2),"No storage of briquettes") -> No storage | O34: =IF(AR4=2,VLOOKUP(AA2,Tabels!H42:J44,3),0) -> 0 | P34: kr/ton
A35: =VLOOKUP(AR3,Tabels!K12:M13,2) -> Truck & 2 trailers | C35: =VLOOKUP(AR3,Tabels!K12:M13,3) -> -675 | D35: kr./hr | M35: Months until delievery | O35: 6
A36: Capacity, bales | C36: =VLOOKUP(AR3,Tabels!K12:N13,4) -> 24 | D36: bales/load | M36: Storage loss per month | O36: 0.05
A37: Capacity, tonnes | C37: =C36*C17 -> 13.2 | D37: ton/load | M37: Storage loss | O37: =IF(AA2=3,"No storage",O29*(1-POWER((1-O36),O35))) -> No storage | P37: =IF(AB2=3,"","ton") -> ton
A38: Driving speed | C38: =VLOOKUP(AR3,Tabels!K12:P13,6) -> 51.5 | D38: km/hr | M38: Remaining yield after storage | O38: =IF(AA2=3,O29,O29*POWER(1-O36,O35)) -> 394.1307509 | P38: ton
P39: containers
A40: =Straw!A40 -> Facility loading
A42: =VLOOKUP(AR5,Tabels!K4:N5,2) -> Tractor & Frontloader | C42: =VLOOKUP(AR5,Tabels!K4:M6,3) -> -675 | D42: kr./time | M42: =IF(AR5=4,"Loading costs is covered by plant construction costs","") -> 
A43: =VLOOKUP(AR5,Tabels!K4:P5,5) -> Loading speed | C43: =VLOOKUP(AR5,Tabels!K4:P6,6) -> 0.61 | D43: min/ton

Sheet Meadow grass
A1: Entry for meadow grass/hay
A3: =Straw!A3 -> Yield | F3: Storage (only at facility) | K3: Pretreatment at facility | AG3: 1
A4: =Straw!A4 -> Yield | C4: =C5*C6 -> 66 | D4: ton | F4: Yield as bales | G4: =MeaYield/Rundballevægt -> 235.7142857 | H4: pcs | AG4: FALSE
A5: =Straw!A5 -> Cultivated area | C5: 12 | D5: ha. | AG5: 2
A6: =Straw!A6 -> Yield per hectare | C6: 5.5 | D6: ton/ha. | K6: Capacity | L6: =IF($AG$4=TRUE,Ex_kap,"") ->  | N6: ton/yr | AG6: 1
A7: =Straw!A7 -> Dry matter | C7: 0.8 | D7: % | E7: 0.8 | AG7: 3
A8: =Straw!A8 -> Organic matter - VS/total | C8: =0.85*C7 -> 0.68 | D8: % | K8: Used capacity for meadow grass | M8: =IF(AG4=TRUE,MeaYield/Ex_kap*100,"") ->  | N8: %
A9: Weight bale | C9: =Normer!N32 -> 0.28 | D9: ton/bale | F9: =IF(C7<E7,"Storage without cover is only recommeded if TS>E7","TS> E7: Open storage is an option") -> TS> E7: Open storage is an option | K9: Used for other purposes | M9: 48 | N9: %
F10: Storage costs | G10: =IF(AG7=1,Tabels!C11,IF(AG7=2,Tabels!C12,0)) -> 0 | H10: kr./ton
A11: Metane potential | K11: Extruder, mixer, conveyor | L11: =IF($AG$4=TRUE,Ex_TotalCost,"") ->  | N11: kr.
A12: Metane potential, fine cuttings | C12: =Normer!Y20 -> 250 | D12: L CH4/kg VS | G12: Ikke lagt i resultatark endnu. | K12: Operation & maintainance | M12: =IF($AG$4=TRUE,Ex_OandM,"") ->  | N12: kr./ton
A13: Metane potential, extruded | C13: =Normer!Y21 -> 300 | D13: L CH4/kg VS | F13: Storage loss calculation | K13: Insurance | L13: =IF($AG$4=TRUE,EX_ensurance,"") ->  | N13: kr./yr
F14: Months until used | G14: 6 | H14: months | K14: Expected lifetime | M14: =IF($AG$4=TRUE,10,"") ->  | N14: yr
F15: Storage loss per month | G15: 0.05 | H15: pct | K15: Yearly expenses | L15: =IF($AG$4=TRUE,Ex_payment,"") ->  | N15: kr./yr
A16: Cutting, pressing & transport (tractor & wagon) | F16: Remaining yield after storage | G16: =MeaYield*POWER(1-G15,G14) -> 48.51606478 | H16: ton
A17: Includes transport of approx. 12 km from field to farmer or facility | F17: Storage loss | G17: =MeaYield*(1-POWER((1-G15),G14)) -> 17.48393522 | H17: ton
A18: Type of meadow
F20: Normal range of storage loss, DM range 80-90
A21: Windrowing and bailing device on a | G21: Yearly
A22: =IF(AG3=1,Tabels!C7,Tabels!C8) -> Tractor | C22: =IF(AG3=1,Tabels!D7,Tabels!D8) -> -2067 | D22: kr./ha | F22: POMI tube wrap | G22: 5-10%
F23: Bales under cover | G23: 5-15% | R23: =PMT(0.05,10,1000000) -> -129504.575
F24: Open storage | G24: 10-30%
A25: Transport exceeding 12 km (loading/unloading incl.)
A26: Means of transport
G28: ='Results meadow grass'!E16 -> -66.12922949
A29: Road distance | C29: 15 | D29: km | G29: ='Results meadow grass'!E12 -> -63.90666708
A30: =VLOOKUP(AG5,Tabels!A17:E18,3) -> Tractor & trailer | C30: =VLOOKUP(AG5,Tabels!A17:E18,4) -> -675 | D30: kr./hr
A31: Capacity, bales | C31: =IF(AG5=1,Normer!D19,Normer!D8) -> 27 | D31: Bales/load
A32: Capacity, tonnes | C32: =VLOOKUP(AG5,Tabels!A17:E18,5) -> 7.56 | D32: ton
A33: Driving speed | C33: =VLOOKUP(AG5,Tabels!A17:F18,6) -> 25 | D33: km/hr
A35: Loading equipment
A38: =IF(AG6=1,"Tractor & frontloader",(IF(AG6=2,"Telescopic loader","No reload"))) -> Tractor & frontloader | C38: =IF(AG6=1,Normer!I6,(IF(AG6=2,BrLoadCost,0))) -> -650 | D38: kr./time
A39: Loading speed | C39: =IF(AG6=1,Normer!H10,(IF(AG6=2,BrLoadRoundCap,0))) -> 2.126436782 | D39: min/ton

Sheet Beets
A1: Entry for beets
AF2: 1
A3: Info on biomass | F3: Transport | K3: Storage at facility | AF3: 1
A4: Soil type: | H4: Check lige beregning i gen | P4: Stak er ikke en god idé. For stor risiko for at miste saft. | AF4: 2
F5: Transport from beet lifter to pile of beets | K5: Stored as | P5: Lagring af hele roer i plansilo. Bemærk at roer ikke kan mases. De falder sammen under ensileringsprocessen og densiteten ændres. Færdig ensileret på ca. 10 dage | AF5: 1
A6: Cultivated area | C6: 50 | D6: ha | F6: Distance to pile | H6: 1.5 | I6: km | AF6: 1
A7: Yield | C7: 86 | D7: ton/ha | F7: Tractor & Dumper | H7: =Normer!C24 -> -625 | I7: kr./hr. | K7: Whole beets: | AF7: 2
A8: Yield in tonnes | C8: =C6*C7 -> 4300 | D8: ton | E8: =BeetYield*BeetTS/C6 -> 19.178 | F8: Capacity | H8: =Normer!C25 -> 35 | I8: m3/load | K8: Storage needed | M8: =IF(BeetStorage=2,"",BeetYield/BeetDensity) -> 6142.857143 | N8: m3 | AF8: 3
A9: Dry matter, % | C9: 0.223 | F9: Capacity, ton | H9: =H8*Normer!M40 -> 24.5 | I9: ton/load | K9: Clamp silo 3x50x16 meter | AF9: 1
A10: VS , % | C10: =0.9*C9 -> 0.2007 | F10: Driving Speed | H10: =TractorSpeedField -> 15 | I10: km/hr. | K10: Clamp Silo volume | M10: =IF(BeetStorage=2,"",Tabels!E56) -> 3528 | N10: m3
A11: Methane potential | C11: =Normer!X27 -> 380 | D11: L CH4/kg VS | K11: Clamps needed | M11: =IF(BeetStorage=1,M8/M10,"") -> 1.74117266 | AF11: =VLOOKUP(AF6,'Raw data Beets'!B37:C40,2) -> 2000
F12: Loading from pile | K12: Clamps builded | M12: =IF(BeetStorage=1,CEILING(M11,1),"") -> 2 | AF12: =VLOOKUP(AF7,'Raw data Beets'!B37:C40,2) -> 3000
A13: Cultivation costs | K13: Cost | M13: =IF(BeetStorage=2,"",Tabels!G76) -> -11.37703433 | N13: kr./ton
A14: Maize seeds | C14: =VLOOKUP(BeetSoilType,Roetal,3) -> -1300 | D14: kr./ha
A15: Removal of weeds | C15: =VLOOKUP(BeetSoilType,Roetal,8) -> -2245 | D15: kr./ha | F15: =VLOOKUP(AF4,'Raw data Beets'!A43:D44,2) -> Beetloader with dry clean shovel | H15: =VLOOKUP(AF4,'Raw data Beets'!A43:D44,3) -> -12 | I15: =IF(AF4=1,"kr./hr.","kr./ton") -> kr./ton
A16: Fertilizer, N | C16: =VLOOKUP(BeetSoilType,Roetal,4) -> -1197 | D16: kr./ha | F16: =IF(AF4=1,"Load capacity","") ->  | H16: =IF(AF4=1,'Raw data Beets'!D43,"") ->  | I16: =IF(AF4=1,"min/ton","") ->  | K16: Roepulp:
A17: Fertilizer, P | C17: =VLOOKUP(BeetSoilType,Roetal,5) -> -276 | D17: kr./ha | K17: Storage need | M17: =IF(BeetStorage=1,"",BeetYield/BeetpulpDensity) ->  | N17: m3
A18: Fertilizer, K | C18: =VLOOKUP(BeetSoilType,Roetal,6) -> -1065 | D18: kr./ha | F18: Transport from pile to facility
A19: Manure | C19: No cost | F19: Distance to facility | H19: 0 | I19: km | K19: Number of silos | M19: 2 | N19: pcs | O19: size | P19: =(M19*(VLOOKUP(AF6,'Raw data Beets'!B37:C40,2))) -> 4000
F20: Large Dumper | H20: =L_Dumper -> -675 | I20: kr./hr. | K20: AND
F21: Capacity | H21: =LorryDumpCap -> 55 | I21: m3/load | K21: Number of silos | M21: 0 | N21: pcs | O21: size | P21: =(M21*(VLOOKUP(AF7,'Raw data Beets'!B37:C40,2))) -> 0
A22: Machinery costs | F22: Capacity in tonnes | H22: =H21*Roedensitet -> 38.5 | I22: ton/load
A23: Ploughing | C23: =VLOOKUP(BeetSoilType,Roetal,9) -> -608 | D23: kr./ha | F23: Driving speed | H23: =LorrySpeed -> 51.5 | I23: km/hr. | K23: Storage in total | M23: =(M19*(VLOOKUP(AF6,'Raw data Beets'!B37:C40,2)))+(M21*(VLOOKUP(AF7,'Raw data Beets'!B37:C40,2))) -> 4000 | N23: m3
A24: Harrowing | C24: =VLOOKUP(BeetSoilType,Roetal,10) -> -304 | D24: kr./ha | M24: =IF(BeetStorage=2,(IF(M23>M17,"","More storage needed")),"") -> 
A25: Manure spreding | C25: =VLOOKUP(BeetSoilType,Roetal,11) -> 0 | D25: kr./ha | K25: Cost | M25: =(((M19*(VLOOKUP(AF6,'Raw data Beets'!A37:M40,13)))*P19)+((M21*(VLOOKUP(AF7,'Raw data Beets'!A37:M40,13)))*P21))/M23 -> -39.50333812 | N25: kr/m3 tank
A26: Fertilizer spreading | C26: =VLOOKUP(BeetSoilType,Roetal,12) -> -133 | D26: kr./ha | F26: Cleaning of beets, facility site, before storage | K26: Cost per ton beet | M26: =(M25*M23)/BeetYield -> -36.74729128 | N26: kr/ton
A27: Seeding | C27: =VLOOKUP(BeetSoilType,Roetal,13) -> -523 | D27: kr./ha
A28: Rolling | C28: =VLOOKUP(BeetSoilType,Roetal,14) -> -165 | D28: kr./ha
A29: Spreading pesticide | C29: =VLOOKUP(BeetSoilType,Roetal,15) -> -1290 | D29: kr./ha | F29: =VLOOKUP(BeetClean,'Raw data Beets'!A28:F30,2) -> Elephant beet washer | H29: =VLOOKUP(BeetClean,'Raw data Beets'!A28:F30,3) -> -1120 | I29: kr./hr. | K29: Storage loss silage/pulp
A30: Beet lifting | C30: =VLOOKUP(BeetSoilType,Roetal,16) -> -1613 | D30: kr./ha | F30: Capacity | H30: =VLOOKUP(BeetClean,'Raw data Beets'!A28:F30,4) -> 70 | I30: ton/hr. | K30: Storage loss during ensilation | P30: Storage loss, beets: Losses in organic matter (and weight losses) during storage are higher than energy losses if the beets are used for biogas production. The alcohol content of the silage has a significant higher energy value than the sugars it was produced from.
A31: Irrigation, fix cost | C31: =VLOOKUP(BeetSoilType,Roetal,17) -> 0 | D31: kr./ha | F31: Water usage | H31: =VLOOKUP(BeetClean,'Raw data Beets'!A28:F30,5) -> 50 | I31: L/ton | K31: Estimated loss during storage | P31: Storage loss, normal values
A32: Irrigation, moving of | C32: =VLOOKUP(BeetSoilType,Roetal,18) -> 0 | D32: kr. | F32: Water costs | H32: =VLOOKUP(BeetClean,'Raw data Beets'!A28:F30,6) -> -0.3 | I32: kr./ton | K32: Loss during first month | M32: 0.03 | P32: Pulp
A33: Irrigation water, pr mm, average year | C33: =VLOOKUP(BeetSoilType,Roetal,19) -> 0 | D33: kr. | F33: =IF(BeetClean=2,"Transport, fast pris","") ->  | H33: =IF(BeetClean=2,-750,"") ->  | I33: kr | K33: Months until delievery | M33: 6 | P33: Whole beets
A34: Other tasks related to beets | C34: =VLOOKUP(BeetSoilType,Roetal,20) -> -500 | D34: kr. | F34: Total cost, KWS | H34: =IF(BeetClean=2,((BeetYield/H30*H29)+H33)/BeetYield+H32,"") ->  | I34: kr./ton | K34: Storage loss per following month | M34: 0.005
F35: =IF(BeetClean=1,"Transport trailer for elephant","") -> Transport trailer for elephant | H35: =Normer!C28 -> -500 | I35: kr./hr. | K35: Remaining yield after storage | M35: =(BeetYield*(1-M32))*POWER(1-M34,(M33-1)) -> 4067.762549 | N35: ton
F36: =IF(BeetClean=1,"Transport distance","Only for Elephant") -> Transport distance | H36: 50 | I36: km | K36: Storage loss | M36: =MaWetWeight-(MaWetWeight*(1-M32)*POWER((1-M34),(måned-1))) -> 63.77348414 | N36: ton
F37: =IF(BeetClean=1,"Total transport cost, elephant","") -> Total transport cost, elephant | H37: =IF(BeetClean=1,(H36/Normer!C40)*H35,"") -> -555.5555556 | I37: kr.
F38: =IF(BeetClean=1,"Total cost, elephant","") -> Total cost, elephant | H38: =IF(BeetClean=1,(((BeetYield/H30)*H29)/BeetYield)+H32+(H37/BeetYield),"") -> -16.42919897 | I38: kr./ton
F39: Elephant may also fine cut beets
F41: Preparation of pulp/cutting of beets
F43: Haybuster | H43: -1400 | I43: kr./hr.
F44: (+transport of haybuster if less than 6h work) | H44: 400 | I44: kr./hr.
F45: Capacity (80-100 t/hr.) | H45: 90 | I45: ton/hr.
F46: Cost per ton | H46: =H43/H45 -> -15.55555556 | I46: kr./ton
F48: Betacut | H48: =Normer!S48 -> -19955.07171 | I48: kr/yr
F49: Running costs | H49: =Normer!S49 -> 0.216 | I49: kr/ton
F50: For this amount of beets | H50: =(H48/BeetYield)+H49 -> -4.424714352 | I50: kr/ton
F53: snitning af roer med skovl
F54: Roeskovl easybeets. 2.25 m3 roer eller godt et ton roer.
F55: En rotor i bunden af skovlen renser jord fra. En snegl fører roerne til skæreren
F56: Det tager godt tre minutter
F58: Snitning af roer med haybuster
F59: På Grøngas snittes roer med haybuster og føres med bånd over i lagertanken
F60: Diget maskinstation/Klitgård Agro vasker roerne med elefant og snitter dem i haybuster lige over i tanken
F61: Haybusteren koster 1400 kr/timen og tager 80-100 ton i timen. Der tillægges 400 kr/timen til kørslen, hvis det er mindre et en halv dags arbejde.
F62: Haybuster | G62: =1400/90 -> 15.55555556 | H62: kr/ton
F64: Roer kan knuses med hydrauliske skovle, vertikal mixer og roeknusere (Elefant, Betacut, Ørum)
F65: Ørum Roe Snitteskovl RS-16 rummer 5 ton roer, 90 ton/time, holder sten tilbage, monteres på Volvo 90 eller ligningende stor læsser
F66: Betacut roeknuser (snitter). Stationær. 180 ton/time | I66: (spurgt Leif om priser)

Sheet Maize
A1: Entry for Maize | AB1: Measured | AC1: 2
V2: 1 | AB2: Default
A3: =Beets!A3 -> Info on biomass | F3: Transport further to facility including loading | V3: 2 | AB3: Default
A4: Jordtype: | F4: Means of transport | V4: 2
U5: Majsen sprøjtes direkte over i vogn bag traktor | V5: 1
A6: =Beets!A6 -> Cultivated area | C6: 32 | D6: ha | F6: Road distance | H6: 15 | I6: km | U6: kontroller alle Yield om det er tørstof eller vådvægt
A7: =Beets!A7 -> Yield | C7: 36.9 | D7: ton/ha | F7: Vehicle costs | H7: =VLOOKUP($V$3,'Raw data Maize'!$A$30:$E$31,3) -> -675 | I7: kr./time
A8: =Beets!A8 -> Yield in tonnes | C8: =C6*C7 -> 1180.8 | D8: ton | F8: Driving speed | H8: =VLOOKUP($V$3,'Raw data Maize'!$A$30:$E$31,5) -> 51.5 | I8: km/t
A9: =Beets!A9 -> Dry matter, % | C9: 0.34 | F9: Capacity | H9: =VLOOKUP($V$3,'Raw data Maize'!$A$30:$E$31,4) -> 55 | I9: m3/load | X9: Dmrange | Z9: =IF(C9<=30%,30%,(IF(C9<=35%,35%,IF(C9<=40%,40%,IF(C9<=50%,50%,"FEJL!"))))) -> 0.35
A10: =Beets!A10 -> VS , % | C10: =0.95*C9 -> 0.323 | F10: Volumen, shredded maize | H10: =C8/Normer!M43 -> 3690 | I10: m3
A11: =Beets!A11 -> Methane potential | C11: =[1]Forudsætninger!V31 -> 286 | D11: L CH4/kg VS
A13: =Beets!A13 -> Cultivation costs
A14: =Beets!A14 -> Maize seeds | C14: =VLOOKUP(MaizeAreatype,MaizeRaw,3) -> -1600 | D14: kr./ha | F14: Storage cost silage
A15: =Beets!A15 -> Removal of weeds | C15: =VLOOKUP(MaizeAreatype,MaizeRaw,8) -> -440 | D15: kr./ha | F15: Storage type
A16: =Beets!A16 -> Fertilizer, N | C16: =VLOOKUP(MaizeAreatype,MaizeRaw,4) -> -1077.3 | D16: kr./ha | F16: Estimated total volume, ensiled maize | H16: =MaWetWeight/H50 -> 6819.126819 | I16: m3
A17: =Beets!A17 -> Fertilizer, P | C17: =VLOOKUP(MaizeAreatype,MaizeRaw,5) -> -432 | D17: kr./ha | F17: =IF(V5=1,"Volume clamp silo","Volume pile") -> Volume clamp silo | H17: =H33 -> 2361.652415 | I17: m3
A18: =Beets!A18 -> Fertilizer, K | C18: =VLOOKUP(MaizeAreatype,MaizeRaw,6) -> -755 | D18: kr./ha | F18: Silos/piles needed | H18: =H16/H17 -> 2.887438801
A19: =Beets!A19 -> Manure | D19: kr./kg | F19: Silo, yearly cost/m3 | H19: =VLOOKUP(V5,'Raw data Maize'!A34:E35,4) -> -33.67739692 | I19: kr./m3 silo | U19: 34 kr/m3 er lavt. Jeg har set 230-540 kr/m3 plansilo. Mon dette er per m3 majs?
F20: Cost/ton | H20: =(H16*H19)/MaWetWeight -> -194.4871617 | I20: kr./ton | U20: Majs
C21: =VLOOKUP(MaizeAreatype,MaizeRaw,21) -> -1700
A22: =Beets!A22 -> Machinery costs | F22: Density ensiled maize measured in one pile
A23: =Beets!A23 -> Ploughing | C23: =VLOOKUP(MaizeAreatype,MaizeRaw,10) -> -608 | D23: kr./ha | F23: Lenght of pile/clamp | H23: 45 | I23: m
A24: Spreading manure | C24: =VLOOKUP(MaizeAreatype,MaizeRaw,11) -> 0 | D24: kr./ha | F24: Bottom width | H24: 15.8 | I24: m
A25: Spreading fertilizer | C25: =VLOOKUP(MaizeAreatype,MaizeRaw,12) -> -133 | D25: kr./ha | F25: Top width under dome | H25: 15 | I25: m
A26: ='Raw data Maize'!M3 -> Seed bed harrowing | C26: =VLOOKUP(MaizeAreatype,MaizeRaw,13) -> -152 | D26: kr./ha | F26: Height under dome | H26: 3.2 | I26: m | J26: =(H25^2/(8*H27))+(H27/2) -> 88.050625
A27: Sowing | C27: =VLOOKUP(MaizeAreatype,MaizeRaw,14) -> -475 | D27: kr./ha | F27: Dome height | H27: 0.32 | I27: m | J27: =J26-H27 -> 87.730625
A28: ='Raw data Maize'!O3 -> Rolling | C28: =VLOOKUP(MaizeAreatype,MaizeRaw,15) -> -165 | D28: kr./ha | F28: Area of silage | H28: =(((H24+H25)/2)*H26)+((J26^2*ACOS(J27/J26))-J27*0.5*H25) -> 52.48116478 | I28: m2 | J28: =((J26^2*ACOS(J27/J26))-J27*0.5*H25) -> 3.201164782
A29: ='Raw data Maize'!P3 -> Spread pesticide | C29: =VLOOKUP(MaizeAreatype,MaizeRaw,16) -> -350 | D29: kr./ha | F29: Lenght of slide | H29: 0.8 | I29: m
A30: Fine cut., farm transport, deployment | C30: -1500 | D30: kr./ha | F30: Weight of slide | H30: 8 | I30: ton
A31: ='Raw data Maize'!Q3 -> Irrigation | C31: =VLOOKUP(MaizeAreatype,MaizeRaw,17) -> 0 | D31: kr. | F31: Measured Silage Density in this pile | H31: =H30/(H28*H29) -> 0.1905445514 | I31: ton/m3
A32: ='Raw data Maize'!R3 -> Irrigation, moving of | C32: =VLOOKUP(MaizeAreatype,MaizeRaw,18) -> 0 | D32: kr. | F32: Calculated Silage density in this pile | H32: =((316-(4.7*DMMaize*100)+(5.3*H26)))/1000 -> 0.17316 | I32: ton/m3
A33: ='Raw data Maize'!S3 -> Irrigation pr. ml | C33: =VLOOKUP(MaizeAreatype,MaizeRaw,19) -> 0 | D33: kr. | F33: Total volume in this pile | H33: =H28*H23 -> 2361.652415 | I33: m3
A34: ='Raw data Maize'!T3 -> Other tasks | C34: =VLOOKUP(MaizeAreatype,MaizeRaw,20) -> -500 | D34: kr. | F34: Weight of ensilage in this silo | I34: ton
F36: Storage loss
F37: Estimated loss during storage | U37: Losses influenced by ambient temperature especially during feed out | AC37: v4 | AD37: 15cm | AE37: 23cm
F38: Loss during first month | H38: 0.03 | AC38: 0.3 | AD38: 0.192 | AE38: 0.16
F39: Months until delievery | H39: 6 | AC39: 0.35 | AD39: 0.224 | AE39: 0.176
F40: Storage loss per following month | H40: 0.005 | AC40: 0.4 | AD40: 0.256 | AE40: 0.208
F41: Remaining yield after storage | H41: =(MaWetWeight*(1-H38))*POWER(1-H40,(måned-1)) -> 1117.026516 | I41: ton | AC41: 0.5 | AD41: 0.336 | AE41: 0.272
F42: Storage loss | H42: =MaWetWeight-(MaWetWeight*(1-H38)*POWER((1-H40),(måned-1))) -> 63.77348414 | I42: ton
F44: Loss during feedout
F45: Silage Density
F46: Removal rate, choose the nearest
F48: Used dry matter in calculation of loss | H48: =IF(DMMaize<=25%,"Too lowDM",IF(DMMaize<=30%,30%,(IF(DMMaize<=35%,35%,IF(DMMaize<=40%,40%,IF(DMMaize<=55%,50%,"Too high DM")))))) -> 0.35
F49: Miminum density (for less than 3% loss) | H49: =IF(V4=1,VLOOKUP(H48,AC38:AE41,2),VLOOKUP(H48,AC38:AE41,3)) -> 0.176 | I49: ton/m3
F50: Density of silage | H50: =IF(AC1=1,H31,H32) -> 0.17316 | I50: ton/m3
F51: Will loss be less than 3% during feedout | H51: =IF(AND(H50>H49,DMMaize>28%,DMMaize<55%),"yes","no, increase density") -> no, increase density
F54: Guidelines for "normal" storage losses for pile and clamp
F55: Storage loss vary a lot and depends very much on dry matter percentage, silage density, and removal rate. Even if best practize is applied and the farm focuses on the lowest possible loss, variations still exisist.
F56: Landbrugsinfo, Kvæginfo 2352, 2013: Storage loss at 10 farms from 2009-2011 was followed. The avarage %TS loss for maize was 4-5 %. The lowest loss was 1% for all three years for one farm. The highest observed loss was 12%
F57: The storage loss was calculated as diffrence in harvested and ready for feed

Sheet Ley
A1: Ley grass, 4 cuts a year, 2 years in a row | F1: I græsproduktion til kvæg bliver føste slæt (ca. 40% af den total produktion) ofte ensileret i stak og dernæst græsser kvæget eller der wrappes. Det skyldes at Det koster det samme per hektar at høste, mens udbyttet per hektar er langt højere ved første slæt end de efterfølgende slæt
V2: 1
A3: =Beets!A3 -> Info on biomass | F3: Clamp silo or bailing? | V3: 1
A4: =Beets!A4 -> Soil type: | V4: 2 | AG4: TRUE
A5: =Beets!A5 -> 0 | F5: Recommended storage | H5: =IF(C9>80%,"Bailing",(IF(C9>60%,"Wrap Bales",(IF(C9>45%,"Bale silage",IF(C9>30%,"Clamp silo","Continue drying")))))) -> Continue drying | V5: 1
A6: =Beets!A6 -> Cultivated area | C6: 50 | D6: ha | V6: 1
A7: =Beets!A7 -> Yield | C7: 30 | D7: ton FM/ha | F7: Clamp silo, transport and field work | H7: Optimal DM 30-35% | K7: Storage at farmer | P7: Storage loss | V7: 3
A8: =Beets!A8 -> Yield in tonnes | C8: =C6*C7 -> 1500 | D8: ton FM | F8: Fine cutting, making silage | H8: =VLOOKUP(Græsjordtype,Græstal,14) -> -2812 | I8: kr./ha | K8: Volumen grass silage | M8: =(Leyyield*1000*C9)/DensCalcGrass -> 1185.042135 | N8: m3 | P8: Estimated loss during storage | U8: storage | V8: 2
A9: =Beets!A9 -> Dry matter, % | C9: 0.18 | F9: Means of transport | K9: Volume, clamp silo | M9: ='Raw data Ley'!F35 -> 2160 | N9: m3 | P9: Months until delievery | R9: 6 | V9: FALSE
A10: KgTS | C10: =Leyyield*C9*1000 -> 270000 | D10: kgTS | K10: Number of silos | M10: =M8/M9 -> 0.548630618 | P10: Loss during the first month | R10: 0.03 | S10: restore | V10: 4
F11: Road distance | H11: 15 | I11: km | P11: Loss per following month | R11: 0.005 | S11: restore | V11: FALSE
A12: =Beets!A10 -> VS , % | C12: =0.9*C9 -> 0.162 | D12: =0.9*C9 -> 0.162 | F12: =VLOOKUP(V3,'Raw data Ley'!B26:F27,2) -> Tractor dumper | H12: =VLOOKUP(V3,'Raw data Ley'!B26:F27,3) -> -625 | I12: kr./time | K12: Cost Silo | M12: ='Raw data Ley'!F54 -> -0.1293351576 | N12: kr./KgTS | P12: Storage loss | R12: =Leyyield-(Leyyield*(1-R10)*POWER((1-R11),(LeyLossPeriod-1))) -> 81.01306421 | S12: ton | V12: 1
A13: Average methane potential | D13: L CH4/kg VS | F13: Driving speed | H13: =VLOOKUP(V3,'Raw data Ley'!B26:F27,4) -> 35 | I13: km/t | P13: Remaining yield | R13: =(Leyyield*(1-R10))*POWER(1-R11,(LeyLossPeriod-1)) -> 1418.986936 | S13: ton | V13: 2
F14: Capacity | H14: =VLOOKUP(V3,'Raw data Ley'!$B$26:$F$27,5) -> 25 | I14: m3/læs
A15: =Beets!A13 -> Cultivation costs | F15: Capacity | H15: =DensGrass1*H14 -> 7.5 | I15: ton | M15: =IF(V9=TRUE,Ex_payment,0) -> 0 | N15: kr/yr | P15: Guidelines for "normal" storage losses for pile and clamp
A16: Grass Seeds 1. year | C16: =VLOOKUP(Græsjordtype,'Raw data Ley'!B17:S22,3) -> -342 | D16: kr./ha | F16: Volumen, grass (transport) | H16: =Leyyield/DensGrass1 -> 5000 | I16: m3 | K16: % usage for grass | M16: =IF(V9=FALSE,0,Leyyield/Ex_kap*100) -> 0 | N16: % | P16: Storage loss vary a lot and depends very much on dry matter percentage, silage density, and removal rate. Even if best practize is applied and the farm focuses on the lowest possible loss, variations still exisist.
A17: Gras Seeds 2. year | C17: 0 | D17: kr./ha | K17: % other usage | M17: 80 | N17: % | P17: Landbrugsinfo, Kvæginfo 2352, 2013: Storage loss at 10 farms from 2009-2011 was followed. The avarage %TS loss for grass was 4%. The lowest loss was 1-1.5% for all three years for one farm. The highest observed loss was 12%
A18: Fertilizer, N | C18: =VLOOKUP(Græsjordtype,'Raw data Ley'!B17:S22,4) -> -1846 | D18: kr./ha | P18: The storage loss was calculated as diffrence in harvested and ready for feed
A19: Fertilizer, P | C19: =VLOOKUP(Græsjordtype,'Raw data Ley'!B17:S22,5) -> -432 | D19: kr./ha
A20: Fertilizer, K | C20: =VLOOKUP(Græsjordtype,'Raw data Ley'!B17:S22,6) -> -1572 | D20: kr./ha | F20: Dry bailing, transport and field work | H20: Optimal DM 80-85%
A21: Manure | B21: no costs
F22: Cutting | H22: -559 | I22: kr./ha | K22: Storage | P22: Storage loss
A24: =Beets!A22 -> Machinery costs | K24: Yield as bales | M24: =$C$7/Rundballevægt -> 107.1428571 | N24: pcs | P24: Storage loss calculation
A25: Spreading manure | C25: =VLOOKUP(Græsjordtype,Græstal,9) -> 0 | D25: kr./ha | F25: Bailing | H25: -50 | I25: Kr./bale | P25: Months until delievery | R25: 6
A26: Spreading fertilizer | C26: =VLOOKUP(Græsjordtype,'Raw data Ley'!B17:S22,10) -> -399 | D26: kr./ha | F26: Bale weight | H26: =Normer!M32 -> 0.28 | I26: ton/bale | K26: Storage at farmer | P26: Storage loss per month | R26: 0.005 | S26: restore | W26: =1/18*100 -> 5.555555556
A27: Sowing | C27: =VLOOKUP(Græsjordtype,'Raw data Ley'!B17:S22,11) -> -190 | D27: kr./ha | P27: Storage loss | R27: =Leyyield*(1-POWER((1-R26),R25)) -> 44.44123597 | S27: ton | W27: =5.56*0.18 -> 1.0008
A28: Mowing | C28: =VLOOKUP(Græsjordtype,'Raw data Ley'!B17:S22,12) -> -1100 | D28: kr./ha | F28: Loading | K28: Storage costs at farmer | M28: =VLOOKUP(V6,TableStoreLey,3) -> -104 | N28: kr./ton | P28: Remaining yield | R28: =Leyyield*POWER(1-R26,R25) -> 1455.558764 | S28: ton
A29: Raking | C29: =VLOOKUP(Græsjordtype,'Raw data Ley'!B17:S22,13) -> -700 | D29: kr./ha | W29: =ClampGrass/5.56 -> -0.02326171899
A30: =Beets!A31 -> Irrigation, fix cost | C30: =VLOOKUP(Græsjordtype,'Raw data Ley'!B17:S22,15) -> 0 | D30: kr. | K30: Storage at facility | W30: =W29*1000 -> -23.26171899
A31: =Beets!A32 -> Irrigation, moving of | C31: =VLOOKUP(Græsjordtype,'Raw data Ley'!B17:S22,16) -> 0 | D31: kr. | F31: =IF(V5=1,"Tractor & frontloader",(IF(V5=2,"Telescopic loader","No reload"))) -> Tractor & frontloader | H31: =IF(V5=1,Normer!H6,(IF(V5=2,BrLoadCost,0))) -> -650 | I31: kr./time
A32: =Beets!A33 -> Irrigation water, pr mm, average year | C32: =VLOOKUP(Græsjordtype,'Raw data Ley'!B17:S22,17) -> 0 | D32: kr. | F32: Loading speed, field | H32: =IF(V5=1,Normer!H9,(IF(V5=2,BrLoadRoundCap,0))) -> 3.965517241 | I32: min/ton | K32: Storage costs at farmer | M32: =VLOOKUP(V10,TableStoreLey,3) -> 0 | N32: kr./ton
A33: Other tasks | C33: =VLOOKUP(Græsjordtype,'Raw data Ley'!B17:S22,18) -> -500 | D33: kr. | F33: (De)Loading speed, stack | H33: =IF(V5=1,Normer!H10,(IF(V6=2,BrLoadRoundCap,0))) -> 2.126436782 | I33: min/ton
K34: Pretreatment
H35: =IF(V11,188,0) -> 0 | I35: kr/ton
F36: Transport
K37: Pretreatment costs | M37: =IF(V7=2,Br_Payment,(IF(V7=1,Ex_payment,0))) -> 0 | N37: kr/yr
K38: O&M | M38: =IF(V7=2,Normer!T15,(IF(V7=1,Normer!S30,0))) -> 0 | N38: kr./ton
F39: Road distance | H39: 10 | I39: km | K39: % usage for grass | M39: =IF(V7=3,0,Leyyield/Ex_kap*100) -> 0 | N39: %
F40: =VLOOKUP(V4,Tabels!A17:F18,3) -> Tractor & trailer | H40: =VLOOKUP(V4,Tabels!$A$17:$F$18,4) -> -675 | I40: kr./hr | K40: % other usage | M40: 80 | N40: %
F41: Capacity, bales | H41: =IF(V4=1,Normer!$C$19,Normer!$C$8) -> 27 | I41: Bales/load | K41: Tørring?
F42: Capacity, tonnes | H42: =VLOOKUP(V4,TransTableGrass,5) -> 7.56 | I42: ton
F43: Driving speed | H43: =VLOOKUP(V4,TransTableGrass,6) -> 25 | I43: km/hr
F46: Wrap, transport & field work Optimal DM 35-50% | P46: Storage included in field work
F47: Fine cutting, | H47: =LeyCutting -> -559 | I47: Kr./ha
F48: Pressing & wrap | H48: -115 | I48: kr./bale | K48: Transport | P48: Storage loss
F49: Weight per round bale | H49: =Normer!M32 -> 0.28 | I49: ton/bale | P49: Estimated loss during storage
F50: Cost per ton | H50: =H48/H49 -> -410.7142857 | I50: kr./ton | P50: Months until delievery | R50: 6
K51: Road distance | M51: 10 | N51: km | P51: Loss during the first month | R51: 0.02 | S51: restore
F52: Loading | K52: =VLOOKUP(V13,Tabels!A17:F18,3) -> Tractor & trailer | M52: =VLOOKUP(V13,Tabels!$A$17:$F$18,4) -> -675 | N52: kr./hr | P52: Loss per following month | R52: 0.002 | S52: Restore
K53: Capacity, bales | M53: =IF(V13=1,Normer!$C$19,Normer!$C$8) -> 27 | N53: Bales/load | P53: Storage loss | R53: =Leyyield-(Leyyield*(1-R51)*POWER((1-R52),(R50-1))) -> 44.64131748 | S53: ton
K54: Capacity, tonnes | M54: =M53*H49 -> 7.56 | N54: ton | P54: Remaining yield | R54: =(Leyyield*(1-R51))*POWER(1-R52,(R50-1)) -> 1455.358683 | S54: ton
F55: =IF(V12=1,"Tractor & frontloader",(IF(V12=2,"Telescopic loader","No reload"))) -> Tractor & frontloader | H55: =IF(V12=1,Normer!H6,(IF(V12=2,BrLoadCost,0))) -> -650 | I55: kr./time | K55: Driving speed | M55: =VLOOKUP(V13,TransTableGrass,6) -> 25 | N55: km/hr
F56: Loading speed | H56: =IF(V12=1,Normer!H9,(IF(V12=2,BrLoadRoundCap,0))) -> 3.965517241 | I56: min/ton
F57: (De)Loading speed, stack | H57: =IF(V12=1,Normer!H10,(IF(V13=2,BrLoadRoundCap,0))) -> 2.126436782 | I57: min/ton

Sheet Results Ley
B1: Ley
B3: End produkt: | C3: =VLOOKUP(LeyStoragetype,Tabels!K59:N61,4) -> Hay
B6: Yield | C6: =Leyyield -> 1500 | D6: ton
B8: Expected costs
B10: Cultivation & machinery | C10: =((SUM((Ley!C16+Ley!C17)/2,Ley!C18:C20)*Ley!C6)/Ley!C8)+((SUM(Ley!C25:C29)*Ley!C6+SUM(Ley!C30:C33))/Leyyield) -> -214 | D10: kr./ton | F10: ER det ton TS eller ton FM, gå beregninger igennem
B11: Harvest | C11: =IF(LeyStoragetype=1,LeyCutClamp/LeyYieldprHA,(IF(LeyStoragetype=2,(Ley!H22/LeyYieldprHA)+(Ley!H25/Ley!H26),Ley!H47/LeyYieldprHA))) -> -197.2047619 | D11: kr./ton
B12: Loading & Transport | C12: =IF(LeyStoragetype=1,((Ley!H11/Ley!H13*Ley!H12)/Ley!H15)*2,IF(LeyStoragetype=2,(Ley!H31/60*Ley!H32)+(Ley!H31/60*Ley!H33)+(2*((Ley!H39/Ley!H43*Ley!H40)/Ley!H42)),(Ley!H55/60*Ley!H56)+(Ley!H55/60*Ley!H57)+(2*((Ley!M51/Ley!M55*Ley!M52)/Ley!M54)))) -> -137.42474 | D12: kr./ton
B13: Storage | C13: =IF(LeyStoragetype=1,ClampGrass*Ley!C10/Leyyield,(IF(LeyStoragetype=2,Ley!M28+Ley!M32,Ley!H50))) -> -104 | D13: kr./ton
B14: Pretreatment | C14: =IF(Ley!V8=1,(Ley!M15*(Ley!M16/(Ley!M16+Ley!M17))/Leyyield)+(IF(Ley!V9=TRUE,Ex_OandM,0)),(Ley!M37*(Ley!M39/(Ley!M39+Ley!M40))/Leyyield)+Ley!M38) -> 0 | D14: kr./ton | F14: check | H14: Bent Simonsen Maskinstation laver rundballer runde til kvæg til 150-250 kr/balle og wrapballer til 250-300 kr ex levering
B15: Cost in total per ton | C15: =SUM(C10:C14) -> -652.6295019 | D15: kr./ton | H15: Husk at det også indbefatter prisen for græsset
B16: Storage loss | C16: =IF(LeyStoragetype=1,1-(Ley!R13/Leyyield),(IF(LeyStoragetype=2,1-(Ley!R28/Leyyield),1-(Ley!R54/Leyyield)))) -> 0.02962749064
B17: Cost including losses | C17: =C15+(C16*C15) -> -671.9652764 | D17: kr./ton
B18: Cost including losses | C18: =C17/1000*100/Ley!C9 -> -373.3140424 | D18: øre/kgTS | G18: Se efter om priserne er realistiske
B19: Total cost | C19: =C17*StrawYield -> -454248.5268 | D19: kr.
B21: Expected yield (if biogas produced and converted in engine)
B23: Energy yield | C23: =IF(Ley!V8=1,(IF(Ley!V9=TRUE,Tabels!M58,Tabels!M57)),VLOOKUP(LeyPretreat,Tabels!K59:M61,3)) -> 580.608 | D23: kWh/ton
B24: - Electricity | C24: =$C$23*ElEfficience -> 232.2432 | D24: kWh/ton
B25: - Heat | C25: =$C$23*HeatEfficience -> 290.304 | D25: kWh/ton
B26: Income from electricity | C26: =C24*ElCost -> 257.789952 | D26: kr./ton
B27: Income from heat | C27: =C25*HeatCost -> 72.576 | D27: kr./ton
B28: Income per tonne | C28: =C26+C27 -> 330.365952 | D28: kr./ton
B29: Income from energy | C29: =C28*Leyyield -> 495548.928 | D29: kr.
B32: Difference, kr | C32: =C29+C19 -> 41300.40117 | D32: kr.

Sheet Clover max periode
A1: Clover grass BioValue Scenarie max høsteperiode (Torbens slæt), 3-4 cuts a year, 2 years in a row
A2: UNDER REDIGERING | X2: 1
A3: Production of biomass | F3: Harvest cost | L3: Transport of biomass | U3: 1 | X3: 1 | Y3: 2
A5: =Beets!A4 -> Soil type: | G5: Suggested values | J5: My value | L5: Grass transport to press | M5: Suggested values | P5: My value | R5: Press cake "loose" | S5: Include | Y5: Tractor, front mower, forest wagon
A6: =Beets!A5 -> 0 | F6: Tractor, front mower & forage wagon | L6: Lorry Capacity | M6: 55 | N6: m3 | O6: =IF(P6=0,M6,P6) -> 55 | P6: 55 | S6: Suggested values | V6: My value | Y6: High performance mower, forage wagon
A7: Total area | F7: Work width | G7: 3.16 | H7: m | I7: =IF(J7=0,G7,J7) -> 3.16 | L7: Density of crop | M7: =DensGrass1 -> 0.3 | N7: ton/m3 | O7: =IF(P7=0,M7,P7) -> 0.3 | R7: Lorry Capacity | S7: 55 | T7: m3 | U7: =IF(V7=0,S7,V7) -> 55 | Y7: High performance mower, fine cutter
A8: Area to be harvested 3 times | C8: =3000-(429*2) -> 2142 | D8: ha | F8: Effective work width | G8: =I7*0.7 -> 2.212 | H8: m | L8: Ton per load | M8: =O7*O6 -> 16.5 | N8: ton | O8: =IF(P8=0,M8,P8) -> 16.5 | R8: Density of crop | S8: 0.4 | T8: ton/m3 | U8: 0.5
A9: Area to be harvested 4 times | C9: =429*2 -> 858 | D9: ha | F9: Field Speed | G9: 10 | H9: km/t | I9: =IF(J9=0,G9,J9) -> 10 | L9: Rental cost | M9: -675 | N9: kr/hr | O9: -675 | R9: Ton per load | S9: =U8*U7 -> 27.5 | T9: ton | U9: =IF(V9=0,S9,V9) -> 27.5
A10: Yield 1. cuts | C10: 86204 | D10: ton FM | F10: Capacity | G10: =G8*I9/10 -> 2.212 | H10: ha/t | L10: Loading | M10: 15 | N10: min | O10: 15 | R10: Rental cost | S10: =Lorry2trailer -> -675 | T10: kr/hr | U10: -675
A11: Yield 2. cut | C11: 46041 | D11: ton FM | F11: =Normer!L15 -> Tractor w. front mower & wagon | G11: =Normer!M15 -> -1800 | H11: kr/t | I11: -1800 | L11: Extra transport/waiting | M11: 4 | N11: min | O11: 4 | R11: Loading | S11: 15 | T11: min | U11: 15 | Y11: =24+17+13+8 -> 62 | Z11: =Y11-8 -> 54
A12: Yield 3. cut | C12: 46653 | D12: ton FM | F12: Loading to transport wagon | G12: =Normer!H6 -> -650 | H12: kr/t | I12: -650 | L12: Deloading | M12: 10 | N12: min | O12: 10 | R12: Extra transport/waiting | S12: 4 | T12: min | U12: 4
A13: Yield 4. cut, 2 blocks | C13: 5224 | D13: ton FM | F13: In total per cut | G13: =(I11/G10)+(I12/G10) -> -1107.594937 | H13: kr/ha | L13: Average speed | M13: 50 | N13: km/hr | O13: 52 | P13: 52 | R13: Deloading | S13: 10 | T13: min | U13: 10
A14: Total yield | C14: =SUM(C10:C13)/(C8+C9) -> 61.374 | D14: ton FM/ha | F14: In total | G14: =(G13*C18)/CloverYieldprHA -> -59.30128331 | H14: kr/ton | L14: Round trip | M14: =60/O13*2 -> 2.307692308 | N14: min/km | R14: Average speed | S14: 50 | T14: km/hr | U14: 50
A15: Yield in tonnes, 3 cuts | C15: 136286 | D15: ton FM | L15: Extras | M15: 0 | N15: kr | O15: 0 | R15: Round trip | S15: =60/U14*2 -> 2.4 | T15: min/km
A16: Yield in tonnes, 4 cuts | C16: 47836 | D16: ton FM | L16: Basic cost | M16: =O15+(SUM(O10:O12)*O9/60) -> -326.25 | N16: kr | R16: Extras | S16: 0 | T16: kr | U16: =IF(V16=0,S16,V16) -> 0
A17: Number of cuts | C17: =SUM((IF(C10>0,1,0)),(IF(C11>0,1,0)),(IF(C12>0,1,0)),(IF(C13>0,1,0))) -> 4 | F17: High performance mower & forage wagon | L17: Round trip Km cost | M17: =O9/O13*2 -> -25.96153846 | N17: kr/km | R17: Basic cost | S17: =U16+(SUM(U11:U13)*U10/60) -> -326.25 | T17: kr
A18: Average number of cuts | C18: =C9/(C8+C9)*4+(C8/(C8+C9)*3) -> 3.286 | F18: Work width | G18: 13 | H18: m | I18: 13 | L18: Round trip Km cost | M18: =M17/O8 -> -1.573426573 | N18: kr/km/ton | R18: Round trip Km cost | S18: =U10/U14*2 -> -27 | T18: kr/km
A19: Dry matter, fresh | C19: 0.175 | F19: Effective work width | G19: =I18*0.6 -> 7.8 | H19: m | L19: Avarage distance | M19: 10 | N19: km | O19: =IF(P19=0,M19,P19) -> 20 | P19: 20 | R19: Round trip Km cost | S19: =S18/U9 -> -0.9818181818 | T19: kr/km/ton
A20: =Beets!A10 -> VS , % | C20: =0.9*C19 -> 0.1575 | F20: Field Speed | G20: 10 | H20: km/t | I20: 10 | L20: In total | M20: =M18*O19 -> -31.46853147 | N20: kr/ton | R20: Avarage distance | S20: 10 | T20: km | U20: =IF(V20=0,S20,V20) -> 10 | V20: 10
A21: Dry matter, after screw press | C21: 0.6 | F21: Capacity | G21: =G19*I20/10 -> 7.8 | H21: ha/t | R21: In total | S21: =S19*U20 -> -9.818181818 | T21: kr/ton
A22: KgTS | D22: kgTS | F22: High performance mower | G22: =Normer!M16 -> -1800 | H22: kr/t | I22: -1800 | L22: Grass is divided into liquid & press cake | P22: Felt: Inkluder ja/nej | U22: videre transport efter presning
A23: TonTS | D23: TonTS | F23: Forage wagon pick up | L23: Include transport of liquid | R23: Press cake "round bale", tractor
F24: Field speed | G24: 8 | H24: km/t | I24: 8 | R24: Bale pressing | S24: =Normer!M23 -> -75 | T24: kr/bale
F25: Capacity | G25: =G19*I24/10 -> 6.24 | H25: ha/t | L25: Liquid transport | M25: Suggested values | P25: My value | S25: =S24/S26 -> -65.2173913 | T25: kr/ton
A26: Cultivation costs, 3 cuts | F26: Forage wagon pick up | G26: =Normer!M17 -> -1600 | H26: kr/t | I26: -1600 | L26: Lorry Capacity | M26: 34 | N26: m3 | O26: =IF(P26=0,M26,P26) -> 34 | R26: Bale weight | S26: 1.15 | T26: ton
A27: Grass Seeds 1. year | C27: =VLOOKUP(Kløver3jordtype,Clovergrass3cut,3) -> -346.5 | D27: kr./ha | F27: Loading to transport wagon | G27: =Normer!H6 -> -650 | H27: kr/t | I27: -650 | L27: Density | M27: 1 | N27: ton/m3 | O27: =IF(P27=0,M27,P27) -> 0.8 | P27: 0.8 | R27: Tractor | S27: 27 | T27: bales/load
A28: Gras Seeds 2. year | C28: 0 | D28: kr./ha | F28: In total per cut | G28: =(I22/G21)+((I26+I27)/G25) -> -591.3461538 | H28: kr/ha | L28: Ton per load | M28: =O27*O26 -> 27.2 | N28: ton | O28: 27.2 | R28: Ton per load | S28: =S27*S26 -> 31.05 | T28: ton | U28: =IF(V28=0,S28,V28) -> 31.05
A29: Fertilizer, N | C29: =VLOOKUP(Kløver3jordtype,Clovergrass3cut,4) -> -1789.2 | D29: kr./ha | F29: In total | G29: =(G28*C18)/CloverYieldprHA -> -31.66102033 | H29: kr/ton | L29: Rental cost | M29: -850 | N29: kr/hr | O29: -850 | R29: Rental cost | S29: -550 | T29: kr/hr | U29: -550
A30: Fertilizer, P | C30: =VLOOKUP(Kløver3jordtype,Clovergrass3cut,5) -> -420 | D30: kr./ha | L30: Loading | M30: 15 | N30: min | O30: 15 | R30: Loading | S30: 15 | T30: min | U30: 15
A31: Fertilizer, K | C31: =VLOOKUP(Kløver3jordtype,Clovergrass3cut,6) -> -1280 | D31: kr./ha | L31: Extra transport/waiting | M31: 4 | N31: min | O31: 4 | R31: Extra transport/waiting | S31: 4 | T31: min | U31: 4
A32: Manure | B32: no costs | F32: High performance mower & fine cutter | L32: Deloading | M32: 10 | N32: min | O32: 10 | R32: Deloading | S32: 10 | T32: min | U32: 10
A33: Spreading manure | C33: =VLOOKUP(Kløver3jordtype,Clovergrass3cut,9) -> 0 | D33: kr./ha | F33: Work width | G33: 13 | H33: m | I33: 13 | L33: Average speed | M33: 50 | N33: km/hr | O33: 50 | R33: Average speed | S33: 25 | T33: km/hr | U33: 25
A34: Spreading fertilizer | C34: =VLOOKUP(Kløver3jordtype,Clovergrass3cut,10) -> -399 | D34: kr./ha | F34: Effective work width | G34: =I33*0.6 -> 7.8 | H34: m | L34: Round trip | M34: =60/O33*2 -> 2.4 | N34: min/km | R34: Round trip | S34: =60/U33*2 -> 4.8 | T34: min/km
A35: Sowing | C35: =VLOOKUP(Kløver3jordtype,Clovergrass3cut,11) -> -190 | D35: kr./ha | F35: Field Speed | G35: 10 | H35: km/t | I35: 10 | L35: Extras | M35: 0 | N35: kr | O35: =IF(P35=0,M35,P35) -> 0 | R35: Extras | S35: 0 | T35: kr | U35: =IF(V35=0,S35,V35) -> 0
A36: =Beets!A31 -> Irrigation, fix cost | C36: =VLOOKUP(Kløver3jordtype,Clovergrass3cut,15) -> 0 | D36: kr. | F36: Capacity | G36: =G34*I35/10 -> 7.8 | H36: ha/t | L36: Basic cost | M36: =O35+(SUM(O30:O32)*O29/60) -> -410.8333333 | N36: kr | R36: Basic cost | S36: =U35+(SUM(U30:U32)*U29/60) -> -265.8333333 | T36: kr
A37: =Beets!A32 -> Irrigation, moving of | C37: =VLOOKUP(Kløver3jordtype,Clovergrass3cut,16) -> 0 | D37: kr. | F37: High performance mower | G37: =Normer!M16 -> -1800 | H37: kr/t | I37: -1800 | L37: Round trip Km cost | M37: =O29/O33*2 -> -34 | N37: kr/km | R37: Round trip Km cost | S37: =U29/U33*2 -> -44 | T37: kr/km
A38: =Beets!A33 -> Irrigation water, pr mm, average year | C38: =VLOOKUP(Kløver3jordtype,Clovergrass3cut,17) -> 0 | D38: kr. | F38: Fine cutter & loading | L38: Round trip Km cost | M38: =M37/O28 -> -1.25 | N38: kr/km/ton | R38: Round trip Km cost | S38: =S37/U28 -> -1.417069243 | T38: kr/km/ton
A39: Other tasks | C39: =VLOOKUP(Kløver3jordtype,Clovergrass3cut,18) -> -500 | D39: kr. | F39: Fine cutter & loading | G39: -675 | H39: kr/ha | I39: -675 | L39: Avarage distance | M39: 10 | N39: km | O39: =IF(P39=0,M39,P39) -> 1 | P39: 1 | R39: Avarage distance | S39: 10 | T39: km | U39: =IF(V39=0,S39,V39) -> 10
A40: In total | C40: =(SUM(C36:C39)+(SUM(C27:C31)*C8)+(SUM(C33:C35)*C8))/Clo3Yield -> -69.54644938 | D40: kr./ton | F40: In total per cut | G40: =(I37/G36)+I39 -> -905.7692308 | H40: kr/ha | L40: In total | M40: =M38*O39 -> -1.25 | N40: kr/ton | R40: In total | S40: =S38*U39 -> -14.17069243 | T40: kr/ton
F41: In total | G41: =(G40*C18)/CloverYieldprHA -> -48.4954165 | H41: kr/ton | L41: Expected yield 60% | M41: =0.6*Cloveryield -> 81771.6 | N41: ton liquid
A42: Cultivation costs, 4 cuts | R42: Press cake "round bale", lorry
A43: Grass Seeds 1. year | C43: =VLOOKUP(Kløver3jordtype,Kløvertal,3) -> -840 | D43: kr./ha | R43: Bale pressing+wrap | S43: =Normer!M23 -> -75 | T43: kr/bale
A44: Gras Seeds 2. year | C44: 0 | D44: kr./ha | S44: =S43/S45 -> -65.2173913 | T44: kr/ton
A45: Fertilizer, N | C45: =VLOOKUP(Kløver3jordtype,Kløvertal,4) -> -1789.2 | D45: kr./ha | R45: Bale weight | S45: 1.15 | T45: ton
A46: Fertilizer, P | C46: =VLOOKUP(Kløver3jordtype,Kløvertal,5) -> -432 | D46: kr./ha | R46: Lorry | S46: 40 | T46: bales/load
A47: Fertilizer, K | C47: =VLOOKUP(Kløver3jordtype,Kløvertal,6) -> -1310 | D47: kr./ha | R47: Ton per load | S47: =S46*S45 -> 46 | T47: ton | U47: =IF(V47=0,S47,V47) -> 46
A48: Manure | B48: no costs | R48: Rental cost | S48: =Lorry2trailer -> -675 | T48: kr/hr | U48: -675
A49: Spreading manure | C49: =VLOOKUP(Kløver3jordtype,Kløvertal,9) -> 0 | D49: kr./ha | R49: Loading | S49: 15 | T49: min | U49: 15
A50: Spreading fertilizer | C50: =VLOOKUP(Kløver3jordtype,Kløvertal,10) -> -399 | D50: kr./ha | R50: Extra transport/waiting | S50: 4 | T50: min | U50: 4
A51: Sowing | C51: =VLOOKUP(Kløver3jordtype,Kløvertal,11) -> -190 | D51: kr./ha | R51: Deloading | S51: 10 | T51: min | U51: 10
A52: =A36 -> Irrigation, fix cost | C52: =VLOOKUP(Kløver3jordtype,Kløvertal,15) -> 0 | D52: kr. | R52: Average speed | S52: 50 | T52: km/hr | U52: 50
A53: Irrigation, moving of | C53: =VLOOKUP(Kløver3jordtype,Kløvertal,16) -> 0 | D53: kr. | R53: Round trip | S53: =60/U52*2 -> 2.4 | T53: min/km
A54: Irrigation water, pr mm, average year | C54: =VLOOKUP(Kløver3jordtype,Kløvertal,17) -> 0 | D54: kr. | R54: Extras | S54: 0 | T54: kr | U54: =IF(V54=0,S54,V54) -> 0
A55: Other tasks | C55: =VLOOKUP(Kløver3jordtype,Kløvertal,18) -> -500 | D55: kr. | R55: Basic cost | S55: =U54+(SUM(U49:U51)*U48/60) -> -326.25 | T55: kr
A56: In total | C56: =(SUM(C52:C54)+(SUM(C43:C47)*C9)+(SUM(C49:C51)*C9))/Clo4yield -> -88.96754745 | D56: kr./ton | R56: Round trip Km cost | S56: =U48/U52*2 -> -27 | T56: kr/km
R57: Round trip Km cost | S57: =S56/U47 -> -0.5869565217 | T57: kr/km/ton
A58: Average cultivation cost | C58: =((C40*Clo3Yield)+(C56*Clo4yield))/(Clo3Yield+Clo4yield) -> -74.59216715 | D58: kr./ton | R58: Avarage distance | S58: 10 | T58: km | U58: =IF(V58=0,S58,V58) -> 10
R59: In total | S59: =S57*U58 -> -5.869565217 | T59: kr/ton

Sheet Clover
A1: Clover grass BioValue, 4 cuts a year, 2 years in a row
A2: UNDER REDIGERING | Q2: Valgknap skruepresse før transport ja/nej | AD2: 1
A3: Production of biomass | F3: Harvest cost | L3: Transport of biomass | U3: 2 | AC3: 3 | AD3: 3 | AE3: 2
A5: =Beets!A4 -> Soil type: | G5: Suggested values | J5: My value | L5: Grass transport to press | M5: Suggested values | P5: My value | R5: Press cake "loose" | S5: Include | X5: Press cake "loose" | Y5: Include | AE5: Tractor, front mower, forest wagon
A6: =Beets!A5 -> 0 | F6: Tractor, front mower & forage wagon | L6: Lorry Capacity | M6: 55 | N6: m3 | O6: =IF(P6=0,M6,P6) -> 48 | P6: 48 | S6: Suggested values | V6: My value | Y6: Suggested values | AB6: My value | AE6: High performance mower, forage wagon
A7: Cultivated area in total | C7: 50 | D7: ha | F7: Work width | G7: 3.16 | H7: m | I7: =IF(J7=0,G7,J7) -> 3.16 | L7: Densiy of crop | M7: =DensGrass1 -> 0.3 | N7: ton/m3 | O7: =IF(P7=0,M7,P7) -> 0.4 | P7: 0.4 | R7: Lorry Capacity | S7: 55 | T7: m3 | U7: =IF(V7=0,S7,V7) -> 55 | X7: Tractor Capacity | Y7: 48 | Z7: m3 | AA7: =IF(AB7=0,Y7,AB7) -> 48 | AE7: High performance mower, fine cutter
A8: Yield 1. cut | C8: 12 | D8: ton | F8: Effective work width | G8: =I7*0.7 -> 2.212 | H8: m | L8: Ton per load | M8: =O7*O6 -> 19.2 | N8: ton | O8: 19.2 | R8: Density of crop | S8: 0.4 | T8: ton/m3 | U8: =IF(V8=0,S8,V8) -> 0.4 | X8: Density of crop | Y8: 0.4 | Z8: ton/m3 | AA8: =IF(AB8=0,Y8,AB8) -> 0.4
A9: Yield 2. cut | C9: 7 | D9: ton | F9: Field Speed | G9: 10 | H9: km/t | I9: =IF(J9=0,G9,J9) -> 10 | L9: Rental cost | M9: =Lorry2trailer -> -675 | N9: kr/hr | O9: -675 | R9: Ton per load | S9: =U8*U7 -> 22 | T9: ton | U9: 22 | X9: Ton per load | Y9: =AA8*AA7 -> 19.2 | Z9: ton | AA9: 19.2
A10: Yield 3. cut | C10: 6 | D10: ton | F10: Capacity | G10: =G8*I9/10 -> 2.212 | H10: ha/t | L10: Loading | M10: 15 | N10: min | O10: 10 | P10: 10 | R10: Rental cost | S10: =Lorry2trailer -> -675 | T10: kr/hr | U10: -675 | X10: Rental cost | Y10: =TraktorHalmvogn -> -675 | Z10: kr/hr | AA10: -675
A11: Yield 4. cut | C11: 5 | D11: ton | F11: =Normer!L15 -> Tractor w. front mower & wagon | G11: =Normer!M15 -> -1800 | H11: kr/t | I11: -1800 | L11: Extra transport/waiting | M11: 4 | N11: min | O11: 4 | R11: Loading | S11: 15 | T11: min | U11: 15 | X11: Loading | Y11: 10 | Z11: min | AA11: 10
A12: Yield 5. cut | C12: 0 | D12: ton | F12: Loading to transport wagon | G12: =Normer!H6 -> -650 | H12: kr/t | I12: -650 | L12: Deloading | M12: 10 | N12: min | O12: 5 | P12: 5 | R12: Extra transport/waiting | S12: 4 | T12: min | U12: 4 | X12: Extra transport/waiting | Y12: 4 | Z12: min | AA12: 4
A13: Total yield | C13: =SUM(C8:C11) -> 30 | D13: ton/ha | F13: In total per cut | G13: =I11/G10+I12/G10 -> -1107.594937 | H13: kr/ha | L13: Average speed | M13: 50 | N13: km/hr | O13: 25 | P13: 25 | R13: Deloading | S13: 10 | T13: min | U13: 10 | X13: Deloading | Y13: 5 | Z13: min | AA13: 5
A14: Yield in tonnes | C14: =C7*C13 -> 1500 | D14: ton | F14: In total | G14: =(G13*C15)/CloverYieldprHA -> -147.6793249 | H14: kr/ton | L14: Round trip | M14: =60/O13*2 -> 4.8 | N14: min/km | R14: Average speed | S14: 50 | T14: km/hr | U14: 50 | X14: Average speed | Y14: 25 | Z14: km/hr | AA14: 25
A15: Number of cuts | C15: =SUM((IF(C8>0,1,0)),(IF(C9>0,1,0)),(IF(C10>0,1,0)),(IF(C11>0,1,0)),(IF(C12>0,1,0))) -> 4 | L15: Extras | M15: 0 | N15: kr | O15: 0 | R15: Round trip | S15: =60/U14*2 -> 2.4 | T15: min/km | X15: Round trip | Y15: =60/AA14*2 -> 4.8 | Z15: min/km
A16: Dry matter, fresh | C16: 0.2 | L16: Basic cost | M16: =O15+(SUM(O10:O12)*O9/60) -> -213.75 | N16: kr | R16: Extras | S16: 0 | T16: kr | U16: =IF(V16=0,S16,V16) -> 0 | X16: Extras | Y16: 0 | Z16: kr | AA16: =IF(AB16=0,Y16,AB16) -> 0
A17: =Beets!A10 -> VS , % | C17: =0.9*C16 -> 0.18 | F17: High performance mower & forage wagon | L17: Round trip Km cost | M17: =O9/O13*2 -> -54 | N17: kr/km | R17: Basic cost | S17: =U16+(SUM(U11:U13)*U10/60) -> -326.25 | T17: kr | X17: Basic cost | Y17: =AA16+(SUM(AA11:AA13)*AA10/60) -> -213.75 | Z17: kr
A18: Dry matter, after skrew press | C18: 0.6 | F18: Work width | G18: 13 | H18: m | I18: 13 | L18: Round trip Km cost | M18: =M17/O8 -> -2.8125 | N18: kr/km/ton | R18: Round trip Km cost | S18: =U10/U14*2 -> -27 | T18: kr/km | X18: Round trip Km cost | Y18: =AA10/AA14*2 -> -54 | Z18: kr/km
A19: KgTS | C19: =Cloveryield*C16*1000 -> 300000 | D19: kgTS | F19: Effective work width | G19: =I18*0.6 -> 7.8 | H19: m | L19: Average distance | M19: 10 | N19: km | O19: 5 | P19: 5 | R19: Round trip Km cost | S19: =S18/U9 -> -1.227272727 | T19: kr/km/ton | X19: Round trip Km cost | Y19: =Y18/AA9 -> -2.8125 | Z19: kr/km/ton
A20: TonTS | C20: =C19/1000 -> 300 | D20: TonTS | F20: Field Speed | G20: 10 | H20: km/t | I20: 10 | L20: In total | M20: =M18*O19 -> -14.0625 | N20: kr/ton | R20: Average distance | S20: 10 | T20: km | U20: =IF(V20=0,S20,V20) -> 10 | V20: 10 | X20: Average distance | Y20: 5 | Z20: km | AA20: =IF(AB20=0,Y20,AB20) -> 5
F21: Capacity | G21: =G19*I20/10 -> 7.8 | H21: ha/t | R21: In total | S21: =S19*U20 -> -12.27272727 | T21: kr/ton | X21: In total | Y21: =Y19*AA20 -> -14.0625 | Z21: kr/ton
F22: High performance mower | G22: =Normer!M16 -> -1800 | H22: kr/t | I22: -1800 | L22: Grass is divided into liquid & press cake | P22: Felt: Inkluder ja/nej | U22: videre transport efter presning
A23: =Beets!A13 -> Cultivation costs | F23: Forage wagon pick up | L23: Include transport of liquid | R23: Press cake "round bale", tractor
A24: Grass Seeds 1. year | C24: =VLOOKUP(Kløverjordtype,Kløvertal,3) -> -840 | D24: kr./ha | F24: Field speed | G24: 8 | H24: km/t | I24: 8 | R24: Bale pressing | S24: =Normer!M23 -> -75 | T24: kr/bale
A25: Gras Seeds 2. year | C25: 0 | D25: kr./ha | F25: Capacity | G25: =G19*I24/10 -> 6.24 | H25: ha/t | L25: Liquid transport | M25: Suggested values | P25: My value | S25: =S24/S26 -> -65.2173913 | T25: kr/ton
A26: Fertilizer, N | C26: =VLOOKUP(Kløverjordtype,Kløvertal,4) -> -1789.2 | D26: kr./ha | F26: Forage wagon pick up | G26: =Normer!M17 -> -1600 | H26: kr/t | I26: -1600 | L26: Lorry Capacity | M26: 34 | N26: m3 | O26: =IF(P26=0,M26,P26) -> 34 | R26: Bale weight | S26: 1.15 | T26: ton | U26: find ud af hvor mange tons der bliver transporteres og densiteten
A27: Fertilizer, P | C27: =VLOOKUP(Kløverjordtype,Kløvertal,5) -> -432 | D27: kr./ha | F27: Loading to transport wagon | G27: =Normer!H6 -> -650 | H27: kr/t | I27: -650 | L27: Densiy of crop | M27: 1 | N27: ton/m3 | O27: =IF(P27=0,M27,P27) -> 1 | R27: Tractor | S27: 27 | T27: bales/load
A28: Fertilizer, K | C28: =VLOOKUP(Kløverjordtype,Kløvertal,6) -> -1310 | D28: kr./ha | F28: In total per cut | G28: =(I22/G21)+((I26+I27)/G25) -> -591.3461538 | H28: kr/ha | L28: Ton per load | M28: =O27*O26 -> 34 | N28: ton | O28: 34 | R28: Ton per load | S28: =S27*S26 -> 31.05 | T28: ton | U28: =IF(V28=0,S28,V28) -> 31.05
A29: Manure | B29: no costs | F29: In total | G29: =(G28*C15)/CloverYieldprHA -> -78.84615385 | H29: kr/ton | L29: Rental cost | M29: -850 | N29: kr/hr | O29: -850 | R29: Rental cost | S29: 550 | T29: kr/hr | U29: 550 | AD29: 11
A30: Spreading manure | C30: =VLOOKUP(Kløverjordtype,Kløvertal,9) -> 0 | D30: kr./ha | L30: Loading | M30: 15 | N30: min | O30: 15 | R30: Loading | S30: 15 | T30: min | U30: 15
A31: Spreading fertilizer | C31: =VLOOKUP(Kløverjordtype,Kløvertal,10) -> -399 | D31: kr./ha | L31: Extra transport/waiting | M31: 4 | N31: min | O31: 4 | R31: Extra transport/waiting | S31: 4 | T31: min | U31: 4
A32: Sowing | C32: =VLOOKUP(Kløverjordtype,Kløvertal,11) -> -190 | D32: kr./ha | F32: High performance mower & fine cutter | L32: Deloading | M32: 10 | N32: min | O32: 10 | R32: Deloading | S32: 10 | T32: min | U32: 10
A33: =Beets!A31 -> Irrigation, fix cost | C33: =VLOOKUP(Kløverjordtype,Kløvertal,15) -> 0 | D33: kr. | F33: Work width | G33: 13 | H33: m | I33: 13 | L33: Average speed | M33: 50 | N33: km/hr | O33: 50 | R33: Average speed | S33: 25 | T33: km/hr | U33: 25
A34: =Beets!A32 -> Irrigation, moving of | C34: =VLOOKUP(Kløverjordtype,Kløvertal,16) -> 0 | D34: kr. | F34: Effective work width | G34: =I33*0.6 -> 7.8 | H34: m | L34: Round trip | M34: =60/O33*2 -> 2.4 | N34: min/km | R34: Round trip | S34: =60/U33*2 -> 4.8 | T34: min/km
A35: =Beets!A33 -> Irrigation water, pr mm, average year | C35: =VLOOKUP(Kløverjordtype,Kløvertal,17) -> 0 | D35: kr. | F35: Field Speed | G35: 10 | H35: km/t | I35: 10 | L35: Extras | M35: 0 | N35: kr | O35: =IF(P35=0,M35,P35) -> 0 | R35: Extras | S35: 0 | T35: kr | U35: =IF(V35=0,S35,V35) -> 0
A36: Other tasks | C36: =VLOOKUP(Kløverjordtype,Kløvertal,18) -> -500 | D36: kr. | F36: Capacity | G36: =G34*I35/10 -> 7.8 | H36: ha/t | L36: Basic cost | M36: =O35+(SUM(O30:O32)*O29/60) -> -410.8333333 | N36: kr | R36: Basic cost | S36: =U35+(SUM(U30:U32)*U29/60) -> 265.8333333 | T36: kr
A37: In total | C37: =(SUM(C33:C36)+(SUM(C24:C28)*C7)+(SUM(C30:C32)*C7))/Cloveryield -> -165.6733333 | D37: kr./ton | F37: High performance mower | G37: =Normer!M16 -> -1800 | H37: kr/t | I37: -1800 | L37: Round trip Km cost | M37: =O29/O33*2 -> -34 | N37: kr/km | R37: Round trip Km cost | S37: =U29/U33*2 -> 44 | T37: kr/km
F38: Fine cutter & loading | L38: Round trip Km cost | M38: =M37/O28 -> -1 | N38: kr/km/ton | R38: Round trip Km cost | S38: =S37/U28 -> 1.417069243 | T38: kr/km/ton
F39: Fine cutter & loading | G39: -675 | H39: kr/ha | I39: -675 | L39: Average distance | M39: 10 | N39: km | O39: =IF(P39=0,M39,P39) -> 10 | P39: 10 | R39: Average distance | S39: 10 | T39: km | U39: =IF(V39=0,S39,V39) -> 10
F40: In total per cut | G40: =(I37/G36)+I39 -> -905.7692308 | H40: kr/ha | L40: In total | M40: =M38*O39 -> -10 | N40: kr/ton | R40: In total | S40: =S38*U39 -> 14.17069243 | T40: kr/ton
F41: In total | G41: =(G40*C15)/CloverYieldprHA -> -120.7692308 | H41: kr/ton | L41: Expected yield 60% | M41: =0.6*Cloveryield -> 900 | N41: ton liquid
R42: Press cake "round bale", lorry
R43: Bale press/wrap | S43: =Normer!M23 -> -75 | T43: kr/bale
S44: =S43/S45 -> -65.2173913 | T44: kr/ton
R45: Bale weight | S45: 1.15 | T45: ton | U45: find ud af hvor mange tons der bliver transporteres og densiteten
R46: Tractor | S46: 40 | T46: bales/load | V46: Hvor mange ton må der maksimalt være på en traktor/lastbil
R47: Ton per load | S47: =S46*S45 -> 46 | T47: ton | U47: =IF(V47=0,S47,V47) -> 46
R48: Rental cost | S48: =Lorry2trailer -> -675 | T48: kr/hr | U48: -675
R49: Loading | S49: 15 | T49: min | U49: 15
R50: Extra transport/waiting | S50: 4 | T50: min | U50: 4
R51: Deloading | S51: 10 | T51: min | U51: 10
R52: Average speed | S52: 50 | T52: km/hr | U52: 50
R53: Round trip | S53: =60/U52*2 -> 2.4 | T53: min/km
R54: Extras | S54: 0 | T54: kr | U54: =IF(V54=0,S54,V54) -> 0
R55: Basic cost | S55: =U54+(SUM(U49:U51)*U48/60) -> -326.25 | T55: kr
R56: Round trip Km cost | S56: =U48/U52*2 -> -27 | T56: kr/km
R57: Round trip Km cost | S57: =S56/U47 -> -0.5869565217 | T57: kr/km/ton
R58: Average distance | S58: 10 | T58: km | U58: =IF(V58=0,S58,V58) -> 15 | V58: 15
R59: In total | S59: =S57*U58 -> -8.804347826 | T59: kr/ton

Sheet Result Clover
B1: kløver
B3: End produkt:
B6: Yield | C6: =Clover!Cloveryield -> 1500 | D6: ton
B8: Expected costs
B10: Cultivation & machinery | C10: =((SUM(Clover!C24,Clover!C25)/2)+SUM(Clover!C26:C28)+SUM(Clover!C30:C32))/Clover!CloverYieldprHA+(SUM(Clover!C33:C36)/Clover!C7) -> -161.34 | D10: kr./ton
B11: Harvest | C11: =IF(Clover!AD3=1,Clover!G14,(IF(Clover!AD3=2,Clover!G29,Clover!G41))) -> -120.7692308 | D11: kr./ton
B12: Transport of grass | C12: =Clover!M20 -> -14.0625 | D12: kr./ton
B13: Transport of liquid | C13: =Clover!M40 -> -10 | D13: kr./ton
B14: Transport of press cake | C14: =IF(Ley!V8=1,(Ley!M15*(Ley!M16/(Ley!M16+Ley!M17))/Leyyield)+(IF(Ley!V9=TRUE,Ex_OandM,0)),(Ley!M37*(Ley!M39/(Ley!M39+Ley!M40))/Leyyield)+Ley!M38) -> 0 | D14: kr./ton
B15: Cost in total per ton | C15: =SUM(C10:C14) -> -306.1717308 | D15: kr./ton
B16: Storage loss
B17: Cost including losses | C17: =C15 -> -306.1717308 | D17: kr./ton
B18: Cost including losses | D18: øre/kgTS
B19: Total cost | C19: =C17*StrawYield -> -206972.09 | D19: kr.

Sheet Results -straw
A1: Straw to facility | E1: Decentral briquetting
A3: End produkt: | B3: =IF(Straw!$AG$18=TRUE,"Extruded straw",(IF(Straw!$AG$19=TRUE,"Briquetted straw","Straw bale"))) -> Straw bale | E3: End product | F3: Briquetted straw
A6: Yield | B6: =StrawYield -> 676 | C6: ton | F6: =StrawYield -> 676 | G6: ton
A8: Pretreatment
A9: Antal ekstrudere/briketpressere | B9: =IF(Treatment=2,CEILING(StrawYield/BrKap,1),IF(Treatment=1,CEILING(StrawYield/Ex_kap,1),0)) -> 0 | C9: stk | F9: =CEILING(StrawYield/PresserKap,1) -> 1 | G9: stk
A10: Samlet kapacitet | B10: =IF(Treatment=2,BrKap*AntalEkBr,IF(Treatment=1,Ex_kap*AntalEkBr,0)) -> 0 | C10: ton | F10: =PresserKap*BrNumber -> 5800 | G10: ton/år
A11: %-vis udnyttelse til halm | B11: =IF(Treatment=3,0,IF(Treatment=1,StrawYield/Ex_kap*100,StrawYield/BrKap*100)) -> 11.65517241 | C11: % | F11: =Straw!V14 -> 11.65517241 | G11: %
A12: %-vis udnyttelse, andet | B12: =Straw!C66 -> 0 | C12: % | F12: =Straw!V15 -> 80 | G12: %
A13: Ydelse per maskine | B13: =IF(Treatment=1,Ex_payment,(IF(Treatment=2,Br_Payment,0))) -> 0 | C13: pr. år | F13: =Br_Payment -> -785398.3642 | G13: pr. år
A14: Afskrivning per maskine | B14: =IF(Treatment=1,0,IF(Straw!AG4=2,BrTotalCost*Afskrivning,Ex_TotalCost*Afskrivning)) ->  | C14: pr. år | F14: =(BrTotalCost)*Afskrivning ->  | G14: pr. år
A15: OBS! Afskrivning indgår ikke i anskaffelsespris
A19: Expected costs | E19: Expected costs
A21: Field work incl Pressing | B21: =Tedding+Bailing -> -117.5372781 | C21: kr./ton | E21: Pressing | F21: =Tedding+Bailing_big -> -192.3372781 | G21: kr./ton | I21: =B21/7.5 -> -15.67163708
A22: Storage at farm | B22: =Strawstoragefarm -> 0 | C22: kr./ton | E22: Storage at decentral | F22: =Straw!U31+Straw!U40 -> -209.921247 | G22: kr./ton
A23: Storage at facility | B23: =Straw!O24+Straw!O33 -> 0 | C23: kr./ton | E23: Storage at facility | F23: =Straw!U49 -> -117.4711127 | G23: kr./ton
A24: Transport & loading | B24: =(LoadingRateField*TransportFarmCost/60)+([0]!LoadingSpeedFarm*TransportFarmCost/60)+2*(DistanceFarm*TransportFarmCost/(TractorSpeedRoad*BaleCapTon))+(LoadingSpeedFarm*(TransFacCost+LoadingCostFarm)/60)+(LoadingSpeedFac*(TransFacCost+LoadingCostFac)/60)+2*(DistanceFacility*TransFacCost/(DrivingSpeed*TransFacCap)) -> -87.8319158 | C24: kr./ton | E24: Transport | F24: =(LoadingRateField*TransportFarmCost/60)+2*(DistFieldToBr*TransportFarmCost/(TractorSpeedRoad*BaleCapTon))+(LoadStore2*TransportFarmCost/60)+(BrLoadCost*BrLoadCap/60)+(BrLoadCap*BrDumperCost/60)+2*(BrDistance*BrDumperCost/(LorrySpeed*BrDumpCapacity))+(BrLoadCap*BrDumperCost/60) -> -110.9602468 | G24: kr./ton | I24: =B26/7.5 -> -27.38255919
A25: Pretreatment | B25: =Straw!O11+Straw!O19 -> 0 | C25: kr./ton | E25: Pretreatment | F25: =Br_Payment*(Straw!V14/(Straw!V14+Straw!V15)/StrawYield)+Br_OandM -> -223.7423559 | G25: kr./ton
A26: Cost in total, per tonne | B26: =SUM(B21:B25) -> -205.3691939 | C26: kr./ton | E26: Cost in total, per tonne | F26: =SUM(F21:F25) -> -854.4322406 | G26: kr./ton
A27: Storage loss in total | B27: =1-(Straw!O37/StrawYield) -> 0 | E27: Storage loss in total | F27: =1-(Straw!U53/StrawYield) -> 0.002997001 | I27: Bent Simonsen laver halmballer til 300 kr/stk ex levering
A28: Cost including losses | B28: =B26+(B26*B27) -> -205.3691939 | C28: kr./ton | E28: Cost including losses | F28: =F26+(F27*F26) -> -856.9929748 | G28: kr./ton
A29: Total cost incl losses | B29: =B28*StrawYield -> -138829.5751 | C29: kr. | E29: Total cost including losses | F29: =F28*StrawYield -> -579327.251 | G29: kr.
A32: Expected yield (if biogas produced and converted in engine) | E32: Expected yield (if biogas produced and converted in engine)
A34: Energy yield | B34: =IF(Treatment=3, EnergyMethane*VS*MetanHvedehalm,IF(Treatment=2, EnergiMetan*VS*MetanBr, EnergiMetan*VS*MetanEx)) -> 2668.064 | C34: kWh/ton | E34: Energy yield | F34: =EnergiMetan*MetanBr*VS -> 2668.064 | G34: kWh/ton
A35: - Electricity | B35: =$B$34*ElEfficience -> 1067.2256 | C35: kWh/ton | E35: - electricity | F35: =$F$34*ElEfficience -> 1067.2256 | G35: kWh/ton
A36: - Heat | B36: =$B$34*HeatEfficience -> 1334.032 | C36: kWh/ton | E36: - Heat | F36: =$F$34*HeatEfficience -> 1334.032 | G36: kWh/ton
A37: Income from electricity | B37: =B35*ElCost -> 1184.620416 | C37: kr./ton | E37: Income from electricity | F37: =F35*ElCost -> 1184.620416 | G37: kr./ton
A38: Income from heat | B38: =B36*HeatCost -> 333.508 | C38: kr./ton | E38: Income from heat | F38: =F36*HeatCost -> 333.508 | G38: kr./ton
A39: Income per tonne | B39: =B37+B38 -> 1518.128416 | C39: kr./ton | E39: Income per tonne | F39: =F37+F38 -> 1518.128416 | G39: kr./ton
A40: Income from energy | B40: =B39*StrawYield -> 1026254.809 | C40: kr. | E40: Total income | F40: =F39*StrawYield -> 1026254.809 | G40: kr.
A43: Difference, kr | B43: =B40+B29 -> 887425.2341 | C43: kr. | E43: Difference, kr | F43: =F40+F29 -> 446927.5582 | G43: kr.
A46: Normale priser for biogasanlæg er 5-600 kr/ton for halm og 450 kr/ton for vraghalm. Vraghalm er relativt dyrt, men det skyldes at det koster noget at skaffe det til veje.
A47: How to determine fertiliser value of digestate?

Sheet Results rape straw
A1: Results Rapes
A3: End product: | B3: =IF('Rape straw'!AB1=TRUE,"Extruded straw",(IF('Rape straw'!AB2=TRUE,"Briquetted straw","Straw bale"))) -> Straw bale
A7: Expected costs
A9: Field work incl. Pressing | B9: =RapeTed+Bailing_big -> -194.2307692 | C9: kr./ton
A10: Storage at farm | B10: ='Rape straw'!H19 -> -193.8146462 | C10: kr./ton
A11: Storage at facility | B11: =RapeFacBalestore+RapeFacBristore -> 0 | C11: kr./ton
A12: Transport & loading | B12: =('Rape straw'!C25*RapeTransFarmCost/60)+(RapeLoadSpeedFarm*RapeTransFarmCost/60)+2*(RapeDistanceFarm*RapeTransFarmCost/(TractorSpeedField*RapeFarmCap))+(RapeLoadSpeedFarm*(RapeTransFacCost+RapeLoadFarmCost)/60)+(RapeLoadSpeedFac*(RapeTransFacCost+RapeLoadFacCost)/60)+2*(RapeDistanceToFac*RapeTransFacCost/(RapeDrivingSpeed*RapeTransFacCap)) -> -109.4866462 | C12: kr./ton
A13: Pretreatment | B13: =(IF('Rape straw'!AB1=TRUE,'Rape straw'!O11,0))+(IF('Rape straw'!AB2=TRUE,'Rape straw'!O19,0)) -> 0 | C13: kr./ton | E13: Bent Simonsen laver bigballer af rapshalm til 300 kr/stk ex levering
A14: Cost per ton | B14: =SUM(B9:B13) -> -497.5320617 | C14: kr./ton
A15: Storage loss | B15: =1-('Rape straw'!O38/RapeYield) -> 0.3936449987
A16: Cost including losses | B16: =B14+(B14*B15) -> -693.3830695 | C16: kr./ton
A17: Cost in total | B17: =B16*RapeYield -> -450698.9952 | C17: kr.
A19: Expected yield (if biogas produced and converted in engine)
A21: Energy yield | B21: =IF(Rapetreatment=3, EnergiMetan*RapeVS*MethaneRape,IF(Rapetreatment=2, EnergiMetan*RapeVS*MethaenRapeBR, EnergiMetan*RapeVS*MethaneRapeEX)) -> 3399.7824 | C21: kWh/ton
A22: - Electricity | B22: =$B$21*ElEfficience -> 1359.91296 | C22: kWh/ton
A23: - Heat | B23: =$B$21*HeatEfficience -> 1699.8912 | C23: kWh/ton
A24: Income from electricity | B24: =B22*ElCost -> 1509.503386 | C24: kr./ton
A25: Income fra heat | B25: =B23*HeatCost -> 424.9728 | C25: kr./ton
A26: Income per tonne | B26: =B24+B25 -> 1934.476186 | C26: kr./ton
A27: Total income | B27: =B26*RapeYield -> 1257409.521 | C27: kr.
A29: Difference, kr | B29: =B27+B17 -> 806710.5255 | C29: kr.

Sheet Results meadow grass
A1: Results meadow grass
A3: End product | B3: =IF('Meadow grass'!AG6=1,"Round bale, Wrap",IF('Meadow grass'!AG6=2,"Round bale, covered",IF('Meadow grass'!AG6=3,"Round bale","FAIL"))) -> Round bale, Wrap
B4: =IF(ExafEng=TRUE,"Extruded","No pretreatment") -> No pretreatment
A6: Yield | B6: =MeaYield -> 66 | C6: ton
A10: Expected costs
A12: Harvest, pressing, transport home | B12: =MeaHarvestCost/MeaYieldHa -> -375.8181818 | C12: kr./ton | D12: =(MeaHarvestCost*'Meadow grass'!C5)/(MeaYield-'Meadow grass'!G17) -> -511.2533366 | E12: =(D12+B13)*100/1000/0.8 -> -63.90666708 | F12: øre/kgTS
A13: Storage, facility | B13: =MeaStoreCost -> 0 | C13: kr./ton
A14: Transport, further | B14: =IF(MeaDistance>0,2*('Meadow grass'!C39*MeaLoadCost/60)+2*(MeaDistance*MeaTransCost/(MeaTransSpeed*MeaTransCap)),0) -> -153.2156541 | C14: kr./ton
A15: Pretreatment | B15: =IF(ExafEng=TRUE,Ex_payment*(MeaExUsedMeaCap/(MeaExUsedMeaCap+'Meadow grass'!M9))/MeaYield+(Ex_OandM),0) -> 0 | C15: kr./ton
A16: Total cost per tonne | B16: =SUM(B12:B15) -> -529.0338359 | C16: kr./ton | E16: =B16*100/1000/0.8 -> -66.12922949 | F16: øre/kgTS
A17: Total cost øre/kgTS | B17: =B16*100/1000/MeaDM -> -66.12922949 | C17: Øre/kgTS
A18: Total costs | B18: =B16*MeaYield -> -34916.23317 | C18: kr. | E18: biogas facility pays 55 øre/kgTS non treated, non stored
A20: Expected yield (if biogas produced and converted in engine)
A22: Energy produced | B22: =IF(ExafEng=TRUE,EnergiMetan*MetanEngEx*MeaVS*0.01,EnergiMetan*MetanEng*MeaVS*0.01) -> 19.04 | C22: kWh/ton | F22: Lagertab mangler
A23: - Electricity | B23: =$B$22*ElEfficience -> 7.616 | C23: kWh/ton
A24: - Heat | B24: =$B$22*HeatEfficience -> 9.52 | C24: kWh/ton
A25: Income from electricity | B25: =B23*ElCost -> 8.45376 | C25: kr./ton
A26: Income from heat | B26: =B24*HeatCost -> 2.38 | C26: kr./ton
A27: Total yield per tonne | B27: =B25+B26 -> 10.83376 | C27: kr./ton
A28: Total yield per tonne | B28: =B27*MeaYield -> 715.02816 | C28: kr.
A30: Difference | B30: =B28+B18 -> -34201.20501 | C30: kr.

Sheet Results beets
A1: Results Beets
A3: End product: | B3: =VLOOKUP(BeetStorage,'Raw data Beets'!A33:C34,3) -> Whole beets
A6: =Beets!A13 -> Cultivation costs | B6: =SUM(Beets!C14:C18)/BeetFieldYield -> -70.73255814 | C6: kr./ton | G6: =B6+B7 -> -124.755814 | N6: =(B6+B7)/7.5 -> -16.63410853
A7: Production and harvest | B7: =(SUM(Beets!C23:C31)/BeetFieldYield)+(SUM(Beets!C32:C35)/BeetYield) -> -54.02325581 | C7: kr./ton
A8: Storage | B8: =IF(BeetStorage=1,Beets!M13,Beets!M26) -> -11.37703433 | C8: kr./ton
A9: Transport | B9: =(2*(CEILING(BeetYield/Beets!H9,1)*(BeetDistPile/Beets!H10)*BeetTransPileCost)+2*(IF(BeetLoadPile=1,(Beets!H16*BeetYield)*(BeetPileLoad/60),BeetPileLoad*BeetYield))+2*(CEILING(BeetYield/Beets!H22,1)*(BeetDistFacility/Beets!H23)*L_Dumper))/BeetYield -> -29.11627907 | C9: kr./ton | N9: =SUM(B6:B9) -> -165.2491274
A10: =VLOOKUP(BeetClean,'Raw data Beets'!A28:F31,2) -> Elephant beet washer | B10: =IF(BeetClean=1,Beets!H38,(IF(BeetClean=2,Beets!H34,0))) -> -16.42919897 | C10: kr./ton
A11: Pulping | B11: =IF(BeetStorage=2,BeetPulping,0) -> 0 | C11: kr./ton
A12: Cost per ton | B12: =B6+B7+B8+B9+B10+B11 -> -181.6783263 | C12: kr./ton | E12: =B12/7.5 -> -24.22377684 | F12: Lemvig biogas pays 1 kr/kgTS for pulp delievered in december | M12: =B12/7.5 -> -24.22377684 | N12: =B12/7.5 -> -24.22377684
A13: Cost per kgTS | B13: =(SUM(B6:B11)/BeetTS)/1000*100 -> -81.47010149 | C13: øre/kgTS
A14: Total cost, kr | B14: =(B6+B7+B8+B9+B10)*BeetYield -> -781216.8032 | C14: kr. | D14: =B14/[1]Roer!C6 -> -15624.33606
A16: Expected yield (if biogas produced and converted in engine)
A18: Yield per hektar | B18: =Normer!X27*BeetFieldYield*BeetVS -> 6558.876 | C18: Nm3/ha | J18: =(B6+B7+B10)/B12 -> 0.7771153322
A19: ='Results meadow grass'!A22 -> Energy produced | B19: =EnergyMethane*Normer!X27*BeetVS -> 854.1792 | C19: kWh/ton
A20: ='Results meadow grass'!A23 -> - Electricity | B20: =B19*ElEfficience -> 341.67168 | C20: kWh/ton
A21: ='Results meadow grass'!A24 -> - Heat | B21: =B19*HeatEfficience -> 427.0896 | C21: kWh/ton
A22: ='Results meadow grass'!A25 -> Income from electricity | B22: =B20*ElCost -> 379.2555648 | C22: kr./ton
A23: ='Results meadow grass'!A26 -> Income from heat | B23: =B21*HeatCost -> 106.7724 | C23: kr./ton | H23: Lagertab mangler
A24: ='Results meadow grass'!A27 -> Total yield per tonne | B24: =B22+B23 -> 486.0279648 | C24: kr./ton
A25: ='Results meadow grass'!A28 -> Total yield per tonne | B25: =B24*BeetYield -> 2089920.249 | C25: kr.
A27: Difference, kr/yr | B27: =B14+B25 -> 1308703.445 | C27: kr./yr

Sheet Results Maize
A1: Silage Maize
A3: End produkt:
A6: Yield | B6: =Leyyield -> 1500 | C6: ton
A10: Expected costs
D11: Husk per ton er pr ton vådvægt, så det skal regnes om ved prissammenligninger
A12: Cultivation | B12: =(SUM(Maize!C14:C18)*Maize!C6)/MaWetWeight -> -116.6476965 | C12: kr./ton
A13: Maschinery costs, home transport, ensilation | B13: =(SUM(Maize!C23:C30)/Maize!C7)+(SUM(Maize!C31:C34)/MaWetWeight) -> -92.10365854 | C13: kr./ton | F13: Undersøg om ensilering omfatter selve ensilagestakken, altså folie, vægge med mere? | N13: Det gør det ikke
A14: Transport to facility | B14: =2*((MaizeDist/Maize!H8)*MaTransCost)*(Maize!H10/Maize!H9)/MaWetWeight -> -22.34112974 | C14: kr./ton
A15: Storage | B15: =Maize!H20 -> -194.4871617 | C15: kr./ton
A16: Cost in total, per tonne | B16: =SUM(B12:B15) -> -425.5796464 | C16: kr./ton | E16: majsensilage (30%) koster omkring 280 kr/ton jvf Eriks Region Midt analyse, tror det er uden lager
A17: Storage loss in total | B17: =1-(Maize!H41/MaWetWeight) -> 0.05400870947 | E17: har også hørt 75-80 øre/FE
A18: Total cost including losses | B18: =B16+(B17*B16) -> -448.5646539 | C18: kr./ton
A19: Cost per kgTS | B19: =B18/1000*100/DMMaize -> -131.9307806 | C19: øre/kgTS
A20: Total cost | B20: =B18*MaWetWeight -> -529665.1434 | C20: kr.
G21: =B12+B13 -> -208.751355
A22: Expected yield (if biogas produced and converted in engine)
A24: Energy yield | B24: =EnergyMethane*Maize!C10*Normer!X28 -> 1302.336 | C24: kWh/ton
A25: - Electricity | B25: =$B$24*ElEfficience -> 520.9344 | C25: kWh/ton
A26: - Heat | B26: =$B$24*HeatEfficience -> 651.168 | C26: kWh/ton
A27: Income from electricity | B27: =B25*ElCost -> 578.237184 | C27: kr./ton
A28: Income from heat | B28: =B26*HeatCost -> 162.792 | C28: kr./ton
A29: Income per tonne | B29: =B27+B28 -> 741.029184 | C29: kr./ton
A30: Income from energy | B30: =B29*Maize!C8 -> 875007.2605 | C30: kr.
A33: Difference, kr | B33: =B30+B20 -> 345342.1171 | C33: kr.

Sheet Transport
A1: Transport
A7: Lorry Capacity | D7: m3
A8: Densiy of crop | D8: ton/m3
A9: Ton transported | D9: ton
A10: Rental cost | C10: 675 | D10: kr/hr
A11: Loading | C11: 15 | D11: min
A12: Extra transport/waiting | C12: 4 | D12: min
A13: Deloading | C13: 10 | D13: min
A14: Average speed | C14: 50 | D14: km/hr
A15: Round trip | C15: =60/C14*2 -> 2.4 | D15: min/km
A16: Extras | C16: 0 | D16: kr
A17: Basic cost | C17: =C16+(SUM(C11:C13)*C10/60) -> 326.25 | D17: kr
A18: Round trip Km cost | C18: =C10/C14*2 -> 27 | D18: kr/km

Sheet Straw print
A1: Production cost straw for biogas | F1: Press Ctrl+P for print
A2: ="Printet" -> Printet | B2: =TODAY() -> 2018-10-26
A4: Harvest
A5: End product | B5: ='Results -straw'!B3:C3 -> Straw bale
A6: Transport to farmer | B6: =DistanceFarm&" km using tractor & trailer & frontloader" -> 2 km using tractor & trailer & frontloader
A7: Transport to facility | B7: =DistanceFacility&" km using "&Straw!A34 -> 5 km using Truck & 2 trailers
A8: Loading equipment | B8: =Straw!A27&" at farmer, "&Straw!A42&" at facility" -> Telescopic loader at farmer, Telescopic loader at facility
A11: Yield
A12: Yield | B12: =Yieldperha&" Ton/ha." -> 3,38 Ton/ha.
A13: Dry matter | B13: =Straw!C7 -> 0.89
A14: Ash | B14: =Straw!C7-VS -> 0.03
A15: Gas potential | B15: =VLOOKUP(Treatment,Tabels!K19:M21,3)&" L CH4/kgVS" -> 
A16: Gas yield | B16: =_xlfn.FLOOR.PRECISE(VLOOKUP(Treatment,Tabels!K19:M21,3)*VS*Yieldperha,1)&" m3 CH4/ha." -> 
A18: Storage
A19: Storage need | B19: =_xlfn.FLOOR.PRECISE(Straw!I4,1)&" m3 bales or "&_xlfn.FLOOR.PRECISE(Straw!I5,1)&" m3 briquettes" -> 2812 m3 bales or 0 m3 briquettes
A20: Storage at farmer | B20: ="Bales: "&Straw!H18 -> Bales: No storage
A21: Storage at facility | B21: ="Bales: "&Straw!#REF!&". Briquettes: "&Straw!#REF! -> 
B22: =IF(Straw!AG5=2,"Briqeuttes can be stored in barn for bales as bales are being processed","") -> 
A25: Pretreatment
A26: =IF(Treatment=1,"Extruding",(IF(Treatment=2,"Briquetting",(IF(Treatment=3,"none"))))) -> FALSE
A27: =IF(Treatment=3,"","Yearly cost") -> Yearly cost | B27: =IF(Treatment=1,Ex_payment,(IF(Treatment=2,Br_Payment,(IF(Treatment=3,""))))) -> FALSE
A28: =IF(Treatment=3,"","Cost paid by straw") -> Cost paid by straw | B28: =IF(Treatment=3,"",_xlfn.FLOOR.PRECISE(Straw!C65,1)&" % (straw) and "&_xlfn.FLOOR.PRECISE(Straw!C66)&" % (other usage)") -> 0 % (straw) and 0 % (other usage)
A31: Economy
A32: Ecpected costs | B32: =_xlfn.FLOOR.PRECISE('Results -straw'!B30,1) -> 0
A33: Expected yield | B33: =_xlfn.FLOOR.PRECISE('Results -straw'!B40,1) -> 1026254
A34: Difference | B34: =_xlfn.FLOOR.PRECISE('Results -straw'!B43,1) -> 887425
A40: Production cost, straw to biogas, decentral
A43: =A4 -> Harvest
A44: =A5 -> End product | B44: Briquetted straw
A45: =A6 -> Transport to farmer | B45: =DistFieldToBr&" km using tractor & trailer & frontloader" -> 17 km using tractor & trailer & frontloader
A46: =A7 -> Transport to facility | B46: =BrDistance&" km using "&VLOOKUP(Straw!AG7,Tabels!$K$8:$N$10,2) -> 10 km using Large dump truck
A47: =A8 -> Loading equipment | B47: =Straw!A27&" at farmer and "&Straw!T8&" at facility" -> Telescopic loader at farmer and Telescopic loader at facility
A49: =A11 -> Yield
A50: Yield | B50: =Yieldperha&" Ton/ha." -> 3,38 Ton/ha.
A51: Dry matter | B51: =B13 -> 0.89
A52: Ash | B52: =B14 -> 0.03
A53: Gas potential | B53: =MetanBr -> 277
A54: Gas yield | B54: =_xlfn.FLOOR.PRECISE(B53*VS*Yieldperha,1)&" m3 CH4/ha." -> 805 m3 CH4/ha.
A56: =A18 -> Storage
A57: =A19 -> Storage need | B57: =B19 -> 2812 m3 bales or 0 m3 briquettes
A58: Decentral storage | B58: ="Bales: "&Straw!T31&". Briquettes: "&Straw!T40 -> Bales: Barn, gravel floor. Briquettes: No storage
A59: =A21 -> Storage at facility | B59: ="Briquettes: "&Straw!T49 -> Briquettes: Barn, concrete floor
A61: =A25 -> Pretreatment
A62: =A26 -> FALSE
A63: =A27 -> Yearly cost | B63: =Br_Payment -> -785398.3642
A64: =A28 -> Cost paid by straw | B64: =_xlfn.FLOOR.PRECISE(Straw!V14,1)&" % for straw og "&_xlfn.FLOOR.PRECISE(Straw!V15)&" % others" -> 11 % for straw og 80 % others
A67: =A31 -> Economy
A68: =A32 -> Ecpected costs | B68: =_xlfn.FLOOR.PRECISE('Results -straw'!F29,1) -> -579328
A69: =A33 -> Expected yield | B69: =_xlfn.FLOOR.PRECISE('Results -straw'!F40,1) -> 1026254
A70: =A34 -> Difference | B70: =_xlfn.FLOOR.PRECISE('Results -straw'!F43,1) -> 446927

Sheet Rape print
A1: Production costs for rape straw for biogas
A2: ="Printed d. " -> Printed d. | B2: =TODAY() -> 2018-10-26
A4: ='Straw print'!A4 -> Harvest
A5: ='Straw print'!A5 -> End product | B5: ='Results rape straw'!B3 -> Straw bale
A6: ='Straw print'!A6 -> Transport to farmer | B6: =RapeDistanceFarm&" km using tractor, frontloader, wagon" -> 5 km using tractor, frontloader, wagon
A7: ='Straw print'!A7 -> Transport to facility | B7: =RapeDistanceToFac&" km with "&'Rape straw'!A35 -> 5 km with Truck & 2 trailers
A8: ='Straw print'!A8 -> Loading equipment | B8: ='Rape straw'!A29&" at farmer and" -> Tractor & Frontloader at farmer and
B9: ='Rape straw'!A42&" at facility" -> Tractor & Frontloader at facility
A11: ='Straw print'!A11 -> Yield
A12: Field size | B12: ='Rape straw'!C5& " ha." -> 200 ha.
A13: ='Straw print'!A12 -> Yield | B13: =RapeYield&" Ton/ha." -> 650 Ton/ha.
A14: ='Straw print'!A13 -> Dry matter | B14: ='Rape straw'!C7 -> 0.89
A15: ='Straw print'!A14 -> Ash | B15: ='Rape straw'!C7-'Rape straw'!C8 -> 0.074
A16: ='Straw print'!A15 -> Gas potential | B16: =_xlfn.FLOOR.PRECISE(VLOOKUP(Rapetreatment,Tabels!K41:M43,3))&" L CH4/kgVS" -> 372 L CH4/kgVS
A17: ='Straw print'!A16 -> Gas yield | B17: =_xlfn.FLOOR.PRECISE(VLOOKUP(Rapetreatment,Tabels!K41:M43,3)*'Rape straw'!$C$8*'Rape straw'!$C$6,1)&" m3 CH4/ha." -> 986 m3 CH4/ha.
A20: ='Straw print'!A18 -> Storage
A21: ='Straw print'!A19 -> Storage need | B21: =_xlfn.FLOOR.PRECISE('Rape straw'!$H$5,1)&" m3 bales and/or "&_xlfn.FLOOR.PRECISE('Rape straw'!$H$6,1)&" m3 briquettes" -> 4062 m3 bales and/or 1444 m3 briquettes
A22: ='Straw print'!A20 -> Storage at farmer | B22: ="Bales: "&'Rape straw'!G19 -> Bales: Open barn
A23: ='Straw print'!A21 -> Storage at facility | B23: ="Bales: "&'Rape straw'!M25 -> Bales: No storage
B24: ="Briquettes: "&'Rape straw'!M34 -> Briquettes: No storage
A26: ='Straw print'!A25 -> Pretreatment
A27: ='Straw print'!A26 -> FALSE
A28: ='Straw print'!A27 -> Yearly cost | B28: =IF(Rapetreatment=1,Ex_payment,(IF(Rapetreatment=2,Br_Payment,(IF(Rapetreatment=3,""))))) -> -785398.3642
A29: ='Straw print'!A28 -> Cost paid by straw | B29: =IF(Rapetreatment=3,"",_xlfn.FLOOR.PRECISE('Rape straw'!#REF!,0.1)&" % for straw and "&_xlfn.FLOOR.PRECISE('Rape straw'!#REF!)&" % other ") -> 
A32: ='Straw print'!A31 -> Economy
A33: ='Straw print'!A32 -> Ecpected costs | B33: =_xlfn.FLOOR.PRECISE('Results rape straw'!B17,1) -> -450699
A34: ='Straw print'!A33 -> Expected yield | B34: =_xlfn.FLOOR.PRECISE('Results rape straw'!B27,1) -> 1257409
A35: ='Straw print'!A34 -> Difference | B35: =_xlfn.FLOOR.PRECISE('Results rape straw'!B29,1) -> 806710

Sheet meadow grass print
A1: Production cost for meadow grass
A2: ='Rape print'!A2 -> Printed d. | B2: =TODAY() -> 2018-10-26
A4: ='Rape print'!A4 -> Harvest
A5: ='Rape print'!A5 -> End product | B5: ='Results meadow grass'!B4:C4 -> No pretreatment
A6: ='Rape print'!A6 -> Transport to farmer | B6: Covered by harvest costs
A7: Transport udover 12 km | B7: =IF(MeaDistance>0,'Meadow grass'!C29&" km using "&'Meadow grass'!A30,"No") -> 15 km using Tractor & trailer
A8: Transport in field | B8: ='Meadow grass'!A22 -> Tractor
A9: Loading | B9: ='Meadow grass'!A38 -> Tractor & frontloader
A11: ='Straw print'!A11 -> Yield
A12: Field size | B12: ='Meadow grass'!C5&" ha." -> 12 ha.
A13: ='Straw print'!A12 -> Yield | B13: =MeaYield&" Ton/ha." -> 66 Ton/ha.
A14: ='Straw print'!A13 -> Dry matter | B14: ='Meadow grass'!C7/100 -> 0.008
A15: ='Straw print'!A14 -> Ash | B15: ='Meadow grass'!C7-MeaVS&"%" -> 0,12%
A16: ='Straw print'!A15 -> Gas potential | B16: =IF(ExafEng=TRUE,MetanEngEx,MetanEng)&" L CH4/KgVs" -> 250 L CH4/KgVs
A17: ='Straw print'!A16 -> Gas yield | B17: =IF(ExafEng=TRUE,(_xlfn.FLOOR.PRECISE(MetanEngEx*'Meadow grass'!C6*MeaVS*0.01,1))&" m3 CH4/ha",(_xlfn.FLOOR.PRECISE(MetanEng*'Meadow grass'!C6*MeaVS*0.01,1))&" m3 CH4/ha") -> 9 m3 CH4/ha
B18: Note: Gas yield is dependend on grass species and harvest time
A20: ='Straw print'!A18 -> Storage
A21: ='Straw print'!A19 -> Storage need | B21: =CEILING('Meadow grass'!G4,1)&" pcs round bale" -> 236 pcs round bale
A22: ='Straw print'!A20 -> Storage at farmer | B22: =IF('Meadow grass'!AG7=3,"no storage/no cover",(IF('Meadow grass'!AG7=2,"Covered under presenning","Pomi tubewrap"))) -> no storage/no cover
B23: Note: Stored at facility, only
A26: Pretreatment | B26: =IF(ExafEng=TRUE,_xlfn.FLOOR.PRECISE(MeaExUsedMeaCap,1)&" % meadow grass and "&_xlfn.FLOOR.PRECISE('Meadow grass'!M9)&" % other","") -> 
A27: =IF(ExafEng=TRUE,"Extruding","No pretreatment") -> No pretreatment
A29: Economy
A30: Cost, farmer | B30: =_xlfn.FLOOR.PRECISE('Results meadow grass'!E16)&" øre/kgTS" -> -67 øre/kgTS
A32: Expected cost | B32: ='Results meadow grass'!B18 -> -34916.23317
A33: Expected yield | B33: ='Results meadow grass'!B28 -> 715.02816
A34: Difference | B34: ='Results meadow grass'!B30 -> -34201.20501

Sheet Beet print
A1: Production cost beets for biogas
A2: ="Printet" -> Printet | B2: =TODAY() -> 2018-10-26
A4: Harvest
A5: End product | B5: ='Results beets'!B3 -> Whole beets
A6: Transport from beetlifter to | B6: =BeetDistPile&" km using tractor & dumper" -> 1,5 km using tractor & dumper
A7: Transport to facility | B7: =BeetDistFacility&" km using large Dumper" -> 0 km using large Dumper
A8: Loading equipment at farmer | B8: =Beets!F15&" from pile to dumper" -> Beetloader with dry clean shovel from pile to dumper
A11: Yield
A12: Yield | B12: =BeetFieldYield&" Ton/ha." -> 86 Ton/ha.
A13: Dry matter | B13: =BeetTS -> 0.223
A14: Ash | B14: =B13-BeetVS -> 0.0223
A15: Gas potential | B15: =Normer!X27&" L CH4/kgVS" -> 380 L CH4/kgVS
A16: Gas yield | B16: ='Results beets'!B18&" Nm3/ha " -> 6558,876 Nm3/ha
A18: Storage
A19: Storage need | B19: =IF(BeetStorage=1,_xlfn.FLOOR.PRECISE(Beets!M8,1)&" m3 whole beets",_xlfn.FLOOR.PRECISE(Beets!M17,1)&" m3 pulp") -> 6142 m3 whole beets
A20: Storage facilities | B20: =IF(BeetStorage=1,CEILING(Beets!M11,1)&" Clamp silo",Beets!M19&" silo size "&Beets!AF11&", "&Beets!M21&" silo size "&Beets!AF12) -> 2 Clamp silo
A25: Pretreatment
A26: =IF(BeetClean=1,"Elephant beet washer",(IF(BeetClean=2,"KWS wet wash",(IF(Treatment=3,"no further wash"))))) -> Elephant beet washer
A27: =IF(Treatment=3,"","Yearly cost") -> Yearly cost | B27: =IF(BeetClean=1,_xlfn.FLOOR.PRECISE(Beets!H38,1)&" kr/ton",(IF(BeetClean=2,_xlfn.FLOOR.PRECISE(Beets!H34,1)&" kr/ton",(IF(BeetClean=3,""))))) -> -17 kr/ton
A31: Economy
A32: Expected costs | B32: ='Results beets'!B14 -> -781216.8032
A33: Expected yield | B33: ='Results beets'!B25 -> 2089920.249
A34: Difference | B34: =B32+B33 -> 1308703.445

Sheet Normer
A1: Forudsætninger
B3: Transport | G3: Loading | L3: Harvest | Q3: Pretreatment | W3: Gas production | AB3: Data fra Operation
Q4: Interest | S4: 0.06 | T4: =Interest -> 0.055
B5: Collecting bales: | C5: Used values | D5: Suggested vaues | H5: Used values | I5: Suggested values | M5: Used values | N5: Suggested values | Q5: Depreciation | S5: 0.1 | T5: 0.1 | W5: Energy costs | X5: 0.6 | Y5: 0.6 | Z5: kr/kWh
B6: Tractor and wagon | C6: -675 | D6: -675 | E6: kr./hr | G6: Tractor, frontloader | H6: -650 | I6: -650 | J6: kr./hr | L6: Bigbale pressing per bale | M6: -80 | N6: -80 | O6: kr./bale | W6: Energy of methane | X6: 11.2 | Y6: 11.2 | Z6: kWh/m3 | AB6: Front loader | AC6: baleweight, kg | AD6: bales/load | AE6: loading field, min/ha | AF6: avarage capacity, min/ha | AG6: Aflæsse, min/ha | AH6: Gennemsnitlig aflæssekapacitet, min/ha
B7: Capacitet, big square bale | C7: 24 | D7: 24 | E7: Bales/load | G7: Loading, field, round bales | H7: =I7 -> 23 | I7: =AF10 -> 23 | J7: min/ha | L7: Bigbale pressing per ton | M7: -145 | N7: =BigbalePressing/BigBaleWeight -> -145.4545455 | O7: kr./ton | Q7: Brikketering | W7: Estimated methane content | X7: 0.62 | Y7: 0.62 | AB7: Round baler | AC7: 280 | AD7: 12 | AE7: 63 | AF7: =AVERAGE(AE7:AE9) -> 58 | AG7: 34 | AH7: =AVERAGE(AG7:AG9) -> 31.33333333
B8: Capacity, round bale (R bale) | C8: 27 | D8: 27 | E8: R bales/load | G8: Deloading, wrap round bale | H8: =AH10 -> 12.33333333 | I8: =AH10 -> 12.33333333 | J8: min/ha | L8: Round bale presser (dry biomass) per bale | M8: -50 | N8: -50 | O8: kr./bale | Q8: Hammer mill, conveyor, shredder | S8: -3100000 | T8: -3100000 | U8: kr. | W8: Energy content of biogas | X8: =X6*X7 -> 6.944 | Y8: =Y6*Y7 -> 6.944 | Z8: kWh/m3 | AD8: 22 | AE8: 56 | AG8: 31
B9: Capacity, wetland, round bale | C9: 12 | D9: 12 | E9: R bales/load | G9: Loading, field, round bale | H9: =I9 -> 3.965517241 | I9: =I7/5.8 -> 3.965517241 | J9: min/ton | L9: Round bale presser inkl. Wrap (wet biomass) per bale | M9: -100 | N9: -100 | O9: kr./bale | Q9: Briket press | S9: -1250000 | T9: -1250000 | U9: kr. | W9: Efficiency, electricity | X9: 0.4 | Y9: 0.4 | AD9: 44 | AE9: 55 | AG9: 29
G10: Deloading, round bale | H10: =I10 -> 2.126436782 | I10: =I8/5.8 -> 2.126436782 | J10: min/ton | L10: Round bale presser grass BioM | M10: -33 | N10: -33 | O10: kr./bale | Q10: Installation | S10: -373000 | T10: -373000 | U10: kr. | W10: Efficiency, heat | X10: 0.5 | Y10: 0.5 | AB10: Wrap | AC10: 700 | AD10: 12 | AE10: 25 | AF10: =AVERAGE(AE10:AE12) -> 23 | AG10: 14 | AH10: =AVERAGE(AG10:AG12) -> 12.33333333
B11: Collecting bales | G11: Loading, field, big square bale | H11: 9 | I11: =AF13 -> 9 | J11: min/ha. | L11: Round bale Wrap tube | M11: -45 | N11: -45 | O11: kr./bale | Q11: Briket press, in total | S11: -4723000 | T11: =SUM(T8:T10) -> -4723000 | U11: kr. | W11: Waste | X11: =1-X9-X10 -> 0.1 | Y11: =1-Y9-Y10 -> 0.1 | AD11: 22 | AE11: 22 | AG11: 12
B12: Tractor with frontloader and wagon | C12: -675 | D12: -675 | E12: kr./hr | G12: Deloading, field, big square bale | H12: 7 | I12: =AH13 -> 7 | J12: min/ha | L12: Fine cutter | M12: -1560 | N12: -1560 | O12: kr./time | Q12: Operation kWh | S12: -60 | T12: -60 | U12: kWh/ton | W12: Electricity Sales | X12: 1.11 | Y12: 1.11 | Z12: kr/kWh | AD12: 44 | AE12: 22 | AG12: 11
B13: Capacity,straw bales | C13: 24 | D13: 24 | E13: bales/load | G13: Loading, store, big square bale | H13: =I13 -> 0.6060606061 | I13: =((40/60)/2)/N26 -> 0.6060606061 | J13: min/ton | L13: Finsnitter kapacitet - græs | M13: 2.7 | N13: 2.7 | O13: ha./time | Q13: Operation | S13: -36 | T13: =T12*Energipris -> -36 | U13: kr./ton | W13: Heat Sales | X13: 0.25 | Y13: 0.25 | Z13: kr/kWh | AB13: Big bale | AC13: 550 | AD13: 24 | AE13: 9 | AF13: =AE13 -> 9 | AG13: 7 | AH13: =AG13 -> 7
B14: Capacity, straw, tonnes | C14: =F_kapacitet_baller_1mand*BigBaleWeight -> 13.2 | D14: 13 | E14: ton/load | G14: Loading, briquettes | H14: 0.6 | I14: 0.6 | J14: min/ton | L14: Finsnitter kapacitet - majs | M14: 2.3 | N14: 2.3 | O14: ha./time | Q14: Maintanence | S14: -40 | T14: -40 | U14: kr./ton
L15: Tractor w. front mower & wagon | M15: -1800 | N15: 1800 | O15: kr/time | Q15: Operation maintanence (O&M) | S15: =SUM(S13:S14) -> -76 | T15: =SUM(T13:T14) -> -76 | U15: kr./ton
B16: Road transport | G16: Telescopic loader | H16: -700 | I16: -700 | J16: kr./hr | L16: High performance mower | M16: -1800 | N16: 1800 | O16: kr/time | Q16: Ensurance | S16: -50000 | T16: -50000 | U16: kr./Yr. | W16: Biogasudbytter
B17: Truck & 2 trailers | C17: -675 | D17: -675 | E17: kr./hr | G17: Loading, round bale | H17: 3.2 | I17: =24/C8/N32 -> 3.174603175 | J17: min/ton | L17: Forage Wagon (pick up grass) incl tractor | M17: -1600 | N17: 1800 | O17: kr/time | Q17: Presser capacity | S17: 5800 | T17: 5800 | U17: ton/yr | W17: Straw | X17: 230 | Y17: 230 | Z17: m3 CH4/tonVS | AB17: =Y20*0.23 -> 57.5 | AC17: =Y20+AB17 -> 307.5 | AE17: Ny rundballepresser fra Lely: 110-130 baller i timen, bedst 143 baller i timen. 43 rundballer på 2,5 ha på 23 minutter. Gns vægt balle på 480 kg, gns fart for traktir 18 km/t. Maskinen ventes til salg fra 2016
B18: Capacity, big square bales | C18: 24 | D18: 24 | E18: bales/load | G18: Deloading, round bale | H18: 3.2 | I18: =24/C8/N32 -> 3.174603175 | J18: min/ton | L18: Fine cutter & tractor w wagon | M18: -2700 | N18: 2700 | O18: kr/time | Q18: Service life | S18: 15 | T18: 15 | U18: Yr. | W18: Briquettes | X18: 277 | Y18: 277 | Z18: m3 CH4/tonVS
B19: =B8 -> Capacity, round bale (R bale) | C19: 20 | D19: 20 | E19: R bales/load | G19: Loading, wrap | H19: 1.3 | I19: =24/C8/N35 -> 1.26984127 | J19: min/ton | L19: Ilægning i stak | N19: 2,3-5,8 | O19: ha/time | Q19: Interest | S19: 0.055 | T19: =Interest -> 0.055 | W19: Extruded straw | X19: 277 | Y19: 277 | Z19: m3 CH4/tonVS
B20: Truck & container | C20: -700 | D20: -700 | E20: Kr./hr | G20: Deloading, wrap | H20: 1.3 | I20: =24/C8/N35 -> 1.26984127 | J20: min/ton | L20: Ensilation/indlægning i stak | M20: -600 | N20: -600 | O20: kr./time | Q20: Loan Payment, yearly | S20: =PMT(S19,Br_Servicelife,-BrTotalCost) -> -470531.6975 | T20: =-PMT(T19,T18,T11) -> -470531.6975 | U20: kr./Yr. | W20: Meadow grass | X20: 250 | Y20: 250 | Z20: m3 CH4/tonVS
B21: Capacity | C21: 15 | D21: 15 | E21: Ton/load | G21: Loading, square bale | H21: 0.82 | I21: 0.82 | J21: min/ton | L21: Wrapping of silage | N21: =-100/450*1000 -> -222.2222222 | O21: kr./ton | Q21: Depreciation 15yrs | S21: =BrTotalCost/15 -> -314866.6667 | T21: =T11/15 -> -314866.6667 | U21: kr./Yr. | W21: Extruded Meadow grass | X21: 300 | Y21: =MetanEng*1.2 -> 300 | Z21: m3 CH4/tonVS | AB21: =50/300 -> 0.1666666667
B22: Lorry with walking floor | C22: -675 | D22: -675 | E22: Kr./hr. | G22: Deloading, square bale | H22: 0.82 | I22: 0.82 | J22: min/ton | L22: Presning af rundballer | M22: -50 | O22: kr./stk | Q22: Housing | S22: -240000 | T22: -240000 | U22: kr/Yr. | W22: Ley | X22: 320 | Y22: 320 | Z22: m3 CH4/tonVS
B23: Capacity | C23: 34 | D23: 34 | E23: Ton/load | G23: Loading/deloading briquettes | H23: =BrLoadCap -> 0.6 | I23: =BrLoadCap -> 0.6 | J23: min/ton | L23: Presning og wrapning | M23: -75 | O23: kr./stk | Q23: Work force | S23: -1860000 | T23: -1860000 | U23: kr./Yr. | W23: Extruded or briquetted ley | X23: 384 | Y23: =Y22*1.2 -> 384 | Z23: m3 CH4/tonVS | AB23: =(384-320)/384 -> 0.1666666667
B24: Tractor that dumps | C24: -625 | D24: -625 | E24: Kr./hr | L24: Weight og Density | Q24: Yearly costs | S24: =S20+S21 -> -785398.3642 | T24: =T21+T20 -> -785398.3642 | U24: kr.Yr | W24: Rape straw | X24: 310 | Y24: 310 | Z24: m3 CH4/tonVS
B25: Capacity | C25: 35 | D25: 35 | E25: m3/load | G25: Tractor, shovel loader | H25: -750 | I25: -650 | J25: kr./hr | L25: Adjust used value according to dry matter | T25: =T24/PresserKap -> -135.4135111 | W25: Briquetted rape straw | X25: 372 | Y25: =Y24*1.2 -> 372 | Z25: m3 CH4/tonVS
B26: Lorry that dumps | C26: -675 | D26: -675 | E26: kr./hr | G26: Deloading dumper, briquettes | H26: 3 | I26: 3 | J26: min/load | L26: Big bale weight | M26: 0.55 | N26: 0.55 | O26: ton/bale | Q26: Extruding | W26: Extruded rape straw | X26: 372 | Y26: =MethaneRape*1.2 -> 372 | Z26: m3 CH4/tonVS
B27: Capacity | C27: 55 | D27: 55 | E27: m3/load | G27: Deloading dumper, briquettes | H27: 0.14 | I27: =I26/(C27*N39) -> 0.1212121212 | J27: min/ton | L27: Density, big bale | M27: 0.16 | N27: 0.16 | O27: ton/m3 | Q27: Extruder, mixer, and conveyor | S27: -5500000 | T27: -5500000 | U27: kr. | W27: Beets | X27: 380 | Y27: 380 | Z27: m3 CH4/tonVS
B28: Blokvogn | C28: -500 | D28: -500 | E28: kr/hr | L28: Compact bale weight | M28: 0.5 | N28: 0.5 | O28: ton/bale | Q28: Operation | S28: -123 | T28: -123 | U28: kWh/ton | W28: Miaze silage | X28: 360 | Y28: 360 | Z28: m3 CH4/tonVS
B29: Manure transport | C29: -750 | D29: -750 | E29: kr/hr | G29: Liquid loading | L29: Density, compact bale | M29: =M28/(0.9*1.2*2.4) -> 0.1929012346 | N29: =N28/(0.9*1.2*2.4) -> 0.1929012346 | O29: ton/m3 | Q29: Maintanence | S29: -25 | T29: -25 | U29: kr./ton
B30: Capacity, Lorry | C30: 39 | D30: 39 | E30: m3/load | G30: Manure loading | H30: 13 | I30: 13 | J30: m3/min | L30: Heavy bale weight | M30: 0.9 | N30: 0.9 | Q30: Operation maintanence (O&M) | S30: -98.8 | T30: =(T28*Energipris)+T29 -> -98.8 | U30: kr./ton | W30: Merudbytte ved brikettering er lidt højere end for ekstrudering, udjævnes ved længere opholdstid. Merudbyttet afhænger af opholdstiden, jo kortere opholdstid, jo større merudbytte ved ex/br.
B31: Capacity, tractor with wagon | C31: 25 | D31: 25 | E31: m3/load | G31: Manure unloading | H31: 13 | I31: 13 | J31: m3/min | L31: Density, heavy | M31: =M30/(1.3*1.2*2.4) -> 0.2403846154 | N31: =N30/(1.3*1.2*2.4) -> 0.2403846154 | O31: ton/m3 | Q31: Ensurance | S31: -50000 | T31: -50000 | U31: kr. | W31: Tommelfingerregel: Halm 15 dage: EX +20%, Br +35%. 30 dage: +12% begge. Græs 15 dage +30%, 30 dage +10%. 90 dage alle: Stort set ingen forskel fra ubehandlet
B32: Liquid fodder | C32: -700 | D32: -700 | E32: kr/hr | G32: Manure: Cleaning, parking ect. | H32: 5 | I32: 5 | J32: min | L32: Round bale weight, Ø160 | M32: 0.28 | N32: 0.28 | O32: ton/bale | Q32: Capacity | S32: 10000 | T32: 10000 | U32: ton/yr
B33: Front wagon | C33: 35 | D33: 35 | E33: m3/load | L33: Round bale weight Ø180 | Q33: Service life | S33: 15 | T33: 15 | U33: Yr.
B34: Second wagon | C34: 25 | D34: 25 | E34: m3/load | G34: Fodder loading | H34: 2 | I34: 2 | J34: m3/min | L34: Density, Round bale | M34: 0.2 | N34: 0.2 | O34: ton/m3 | Q34: Interest, % | S34: 0.055 | T34: =Interest -> 0.055
G35: Fodder unloading | H35: 2 | I35: 2 | J35: m3/min | L35: Wrap bale weight | M35: 0.7 | N35: 0.7 | O35: ton/bale | Q35: Loan term | S35: 15 | T35: 15 | U35: Yr.
B36: Driving speed | G36: Fodder: Cleaning, parking ect. | H36: 5 | I36: 5 | J36: min | L36: Density, wrap round bale | M36: 0.4 | N36: 0.4 | O36: ton/m3 | Q36: Loan Payment, yearly | S36: =PMT(S34,S33,-Ex_TotalCost) -> -547940.7868 | T36: =-PMT(T34,Ex_Servicelife,T27) -> -547940.7868 | U36: kr./Yr.
B37: Tractor, field | C37: 15 | D37: 15 | E37: km/hr | L37: Density, Grass silage | M37: 0.6 | N37: 0.6 | O37: ton/m3 | Q37: Depreciation, 20 yrs | S37: =Ex_TotalCost/20 -> -275000 | T37: =Ex_TotalCost/20 -> -275000 | U37: kr./Yr.
B38: Tractor, road | C38: 25 | D38: 25 | E38: km/hr | G38: TIMELØN | H38: -120 | I38: -120 | L38: Density, fine cut Grass, wetweight | M38: 0.3 | N38: 0.3 | O38: ton/m3 | Q38: Yearly costs | S38: =SUM(S36:S37) -> -822940.7868 | T38: =SUM(T36:T37) -> -822940.7868 | U38: kr./Yr.
B39: Lorry, road | C39: 51.5 | D39: 51.5 | E39: km/hr | L39: Density, briquet | M39: 0.45 | N39: 0.45 | O39: ton/m3 | T39: =T38/Ex_kap -> -82.29407868
B40: Large trailer loaded with beet washer | C40: 45 | D40: 45 | L40: Densitet, hele roer | M40: 0.7 | N40: 0.7 | O40: ton/m3 | Q40: Betacutter/cutting beats
L41: Densitet, roepulp | M41: 1.2 | N41: 1.2 | O41: ton/m3 | Q41: Capacity | S41: 100 | T41: 100 | U41: ton/hr
L42: Densitet, snittet majs (PASPÅ; KERNEMAJS?) | M42: 0.65 | N42: 0.65 | O42: ton/m3 | Q42: Investment | S42: 120000 | T42: 120000 | U42: kr
L43: Densitet majsensilage | M43: 0.32 | N43: 0.32 | O43: ton/m3 | Q43: Operation | S43: =(11*X5)/S41 -> 0.066 | T43: =(11*Y5)/T41 -> 0.066 | U43: kr/ton
Q44: Maintanence | S44: =15000/100000 -> 0.15 | T44: =15000/100000 -> 0.15 | U44: kr/ton
L45: Economy | Q45: Service life | S45: 15 | T45: 15 | U45: Yr.
B46: Skamstrup | C46: Brdr. Jacobsen | D46: Skinnerup Maskinstation | Q46: Loan yearly | S46: =PMT(Interest,S45,S42) -> -11955.07171 | T46: =PMT(Interest,T45,T42) -> -11955.07171 | U46: kr/yr
C47: 40 31 66 76 | D47: 20 16 37 05 | L47: Interest | M47: 0.055 | N47: 0.055 | O47: % | Q47: Depriciation 15 år | S47: =-S42/15 -> -8000 | T47: =-T42/15 -> -8000 | U47: kr/yr
C48: uwejacobsen@hotmail.com | L48: loan term, maschinery | M48: 10 | N48: 10 | O48: Yr. | Q48: Yearly cost | S48: =SUM(S46:S47) -> -19955.07171 | T48: =SUM(T46:T47) -> -19955.07171 | U48: kr/yr
L49: Loan term, storage | M49: 20 | N49: 20 | Q49: Cost/ton | S49: =S43+S44 -> 0.216 | T49: =T43+T44 -> 0.216 | U49: kr/ton
L50: Depreciation | M50: 0.04 | N50: 0.04
L51: Deprecition periode, storage | M51: 30 | N51: 30 | O51: yr.
L52: Depreciation periode, maschinery | M52: 10 | N52: 10 | O52: yr.

Sheet Tabels
B1: Meadow grass | K1: Straw
A3: 1 | B3: Round bale | AE3: Såning | AF3: Tromling | AG3: Sprøjtning | AH3: Optagning | AI3: Vanding | AJ3: Vanding, flytning | AK3: Vanding pr. ml | AL3: Øvrige opgaver
A4: 2 | B4: Wrapped round bale | K4: 1 | L4: Tractor & Frontloader | M4: =Normer!TractorFrontWagon -> -675 | O4: Loading speed | P4: 0.61 | Q4: min/ton | AE4: 1 | AF4: 1 | AG4: 4 | AH4: 1 | AI4: 0 | AJ4: 0 | AK4: 0 | AL4: 1
A5: 3 | B5: Fine cutting | K5: 2 | L5: Telescopic loader | M5: =TelescopicLoad -> -700 | O5: Loading speed | P5: =LoadTeleBig -> 0.82 | Q5: min/ton | AE5: 1 | AF5: 1 | AG5: 4 | AH5: 1 | AI5: 1 | AJ5: 2 | AK5: 70 | AL5: 1
K6: 3 | L6: Not to be reloaded | M6: 0 | P6: 0 | AE6: 1 | AF6: 1 | AG6: 4 | AH6: 1 | AI6: 0 | AJ6: 0 | AK6: 0 | AL6: 1
B7: Moist areas | C7: Tractor | D7: -2067 | K7: 4 | L7: Portable crane | M7: 0 | N7: tons | P7: 0
B8: Wet areas | C8: Piste basher vehicle | D8: -3500 | K8: 1 | L8: Dump truck | M8: -625 | N8: 35 | AE8: 1 | AF8: 1 | AG8: 4 | AH8: 1 | AI8: 0 | AJ8: 0 | AK8: 0 | AL8: 1
I9: =180/100*80 -> 144 | K9: 2 | L9: Large dump truck | M9: -650 | N9: 48 | AE9: 1 | AF9: 1 | AG9: 4 | AH9: 1 | AI9: 1 | AJ9: 2 | AK9: 70 | AL9: 1
C10: kr./ton | I10: =180/80*100 -> 225 | K10: 3 | L10: Truck & container | M10: -575 | N10: 33 | AE10: 1 | AF10: 1 | AG10: 4 | AH10: 1 | AI10: 0 | AJ10: 0 | AK10: 0 | AL10: 1
A11: 1 | B11: Pomi tube wrap | C11: =-130/100*80 -> -104 | I11: =(0.18/100*80)*1000 -> 144 | N11: bales/load | O11: compact bales/load
A12: 2 | B12: Bales under cover | C12: =-180/100*80 -> -144 | J12: =18*1000/100 -> 180 | K12: 1 | L12: Truck & 2 trailers | M12: =Lorry2trailer -> -675 | N12: =Normer!C18 -> 24 | O12: 36 | P12: =LorrySpeed -> 51.5
A13: 3 | B13: Open storage | C13: 0 | K13: 2 | L13: Tractor & trailer | M13: =TraktorHalmvogn -> -675 | N13: =Normer!C7 -> 24 | O13: 36 | P13: =TractorSpeedRoad -> 25 | AE13: -475 | AF13: -160 | AG13: -200 | AH13: -1497 | AI13: 0 | AJ13: 0 | AK13: 0 | AL13: -500
N14: kg | P14: dens (ton/m3) | AE14: -475 | AF14: -160 | AG14: -200 | AH14: -1722 | AI14: -1130 | AJ14: -110 | AK14: -70 | AL14: -500
K15: 1 | L15: Big bales | M15: 1.2x1.3x2.4 | N15: 563 | O15: 24 | P15: =N15/(1.2*1.3*2.4)/1000 -> 0.1503739316 | AE15: -500 | AF15: -160 | AG15: -200 | AH15: -1794 | AI15: 0 | AJ15: 0 | AK15: 0 | AL15: -500
B16: Transport | D16: Cost | E16: Capacity, ton | F16: Driving speed | K16: 2 | L16: Flat big bales | M16: 1.2x0.9x2.4 | N16: 500 | O16: 36 | P16: =N16/(1.2*0.9*2.4)/1000 -> 0.1929012346
A17: 1 | B17: Truck | C17: Truck & 2 trailers | D17: =Lorry2trailer -> -675 | E17: =Normer!D19*Rundballevægt -> 5.6 | F17: =LorrySpeed -> 51.5 | K17: 3 | L17: Heavy big bales | M17: 1.2x1.3x2.4 | N17: 900 | O17: 24 | P17: =N17/(1.2*1.3*2.4)/1000 -> 0.2403846154
A18: 2 | B18: Tractor | C18: Tractor & trailer | D18: =TraktorHalmvogn -> -675 | E18: =Normer!D8*Rundballevægt -> 7.56 | F18: =TractorSpeedRoad -> 25 | AE18: -475 | AF18: -160 | AG18: -200 | AH18: -1497 | AI18: 0 | AJ18: 0 | AK18: 0 | AL18: -500
K19: 1 | L19: Extruded straw | M19: =Normer!Y19 -> 277 | AE19: -475 | AF19: -160 | AG19: -200 | AH19: -1722 | AI19: -1130 | AJ19: -110 | AK19: -70 | AL19: -500
K20: 2 | L20: Briquetted straw | M20: =MetanBr -> 277 | AE20: -500 | AF20: -160 | AG20: -200 | AH20: -1700 | AI20: 0 | AJ20: 0 | AK20: 0 | AL20: -500
K21: 3 | L21: Straw bales | M21: =MetanHvedehalm -> 230
B28: Dry Storage
K29: Rape straw
D31: Loan, 20 years | E31: Depreciation | F31: Yearly costs | G31: Capacity | H31: Usage | M31: kr./hr
C32: Cost, kr. | D32: Yearly payment | E32: 25 yrs, cost/yr | K32: 1 | L32: Tractor & Frontloader | M32: =Normer!TractorFrontWagon -> -675 | O32: Loading speed | P32: =LoadStore ->  | Q32: min/ton
A33: 1 | B33: Open barn | C33: 1001500 | D33: =PMT(Interest,loanterm20,C33) -> -83804.84903 | E33: =C33/25 -> 40060 | F33: =D33-E33 -> -123864.849 | G33: 5000 | H33: 0.85 | K33: 2 | L33: Telescopic loader | M33: =TelescopicLoad -> -700 | O33: Loading speed | P33: =LoadTeleBig -> 0.82 | Q33: min/ton
A34: 2 | B34: Barn, concrete floor | C34: 1816500 | D34: =PMT(Interest,loanterm20,C34) -> -152003.503 | E34: =C34/25 -> 72660 | F34: =D34-E34 -> -224663.503 | G34: 5000 | H34: 0.85 | M34: Kr./hr | N34: tons | AE34: =#REF! -> 
A35: 3 | B35: Barn, gravel floor | C35: 1391500 | D35: =PMT(Interest,loanterm20,C35) -> -116439.7877 | E35: =C35/25 -> 55660 | F35: =D35-E35 -> -172099.7877 | G35: 5000 | H35: 0.85 | K35: 1 | L35: Dump truck | M35: -625 | N35: 35 | AE35: 0
A36: 4 | B36: Barn, Cost from handbook2014 | C36: 1335000 | D36: =PMT(Interest,loanterm20,C36) -> -111711.9056 | E36: =C36/25 -> 53400 | F36: =D36-E36 -> -165111.9056 | G36: 5000 | H36: 0.85 | K36: 2 | L36: Large dump truck | M36: -650 | N36: 48 | AE36: 0
B37: Container | C37: 27000 | D37: =PMT(Interest,loanterm20,C37) -> -2259.341911 | E37: =C37/25 -> 1080 | F37: =D37-E37 -> -3339.341911 | G37: 37 | K37: 3 | L37: Truck & container | M37: -575 | N37: 33
K38: 1 | L38: Truck & 2 trailers | N38: =Lorry2trailer -> -675 | O38: =Normer!C51 -> 0 | P38: =LorrySpeed -> 51.5
D39: Big bale | E39: Compact bale | F39: Storage loss | G39: Heavy | I39: Briquettes | K39: 2 | L39: Tractor & trailer | N39: =TraktorHalmvogn -> -675 | O39: =Normer!C40 -> 45 | P39: =TractorSpeedRoad -> 25
C40: kr./m3 | D40: kr/ton | E40: kr/ton | F40: % | G40: kr/ton
A41: 1 | B41: Open barn | C41: =F33/(G33*H33) -> -29.14467036 | D41: =C41/P15 -> -193.8146462 | E41: =C41/Normer!M29 -> -151.0859711 | F41: 3 | G41: =C41/P17 -> -121.2418287 | K41: 1 | L41: Extruded rape straw | M41: =MethaneRapeEX -> 372
A42: 2 | B42: Barn, concrete floor | C42: =F34/(G34*H34) -> -52.86200071 | D42: =C42/P15 -> -351.5369994 | E42: =C42/Normer!M29 -> -274.0366117 | F42: 2 | G42: =C42/P17 -> -219.9059229 | H42: 1 | I42: =B42 -> Barn, concrete floor | J42: =C42/DensBr -> -117.4711127 | K42: 2 | L42: Briquetted rape straw | M42: =MethaenRapeBR -> 372
A43: 3 | B43: Barn, gravel floor | C43: =F35/(G35*H35) -> -40.4940677 | D43: =C43/P15 -> -269.2891465 | E43: =C43/Normer!M29 -> -209.921247 | F43: 2 | G43: =C43/P17 -> -168.4553217 | H43: 2 | I43: Container | J43: =F37/37 -> -90.25248408 | K43: 3 | L43: Rape straw bales | M43: =MethaneRape -> 310
A44: 4 | B44: POMI Tube wrap | D44: =-30/BigBaleWeight -> -54.54545455 | E44: =-22.5/Normer!M28 -> -45 | F44: 5 | G44: =-30/N17*1000 -> -33.33333333 | H44: 3 | I44: No storage | J44: 0
A45: 5 | B45: Rick/stack plastic cover | D45: =-10+(0.5*((timeløn*4+TraktorHalmvogn)/750)/BigBaleWeight) -> -11.4 | E45: =-10+(0.5*((timeløn*4+TraktorHalmvogn)/750)/Normer!M28) -> -11.54 | G45: =-10+(0.5*((timeløn*4+TraktorHalmvogn)/750)/N17) -> -10.00085556
A46: 6 | B46: No storage | D46: 0 | E46: 0 | G46: 0
D47: =0.55*0.02 -> 0.011 | E47: 0.02
J48: 550 kr traktor + mand
A49: Clamp silo for beets | J49: =4*timeløn -> -480
K50: Ley
M51: Kr./ton
D52: Size of Clamp, m | E52: Usage as beet pile, m | K52: 1 | L52: Pomi tube wrap | M52: =C11 -> -104 | N52: Clamp silo | O52: Extruded | P52: =Ex_payment -> -822940.7868 | Q52: =EnergyMethane*Ley!$C$12*Normer!X23 -> 696.7296
B53: Volume | C53: Height | D53: 3 | E53: 5.6 | H53: Levetid clamp silo | K53: 2 | L53: Open barn | M53: =C41/Normer!M34 -> -145.7233518 | N53: Bailing | O53: Briquetted | Q53: =EnergyMethane*Ley!$C$12*Normer!X23 -> 696.7296
C54: Lenght | D54: 50 | E54: 45 | K54: 3 | L54: Barn concrete floor | M54: =C42/Normer!M34 -> -264.3100035 | N54: Wrap | O54: No pretreatment | Q54: =EnergyMethane*Ley!$C$12*Normer!X24 -> 562.464
C55: Width | D55: 16 | E55: 15 | K55: 4 | L55: No storage costs | M55: 0
B56: m3 in total | D56: =D53*D54*D55 -> 2400 | E56: =(12+16)/2*E53*E54 -> 3528
B57: m2 plastik + 10% | D57: =(D54*D55)*1.1 -> 880 | K57: 1 | L57: Ensiled | M57: =EnergyMethane*Ley!C12*Normer!X22 -> 580.608
B58: Cost, concrete | K58: 2 | L58: Ensiled & extruded | M58: =EnergyMethane*Ley!C12*Normer!X23 -> 696.7296
B59: L -elements (Walls) | C59: 3x1 meter | D59: -2300 | E59: kr | K59: 1 | L59: Extruded | M59: =EnergyMethane*Ley!$C$12*Normer!X23 -> 696.7296 | N59: Grass silage
B60: Bottom | C60: m2 | D60: -500 | E60: kr | K60: 2 | L60: Briquetted | M60: =EnergyMethane*Ley!$C$12*Normer!X23 -> 696.7296 | N60: Hay
K61: 3 | L61: No pretreatment | M61: =EnergyMethane*Ley!$C$12*Normer!X22 -> 580.608 | N61: Wrap silage
B62: Cost, building a clamp
B63: Bottom | E63: =D60*D54*D55 -> -400000 | F63: kr
B64: walls 2x 50+16 | E64: =(46+D54+D55)*D59 -> -257600 | F64: kr
B65: Total | E65: =E63+E64 -> -657600 | F65: kr
B66: Labour + 10 pct | C66: 10 | E66: =E65+(E65*C66/100) -> -723360 | F66: kr
B67: Cover | E67: =-D57*2.5 -> -2200 | F67: kr
B68: Labour for covering | C68: Arbejdstimer | D68: 6 | E68: =6*timeløn -> -720 | F68: kr | L68: Overdækning plansilo
B69: Total cost | E69: =E66+E67+E68 -> -726280 | F69: kr | L69: Megaplast fra Compex, brug et lag | M69: 2,5 kr/m2
B70: Yearly cost for storage of beets
B71: Yearly cost, loan 20 years | E71: =-PMT(Interest,loanterm20,SiloCost) -> -60774.62382 | F71: kr
B72: Yearly cost, depriciation 20 years | E72: =E69/20 -> -36314 | F72: kr
B73: yearly cost, in total | E73: =E71-E72 -> -24460.62382 | F73: kr
B74: Yearly cost/m3 | E74: =E73/E56 -> -6.933283395 | F74: kr/m3
B75: Beet Weight, standard numbers | C75: =Roedensitet -> 0.7 | D75: tons/m3 | G75: If Clamp is NOT fully used
B76: Yearly cost/ton | E76: =E74/C75 -> -9.904690564 | F76: kr/ton | G76: =(E73*Beets!M12)/BeetYield -> -11.37703433 | H76: kr/ton
B77: Yearly cost/tonTS | C77: =BeetTS -> 0.223 | E77: =E76/C77 -> -44.41565276 | F77: kr/ton TS | G77: =G76/C77 -> -51.01809118 | H77: kr/ton TS
B78: Yearly cost/kgTS | E78: =E77/1000 -> -0.04441565276 | F78: kr/kgTS | G78: =G77/1000 -> -0.05101809118 | H78: kr/kgTS
J79: r d
B83: Average density of silage
B84: Bunker Silo with or without Rounded Top Surface
B86: =
B87: Silage DM (60-70% is typical) | E87: 65 | F87: % | G87: indtast | H87: 65 | I87: %
B88: Days of feed out | E88: 10 | G88: indtast | H88: 9
B89: Total weight of silage removed | E89: 57650 | F89: kg | G89: indtast | H89: =2.2046*E89 -> 127095.19 | I89: lb
B91: Length of Silage Removed | E91: 1.8 | F91: m | G91: indtast | H91: =E91/0.3048 -> 5.905511811 | I91: ft
B92: Bottom Width of Bunker | E92: 12.2 | F92: m | G92: indtast | H92: =E92/0.3048 -> 40.02624672 | I92: ft
B93: Silage Depth-Measured from Floor to Bottom of Domed Silage | E93: 3 | F93: m | G93: indtast | H93: =E93/0.3048 -> 9.842519685 | I93: ft
B94: Dome Height above Silage Depth = Maximum silage height minus Pile Depth. | E94: 1 | F94: m | G94: indtast | H94: =E94/0.3048 -> 3.280839895 | I94: ft
B95: Use Dome Height = 0.01 when silage is level on top.
B96: Top Width Measured at Bottom of Domed Silage | E96: 13 | F96: m | G96: indtast | H96: =E96/0.3048 -> 42.65091864 | I96: ft | L96: Feeout 8-11 cm | M96: nederste tabel
L97: Feedout 12-19 cm | M97: midterste tabel
B98: ------------------------------------------------------------------- | L98: Feedout 19 cm og over | M98: øverst
B99: Calculated Volume of Feed Removed | E99: =E105+E109 -> 83.71359841 | F99: m3 | H99: =H105+H109 -> 2956.317828
B100: Average Density of Stored Silage | E100: =E89/E99 -> 688.6575311 | F100: kg/m3 | H100: =H89/H99 -> 42.99104406 | L100: DM under 30 behandles ikke
B101: Average Dry Matter Density of Stored Silage | E101: =E100*(100-E87)/100 -> 241.0301359 | F101: kg DM/m3 | H101: =H100*(100-H87)/100 -> 15.04686542 | I101: lbsDM/cu ft | L101: 30-32,5 | M101: se 30
B102: Feedout Rate | E102: =E91*100/E88 -> 18 | F102: cm/dag | H102: =H91*12/H88 -> 7.874015748 | I102: min 6 inch per day | L102: 32,5-37.5 | M102: se 35
B103: ------------------------------------------------------------------- | G103: Anbefales minimum 15 cm per dag | L103: 37,5 til 45 | M103: se 40
B104: Area Within Bunker Walls | E104: =((E92+E96)/2)*E93 -> 37.8 | F104: m2 | H104: =((H92+H96)/2)*H93 -> 406.8758138 | L104: 45-55 | M104: se 50
B105: Volume of silage below the silage dome | E105: =E91*E104 -> 68.04 | F105: m3 | H105: =H91*H104 -> 2402.809924 | L105: Over 50 behandles ikke
B106: Radius of Silage Dome | E106: =(E96^2/(8*E94))+(E94/2) -> 21.625 | F106: m | H106: =(H96^2/(8*H94))+(H94/2) -> 70.94816273
B107: Radius minus Dome Height | E107: =E106-E94 -> 20.625 | F107: m | H107: =H106-H94 -> 67.66732283 | L107: DM density: Lav kurve
B108: Cross section area of silage in the silage dome | E108: =(E106^2*ACOS(E107/E106))-E107*0.5*E96 -> 8.707554673 | F108: m2 | H108: =(H106^2*ACOS(H107/H106))-H107*0.5*H96 -> 93.72733845
B109: Volume of silage in the silage dome | E109: =E108*E91 -> 15.67359841 | F109: m3 | H109: =H108*H91 -> 553.5079042
B114: removal dry matter loss according to pitt and muck 1993/1994
A116: 9 inch | B116: 9inch=22,86cm | G116: tab på grund af bundmateriale i bunker: 4-6% for asfalt, 6-8 % for macadam. 8-20% for jord, 3-5% for beton (normal)
A117: lbsDM/ft | B117: 30 | C117: 35 | D117: 40 | E117: 50 | F117: DM | G117: ilde: Preventing silage storage losses af Brian Holmes og Richard Muck http://fyi.uwex.edu/forage/files/2014/01/prevent-silage-storage7.pdf
A118: 10 | B118: 2.9 | C118: 3.1 | D118: 3.6 | E118: 4 | F118: tab%
A119: 15 | B119: 1.4 | C119: 2 | D119: 2.5 | E119: 3.2 | F119: tab%
A120: 20 | B120: 0.1 | C120: 1 | D120: 1.5 | E120: 2.3 | F120: tab%
A121: 25 | D121: 0.8 | E121: 1.9 | F121: tab%
A123: 15,24cm
A124: dens | B124: 30 | C124: 35 | D124: 40 | E124: 50 | F124: dm
A125: 10 | B125: 3.8 | C125: 4 | D125: 4.5 | E125: 5.1 | F125: tab%
A126: 15 | B126: 2 | C126: 2.8 | D126: 3.2 | E126: 4.2 | F126: tab%
A127: 20 | B127: 0.1 | C127: 1.2 | D127: 2 | E127: 2.8 | F127: tab%
A128: 25 | D128: 1 | E128: 2.2 | F128: tab%
A129: 7,62cm
A130: dens | B130: 30 | C130: 35 | D130: 40 | E130: 50
A131: 10 | B131: 7.1 | C131: 8.1 | D131: 9.1 | E131: 10.1
A132: 15 | B132: 4 | C132: 5.5 | D132: 6.8 | E132: 8.5
A133: 20 | B133: 0.5 | C133: 2.8 | D133: 4.1 | E133: 6.8
A134: 25 | D134: 1.9 | E134: 4.8
B136: Density and feedout rate affect amount of air exposure prior to use. In loosely packed silage, oxygen pentrates deeply into the silage from the open face
B137: Feed out rate (cm removed/day) influence avarage loss. If only 5 cm is removed every day and ex 10% er lost of the first 5 cm then all of the silage will have some loss, if 20 cm was removed every day, then 5 cm will have 10% loss and the remaining 15 cm will have leeser loss. if no loss after 5 cm, then avarage loss would be 2.5% instead of 10%

Sheet Raw data Beets
A1: (Fodder)Roer
B2: Opdateret fra Farmtal online 10-11-2017
C3: Seeds | D3: N | E3: P | F3: K | G3: Manure | H3: Weeds/disease | I3: Ploughing | J3: Harrowing | K3: Spredding manure | L3: Fertilizer spreading | M3: Sowing | N3: Rolling | O3: Spred pestizide | P3: Harvest | Q3: Watering | R3: watering, moving of | S3: watering pr. ml | T3: Other tasks
B4: JB 1-3 | C4: 1 | D4: 190 | E4: 23 | F4: 213 | G4: 0 | H4: 1 | I4: 1 | J4: 2 | K4: 1 | L4: 1 | M4: 1 | N4: 1 | O4: 6 | P4: 1 | Q4: 0 | R4: 0 | S4: 0 | T4: 1
B5: JB 1-4 + watering | C5: 1 | D5: 224 | E5: 29 | F5: 280 | G5: 0 | H5: 1 | I5: 1 | J5: 2 | K5: 1 | L5: 1 | M5: 1 | N5: 1 | O5: 6 | P5: 1 | Q5: 1 | R5: 2 | S5: 5 | T5: 1
B6: JB 5-6 | C6: 1 | D6: 209 | E6: 30 | F6: 281 | G6: 0 | H6: 1 | I6: 1 | J6: 2 | K6: 1 | L6: 1 | M6: 1 | N6: 1 | O6: 6 | P6: 1 | Q6: 0 | R6: 0 | S6: 0 | T6: 1
B7: JB 1-3+ manure | C7: 1 | D7: 64 | E7: 0 | F7: 0 | G7: 40 | H7: 1 | I7: 1 | J7: 2 | K7: -40 | L7: 1 | M7: 1 | N7: 1 | O7: 6 | P7: 1 | Q7: 0 | R7: 0 | S7: 0 | T7: 1
B8: JB 1-4 + manure+ water | C8: 1 | D8: 98 | E8: 0 | F8: 0 | G8: 40 | H8: 1 | I8: 1 | J8: 2 | K8: -40 | L8: 1 | M8: 1 | N8: 1 | O8: 6 | P8: 1 | Q8: 1 | R8: 2 | S8: 5 | T8: 1
B9: JB 5-6 + manure + water | C9: 1 | D9: 83 | E9: 0 | F9: 0 | G9: 40 | H9: 1 | I9: 1 | J9: 2 | K9: -40 | L9: 1 | M9: 1 | N9: 1 | O9: 6 | P9: 1 | Q9: 0 | R9: 0 | S9: 0 | T9: 1
B11: JB 1-3 | C11: -1300 | D11: -6.3 | E11: -12 | F11: -5 | G11: 0 | H11: -2245 | I11: -608 | J11: -152 | K11: 0 | L11: -133 | M11: -523 | N11: -165 | O11: -215 | P11: -1613 | Q11: 0 | R11: 0 | S11: 0 | T11: -500
B12: JB 1-4 m. watering | C12: -1300 | D12: -6.3 | E12: -12 | F12: -5 | G12: 0 | H12: -2245 | I12: -608 | J12: -152 | K12: 0 | L12: -133 | M12: -523 | N12: -165 | O12: -215 | P12: -1862 | Q12: -1200 | R12: -120 | S12: -70 | T12: -500
B13: JB 5-6 | C13: -1300 | D13: -6.3 | E13: -12 | F13: -5 | G13: 0 | H13: -2245 | I13: -675 | J13: -160 | K13: 0 | L13: -140 | M13: -550 | N13: -165 | O13: -215 | P13: -1938 | Q13: 0 | R13: 0 | S13: 0 | T13: -500
B14: JB 1-3 with manure | C14: -1300 | D14: -6.3 | E14: - | F14: - | G14: 0 | H14: -2245 | I14: -608 | J14: -152 | K14: 20 | L14: -133 | M14: -523 | N14: -165 | O14: -215 | P14: -1613 | Q14: 0 | R14: 0 | S14: 0 | T14: -500
B15: JB 1-4 m. manure and watering | C15: -1300 | D15: -6.3 | E15: - | F15: - | G15: 0 | H15: -2245 | I15: -608 | J15: -152 | K15: 20 | L15: -133 | M15: -523 | N15: -165 | O15: -215 | P15: -1862 | Q15: -1200 | R15: -120 | S15: -70 | T15: -500
B16: JB 5-6 m. manure | C16: -1300 | D16: -6.3 | E16: - | F16: - | G16: 0 | H16: -2245 | I16: -675 | J16: -160 | K16: 20 | L16: -140 | M16: -550 | N16: -165 | O16: -215 | P16: -1938 | Q16: 0 | R16: 0 | S16: 0 | T16: -500
A18: 1 | B18: JB 1-3 | C18: =C4*C11 -> -1300 | D18: -1197 | E18: -276 | F18: -1065 | G18: 0 | H18: -2245 | I18: -608 | J18: -304 | K18: 0 | L18: =L4*L11 -> -133 | M18: -523 | N18: -165 | O18: -1290 | P18: -1613 | Q18: 0 | R18: 0 | S18: 0 | T18: -500
A19: 2 | B19: JB 1-4 + watering | C19: -1300 | D19: -1411.2 | E19: -348 | F19: -1400 | G19: 0 | H19: -2245 | I19: -608 | J19: -304 | K19: 0 | L19: =L5*L12 -> -133 | M19: -523 | N19: -165 | O19: -1290 | P19: -1862 | Q19: -1200 | R19: -240 | S19: -350 | T19: -500
A20: 3 | B20: JB 5-6 | C20: -1300 | D20: -1316.7 | E20: -360 | F20: -1405 | G20: 0 | H20: -2245 | I20: -675 | J20: -320 | K20: 0 | L20: =L6*L13 -> -140 | M20: -550 | N20: -165 | O20: -1290 | P20: -1938 | Q20: 0 | R20: 0 | S20: 0 | T20: -500
A21: 4 | B21: JB 1-3 + manure | C21: =C7*C14 -> -1300 | D21: -403.2 | E21: 0 | F21: 0 | G21: =G7*G14 -> 0 | H21: -2245 | I21: -608 | J21: -304 | K21: -800 | L21: =L7*L14 -> -133 | M21: -523 | N21: -165 | O21: -1290 | P21: -1613 | Q21: 0 | R21: 0 | S21: 0 | T21: -500
A22: 5 | B22: JB 1-4 + manure and watering | C22: -1300 | D22: -617.4 | E22: 0 | F22: 0 | G22: 0 | H22: -2245 | I22: -608 | J22: -304 | K22: -800 | L22: =L8*L15 -> -133 | M22: -523 | N22: -165 | O22: -1290 | P22: -1862 | Q22: -1200 | R22: -240 | S22: -350 | T22: -500
A23: 6 | B23: JB 5-6 + manure | C23: -1300 | D23: -522.9 | E23: 0 | F23: 0 | G23: 0 | H23: -2245 | I23: -675 | J23: -320 | K23: -800 | L23: =L9*L16 -> -140 | M23: -550 | N23: -165 | O23: -1290 | P23: -1938 | Q23: 0 | R23: 0 | S23: 0 | T23: -500
D26: Capacity | E26: water | F26: water
C27: kr./hr. | D27: ton/hr. | E27: L/ton | F27: kr./ton beet
A28: 1 | B28: Elephant beet washer | C28: =[1]Forudsætninger!M32 -> -1120 | D28: =[1]Forudsætninger!M33 -> 70 | E28: =[1]Forudsætninger!M34 -> 50 | F28: =E28*[1]Forudsætninger!V9 -> -0.3
A29: 2 | B29: KWS wet wash | C29: =[1]Forudsætninger!M35 -> -1120 | D29: =[1]Forudsætninger!M36 -> 50 | E29: =[1]Forudsætninger!M37 -> 40 | F29: =E29*[1]Forudsætninger!V9 -> -0.24
A30: 3 | B30: No further cleaning
B31: Thyregod dry washing
A33: 1 | B33: Whole beets/silage pit | C33: Whole beets
A34: 2 | B34: Beet pulp | C34: Beet pulp
I35: Building | J35: Coating/cover
B36: Silos | C36: m3 | D36: Cost | E36: Tank coating | F36: Cover | G36: Preparing | H36: Total costs | I36: Interest, % | J36: Service life/Yr | K36: Service life/Yr | L36: Yearly payment | M36: Kr/m3
A37: 1 | B37: 1 | C37: 2000 | D37: 210420 | E37: 106080 | F37: 128000 | G37: =25080+2500 -> 27580 | H37: =SUM(D37:G37) -> 472080 | I37: =Interest -> 0.055 | J37: =loanterm20 -> 20 | K37: 10 | L37: =PMT(I37,J37,H37) -> -39503.33812 | M37: =L37/C37 -> -19.75166906
A38: 2 | B38: 2 | C38: 3000 | D38: 270914 | E38: 148590 | F38: 148000 | G38: =31086+3500 -> 34586 | H38: =SUM(D38:G38) -> 602090 | I38: =Interest -> 0.055 | J38: =loanterm20 -> 20 | K38: 10 | L38: =PMT(I38,J38,H38) -> -50382.48782 | M38: =L38/C38 -> -16.79416261
A39: 3 | B39: 3 | C39: 4000 | D39: 323900 | E39: 187460 | F39: 165000 | G39: =39600+4500 -> 44100 | H39: =SUM(D39:G39) -> 720460 | I39: =Interest -> 0.055 | J39: =loanterm20 -> 20 | K39: 10 | L39: =PMT(I39,J39,H39) -> -60287.61012 | M39: =L39/C39 -> -15.07190253
A40: 4 | B40: 4 | C40: 5000 | D40: 415500 | E40: 202020 | F40: 175000 | G40: =42000+4500 -> 46500 | H40: =SUM(D40:G40) -> 839020 | I40: =Interest -> 0.055 | J40: =loanterm20 -> 20 | K40: 10 | L40: =PMT(I40,J40,H40) -> -70208.63149 | M40: =L40/C40 -> -14.0417263
C42: pris
A43: 1 | B43: Shovel loader | C43: =[1]Forudsætninger!I29 -> -675 | D43: =[1]Forudsætninger!I30 -> 0.56
A44: 2 | B44: Beetloader with dry clean shovel | C44: =[1]Forudsætninger!I26 -> -12 | D44: =[1]Forudsætninger!I27 -> 0.1
B48: Elephant beet washer, kr/time | C48: -1120
B49: Kapacitet, ton/time | C49: 70
B50: Vandforbrug, L/ton | C50: 50
B51: KWS vådvasker, kr/time | C51: -1120
B52: Kapacitet, ton/time | C52: 50
B53: Vandforbrug, L/ton | C53: 40

Sheet Cases Eng
A1: meadow grass case | D1: Note: Some calculations needs to be recalculated if entries in original sheets are chamges
A4: Facility pays 55 øre/kg TS, græs
A10: From Meadow grass sheet
A12: Opdyrket areal | B12: ='Meadow grass'!C5 -> 12 | C12: ='Meadow grass'!D5 -> ha.
A13: Yield | B13: ='Meadow grass'!C6 -> 5.5 | C13: ='Meadow grass'!D6 -> ton/ha.
A14: Dry matter | B14: ='Meadow grass'!C7 -> 0.8 | C14: ='Meadow grass'!D7 -> %
A15: Organic matter - VS/TS | B15: ='Meadow grass'!C8 -> 0.68 | C15: ='Meadow grass'!D8 -> %
A16: Bale weight | B16: ='Meadow grass'!C9 -> 0.28 | C16: ='Meadow grass'!D9 -> ton/bale
A17: Transport udover 12 km | B17: =IF(MeaDistance>0,'Meadow grass'!C29&" km using "&'Meadow grass'!A30,"No") -> 15 km using Tractor & trailer
A19: Meadow wetness | B19: =IF('Meadow grass'!AG3=1,"Moist meadow","Wet meadow") -> Moist meadow
A20: Storage | B20: =IF('Meadow grass'!AG7=3,"No storage/open storage",(IF('Meadow grass'!AG7=2,"Covered by pressenning","Pomi tubewrap"))) -> No storage/open storage
A23: Case 1: No extrusion, open storage of round bales, transportation less than 12 km.
A24: Facility pays 55 øre/kgTS, which yield is needed?
A26: 55 øre/kgTS equals | B26: =0.55*1000 -> 550 | C26: kr/tonTS
A27: 55 øre/kgTS equals | B27: =B26*B14/100 -> 4.4 | C27: kr/ton
A29: yield/ ha. | B29: kr/ton
A30: 1 | B30: 2067
A31: 3 | B31: 689
A32: 5 | B32: 413
A33: 7 | B33: 295
A34: 10 | B34: 207
A36: Minimums yield is | B36: =2069*B27^-1 -> 470.2272727 | C36: ton/ha.
A45: Case 2: No extrusion, open storage, 20 km transport by tractor
A46: Hvad skal udbyttet være for at prisen på 55 øre/kgTS opnås?
A48: Yield/ ha. | B48: kr/ton
A49: 1 | B49: 2114
A50: 3 | B50: 736
A51: 5 | B51: 460
A52: 7 | B52: 342
A53: 10 | B53: 253
A56: Minimum yield | B56: =3821.2*440^-1.08 -> 5.336676513 | C56: ton/ha.
A66: Case 3: No extrusion, open storage, yield is 5.8 ton/ha, Max total cost 55 øre/kgTS
A67: What is max distance by tractor?
A69: Distance field to facility | B69: kr/ton
A70: 12 | B70: 356
A71: 15 | B71: 374
A72: 17 | B72: 385
A73: 20 | B73: 403
A74: 25 | B74: 432
A75: 30 | B75: 455
A77: Max distance is | B77: =0.1796*B27-52.17 -> -51.37976 | C77: km
A86: Case 4: As case 3, when is reload to lorry cheapest?
B88: Tractor | C88: Reload & Lorry
A89: Distance field to facility | B89: kr/ton | C89: kr/ton
A90: 17 | B90: 385 | C90: 431
A91: 20 | B91: 403 | C91: 437
A92: 25 | B92: 432 | C92: 447
A93: 30 | B93: 455 | C93: 454
A94: 35 | B94: 484 | C94: 466
A95: 40 | B95: 514 | C95: 474
A98: Max distance by lorry is: | B98: =0.5326*B27-212.63 -> -210.28656 | C98: km
A99: that is, if price is 440 kr/ton, then lorry transport will be too costly, no matter distance.
A102: Case 5: As case 4, if grass prices were higher, when is reload cheapest?
A105: X | B105: Cross point | C105: Distance
A106: =5.52-1.87 -> 3.65 | B106: =399.41-291.92 -> 107.49 | C106: =B106/A106 -> 29.44931507
A108: If distance is higher than 29,5 km, reload to lorry is cheapest.

Sheet Ark1
A1: Revenue
A4: Total biogas production
D5: m3 biogas/year
A7: Methane energy content | D7: 0.6

Sheet Raw Clover 3 cut
A1: Sædskiftegræs 4 slæt | B1: Clover grass 3 cuts
A2: Ajourført 10/11 2017 | D2: Seeds | E2: N | F2: P | G2: K | H2: Manure | I2: Plastic | J2: Manure spredding | K2: Fertilizer, spred | L2: Sowing | M2: Mowing | N2: Raking | O2: Fine cutting, driving, handling | P2: Watering | Q2: watering, moving of | R2: watering pr. ml | S2: Other tasks
C3: JB 1-3 | D3: 9 | E3: 284 | F3: 35 | G3: =262-6 -> 256 | H3: 0 | I3: =173-18 -> 155 | J3: 0 | K3: 3 | L3: 0.5 | M3: 3 | N3: 3 | O3: 3 | P3: 0 | Q3: 0 | R3: 0 | S3: 1
C4: JB 1-4 + watering | D4: 9 | E4: 299 | F4: 43 | G4: =316-6 -> 310 | H4: 0 | I4: =212-18 -> 194 | J4: 0 | K4: 3 | L4: 0.5 | M4: 3 | N4: 3 | O4: 3 | P4: 1 | Q4: 3 | R4: 150 | S4: 1
C5: JB 5-6 | D5: 9 | E5: 289 | F5: 37 | G5: =257-6 -> 251 | H5: 0 | I5: =185-18 -> 167 | J5: 0 | K5: 3 | L5: 0.5 | M5: 3 | N5: 3 | O5: 3 | P5: 0 | Q5: 0 | R5: 0 | S5: 1
C6: JB 1-3+ manure | D6: 9 | E6: 95 | F6: 0 | G6: 0 | H6: 60 | I6: =173-18 -> 155 | J6: 60 | K6: 1 | L6: 0.5 | M6: 3 | N6: 3 | O6: 3 | P6: 0 | Q6: 0 | R6: 0 | S6: 1
C7: JB 1-4 + manure+ water | D7: 9 | E7: 110 | F7: 0 | G7: 0 | H7: 60 | I7: =212-18 -> 194 | J7: 60 | K7: 1 | L7: 0.5 | M7: 3 | N7: 3 | O7: 3 | P7: 1 | Q7: 3 | R7: 150 | S7: 1
C8: JB 5-6 + manure + water | D8: 9 | E8: 100 | F8: 0 | G8: 0 | H8: 60 | I8: =185-18 -> 167 | J8: 60 | K8: 1 | L8: 0.5 | M8: 3 | N8: 3 | O8: 3 | P8: 0 | Q8: 0 | R8: 0 | S8: 1
C10: JB 1-3 | D10: -38.5 | E10: -6.3 | F10: -12 | G10: -5 | H10: 0 | I10: -2.2 | J10: -21 | K10: -133 | L10: -380 | M10: =-275*1.15 -> -316.25 | N10: =-175*0.85 -> -148.75 | O10: =-714*1.15 -> -821.1 | P10: 0 | Q10: 0 | R10: 0 | S10: -500
C11: JB 1-4 + watering | D11: -38.5 | E11: -6.3 | F11: -12 | G11: -5 | H11: 0 | I11: -2.2 | J11: -21 | K11: -133 | L11: -380 | M11: =-275*1.15 -> -316.25 | N11: =-175*0.85 -> -148.75 | O11: =1.15*-807 -> -928.05 | P11: -1200 | Q11: -120 | R11: -5 | S11: -500
C12: JB 5-6 | D12: -38.5 | E12: -6.3 | F12: -12 | G12: -5 | H12: 0 | I12: -2.2 | J12: -21 | K12: -140 | L12: -400 | M12: -316.25 | N12: -148.75 | O12: =1.15*-751 -> -863.65 | P12: 0 | Q12: 0 | R12: 0 | S12: -500
C13: JB 1-3+ manure | D13: -38.5 | E13: -6.3 | F13: -12 | G13: -5 | H13: 0 | I13: -2.2 | J13: -21 | K13: -133 | L13: -380 | M13: -316.25 | N13: -148.75 | O13: =1.15*-710 -> -816.5 | P13: 0 | Q13: 0 | R13: 0 | S13: -500
C14: JB 1-4 + manure+ water | D14: -38.5 | E14: -6.3 | F14: -12 | G14: -5 | H14: 0 | I14: -2.2 | J14: -21 | K14: -133 | L14: -380 | M14: -316.25 | N14: -148.75 | O14: =1.15*-807 -> -928.05 | P14: -1200 | Q14: -120 | R14: -5 | S14: -500
C15: JB 5-6 + manure + water | D15: -38.5 | E15: -6.3 | F15: -12 | G15: -5 | H15: 0 | I15: -2.2 | J15: -23 | K15: -140 | L15: -400 | M15: -316.25 | N15: -148.75 | O15: =1.15*-751 -> -863.65 | P15: 0 | Q15: 0 | R15: 0 | S15: -500
B17: 1 | C17: JB 1-3 | D17: =D3*D10 -> -346.5 | E17: =E3*E10 -> -1789.2 | F17: =F3*F10 -> -420 | G17: =G3*G10 -> -1280 | H17: =H3*H10 -> 0 | I17: -341 | J17: 0 | K17: -399 | L17: -190 | M17: -948.75 | N17: -446.25 | O17: -2463.3 | P17: 0 | Q17: 0 | R17: 0 | S17: =S3*S10 -> -500
B18: 2 | C18: JB 1-4 + watering | D18: =D4*D11 -> -346.5 | E18: -1883.7 | F18: -516 | G18: -1550 | H18: 0 | I18: -426.8 | J18: 0 | K18: -399 | L18: -190 | M18: -948.75 | N18: -446.25 | O18: -2784.15 | P18: -1200 | Q18: -360 | R18: -750 | S18: -500
B19: 3 | C19: JB 5-6 | D19: -346.5 | E19: -1820.7 | F19: -444 | G19: -1255 | H19: 0 | I19: -367.4 | J19: 0 | K19: -420 | L19: -200 | M19: -948.75 | N19: -446.25 | O19: -2590.95 | P19: 0 | Q19: 0 | R19: 0 | S19: -500
B20: 4 | C20: JB 1-3+ manure | D20: -346.5 | E20: -598.5 | F20: 0 | G20: 0 | H20: 0 | I20: -341 | J20: =J6*J13 -> -1260 | K20: -133 | L20: -190 | M20: -948.75 | N20: -446.25 | O20: -2449.5 | P20: 0 | Q20: 0 | R20: 0 | S20: -500
B21: 5 | C21: JB 1-4 + manure+ water | D21: -346.5 | E21: -693 | F21: 0 | G21: 0 | H21: 0 | I21: -426.8 | J21: -1260 | K21: -133 | L21: -190 | M21: -948.75 | N21: -446.25 | O21: -2784.15 | P21: -1200 | Q21: -360 | R21: -750 | S21: -500
B22: 6 | C22: JB 5-6 + manure + water | D22: -346.5 | E22: -630 | F22: 0 | G22: 0 | H22: 0 | I22: -367.4 | J22: -1380 | K22: -140 | L22: -200 | M22: -948.75 | N22: -446.25 | O22: -2590.95 | P22: 0 | Q22: 0 | R22: 0 | S22: -500
D25: kr/time | E25: kapacitet | F25: km/time
B26: 1 | C26: Tractor dumper | D26: =T_Tipvogn -> -625 | E26: =Normer!C25 -> 35 | F26: =TractorSpeedRoad -> 25
B27: 2 | C27: Lorry dumper | D27: =L_Dumper -> -675 | E27: =LorryDumpCap -> 55 | F27: =LorrySpeed -> 51.5
B30: Græsensilage kørsilo
F31: Udnyttelse
B32: Volume | C32: Højde | D32: 3 | E32: meter | F32: 3.2
C33: Længde | D33: 50 | E33: meter | F33: 45
C34: Brede | D34: 16 | E34: meter | F34: 15
B35: m3 i alt | D35: =D32*D33*D34 -> 2400 | F35: =F32*F33*F34 -> 2160
B37: Pris på anlægget
B38: L -elementer | C38: 3x1 meter | D38: -2300 | E38: kr
B39: Bund | C39: m2 | D39: -500 | E39: kr
B41: Omkostninger i alt
B42: Bund | F42: =D39*D33*D34 -> -400000 | G42: kr.
B43: Sider 2x 50+16 | F43: =(46+D33+D34)*D38 -> -257600 | G43: kr.
B44: I alt | F44: =F42+F43 -> -657600 | G44: kr.
B45: Jordarbejde mm + 10 pct | D45: 10 | F45: =F44+(F44*D45/100) -> -723360 | G45: kr.
B46: Cover | F46: ='Raw data Maize'!G55 -> -2400 | G46: kr.
B47: Labour | C47: =Tabels!C68 -> Arbejdstimer | D47: 6 | F47: =D47*timeløn -> -720 | G47: kr.
B48: Yearly costs, 20 yrs | F48: =-PMT(Interest,20,F45)+F46+F47 -> -63650.28017 | G48: kr./år
B49: Cost per m3 | F49: =F48/F35 -> -29.4677223 | G49: kr/m3
B51: Beregnet densitet af ensileret græs udfra stakhøjde og TS% | F51: =(255-(2.7*F52*100)+(6.7*F32)) -> 227.84 | G51: kgTS/m3 | I51: Density ensiled grass measured
B52: TS % i græs | F52: =Ley!C9 -> 0.18 | I52: Lenght of pile/clamp | K52: =F33 -> 45 | L52: m
B53: TS vægt i siloen | F53: =F51*F35 -> 492134.4 | G53: KgTS | I53: Bottom width | K53: =D34 -> 16 | L53: m
B54: Pris pr. ton TS | F54: =F48/F53 -> -0.1293351576 | G54: kr.KgTS | I54: Top width under dome | K54: =F34 -> 15 | L54: m
F55: =F49/DensCalcGrass -> -0.1293351576 | I55: Height under dome | K55: 3.2 | L55: m | M55: =(K54^2/(8*K56))+(K56/2) -> 88.050625
B56: v. TS30% er der 595 kg vådvægt per m3 | F56: =F49/595*1000 -> -49.5255837 | G56: kr/ton WW | I56: Dome height | K56: 0.32 | L56: m | M56: =M55-K56 -> 87.730625
I57: Area of silage | K57: =(((K53+K54)/2)*K55)+((M55^2*ACOS(M56/M55))-M56*0.5*K54) -> 52.80116478 | L57: m2 | M57: =((M55^2*ACOS(M56/M55))-M56*0.5*K54) -> 3.201164782
I58: Lenght of slide | K58: 0.8 | L58: m
I59: Weight of slide | K59: 8.3 | L59: ton
B60: Grass Silage Density | I60: Measured Silage Density in this pile | K60: =K59/(K57*K58) -> 0.1964918775 | L60: ton/m3
B61: Silage Dry Matter | C61: Silage Density | D61: kgTS/m3
B62: (%) | C62: (kg fresh weight/cubic metre)
B63: 18 | C63: 760 | D63: =C63*B63*0.01 -> 136.8
B64: 19 | C64: 740 | D64: =C64*B64*0.01 -> 140.6
B65: 20 | C65: 725 | D65: 145
B66: =B65+1 -> 21 | C66: 715 | D66: 150.15
B67: 22 | C67: 695 | D67: 152.9
B68: 23 | C68: 690 | D68: 158.7
B69: 24 | C69: 670 | D69: 160.8
B70: 25 | C70: 665 | D70: 166.25
B71: 26 | C71: 650 | D71: 169
B72: 27 | C72: 640 | D72: 172.8
B73: 28 | C73: 630 | D73: 176.4
B74: 29 | C74: 620 | D74: 179.8
B75: 30 | C75: 615 | D75: 184.5
B76: 31 | C76: 595 | D76: 184.45
B77: 32 | C77: 580 | D77: 185.6
B78: 33 | C78: 570 | D78: 188.1
B79: 34 | C79: 560 | D79: 190.4
B80: 35 | C80: 545 | D80: 190.75
B81: 36 | C81: 535 | D81: 192.6
B82: 37 | C82: 520 | D82: 192.4
B83: 38 | C83: 510 | D83: 193.8
B84: 39 | C84: 500 | D84: 195
B85: 40 | C85: 485 | D85: 194
B86: =B85+1 -> 41 | C86: 475 | D86: 194.75
B87: =B86+1 -> 42 | C87: 460 | D87: 193.2
B88: =B87+1 -> 43 | C88: 450 | D88: 193.5
B89: =B88+1 -> 44 | C89: 440 | D89: 193.6
B90: =B89+1 -> 45 | C90: 430 | D90: 193.5

Sheet Raw data Ley
A1: Sædskiftegræs 4 slæt | B1: Ley grass
A2: Ajourført 25-06-2018 | D2: Seeds | E2: N | F2: P | G2: K | H2: Manure | I2: Plastic | J2: Manure spredding | K2: Fertilizer, spred | L2: Sowing | M2: Mowing | N2: Raking | O2: Fine cutting, driving, handling | P2: Watering | Q2: watering, moving of | R2: watering pr. ml | S2: Other tasks
C3: JB 1-3 | D3: 9 | E3: 284 | F3: 36 | G3: 262 | H3: 0 | I3: 173 | J3: 0 | K3: 3 | L3: 0.5 | M3: 4 | N3: 4 | O3: 4 | P3: 0 | Q3: 0 | R3: 0 | S3: 1
C4: JB 1-4 + watering | D4: 9 | E4: 299 | F4: 44 | G4: 316 | H4: 0 | I4: 212 | J4: 0 | K4: 3 | L4: 0.5 | M4: 4 | N4: 4 | O4: 4 | P4: 1 | Q4: 3 | R4: 150 | S4: 1
C5: JB 5-6 | D5: 9 | E5: 289 | F5: 38 | G5: 257 | H5: 0 | I5: 185 | J5: 0 | K5: 3 | L5: 0.5 | M5: 4 | N5: 4 | O5: 4 | P5: 0 | Q5: 0 | R5: 0 | S5: 1
C6: JB 1-3+ manure | D6: 9 | E6: 95 | F6: 0 | G6: 0 | H6: 60 | I6: 173 | J6: 60 | K6: 1 | L6: 0.5 | M6: 4 | N6: 4 | O6: 4 | P6: 0 | Q6: 0 | R6: 0 | S6: 1
C7: JB 1-4 + manure+ water | D7: 9 | E7: 110 | F7: 0 | G7: 0 | H7: 60 | I7: 212 | J7: 60 | K7: 1 | L7: 0.5 | M7: 4 | N7: 4 | O7: 4 | P7: 1 | Q7: 3 | R7: 150 | S7: 1
C8: JB 5-6 + manure + water | D8: 9 | E8: 100 | F8: 0 | G8: 0 | H8: 60 | I8: 185 | J8: 60 | K8: 1 | L8: 0.5 | M8: 4 | N8: 4 | O8: 4 | P8: 0 | Q8: 0 | R8: 0 | S8: 1
C10: JB 1-3 | D10: -38 | E10: -6.5 | F10: -12 | G10: -6 | H10: 0 | I10: -2.2 | J10: -21 | K10: -133 | L10: -380 | M10: -275 | N10: -175 | O10: -714 | P10: 0 | Q10: 0 | R10: 0 | S10: -500
C11: JB 1-4 + watering | D11: -38 | E11: -6.5 | F11: -12 | G11: -6 | H11: 0 | I11: -2.2 | J11: -21 | K11: -133 | L11: -380 | M11: -275 | N11: -175 | O11: -807 | P11: -1200 | Q11: -120 | R11: -5 | S11: -500
C12: JB 5-6 | D12: -38 | E12: -6.5 | F12: -12 | G12: -6 | H12: 0 | I12: -2.2 | J12: -21 | K12: -140 | L12: -400 | M12: -275 | N12: -175 | O12: -751 | P12: 0 | Q12: 0 | R12: 0 | S12: -500
C13: JB 1-3+ manure | D13: -38 | E13: -6.5 | F13: -12 | G13: -6 | H13: 0 | I13: -2.2 | J13: -21 | K13: -133 | L13: -380 | M13: -275 | N13: -175 | O13: -710 | P13: 0 | Q13: 0 | R13: 0 | S13: -500
C14: JB 1-4 + manure+ water | D14: -38 | E14: -6.5 | F14: -12 | G14: -6 | H14: 0 | I14: -2.2 | J14: -21 | K14: -133 | L14: -380 | M14: -275 | N14: -175 | O14: -807 | P14: -1200 | Q14: -120 | R14: -5 | S14: -500
C15: JB 5-6 + manure + water | D15: -38 | E15: -6.5 | F15: -12 | G15: -6 | H15: 0 | I15: -2.2 | J15: -23 | K15: -140 | L15: -400 | M15: -275 | N15: -175 | O15: -751 | P15: 0 | Q15: 0 | R15: 0 | S15: -500
B17: 1 | C17: JB 1-3 | D17: =D3*D10 -> -342 | E17: =E3*E10 -> -1846 | F17: =F3*F10 -> -432 | G17: =G3*G10 -> -1572 | H17: =H3*H10 -> 0 | I17: -380.6 | J17: 0 | K17: -399 | L17: -190 | M17: -1100 | N17: -700 | O17: -2856 | P17: 0 | Q17: 0 | R17: 0 | S17: =S3*S10 -> -500
B18: 2 | C18: JB 1-4 + watering | D18: =D4*D11 -> -342 | E18: -1943.5 | F18: -528 | G18: -1896 | H18: 0 | I18: -466.4 | J18: 0 | K18: -399 | L18: -190 | M18: -1100 | N18: -700 | O18: -3228 | P18: -1200 | Q18: -360 | R18: -750 | S18: -500
B19: 3 | C19: JB 5-6 | D19: -342 | E19: -1878.5 | F19: -456 | G19: -1542 | H19: 0 | I19: -407 | J19: 0 | K19: -420 | L19: -200 | M19: -1100 | N19: -700 | O19: -3004 | P19: 0 | Q19: 0 | R19: 0 | S19: -500
B20: 4 | C20: JB 1-3+ manure | D20: -342 | E20: -617.5 | F20: 0 | G20: 0 | H20: 0 | I20: -380.6 | J20: =J6*J13 -> -1260 | K20: -133 | L20: -190 | M20: -1100 | N20: -700 | O20: -2840 | P20: 0 | Q20: 0 | R20: 0 | S20: -500
B21: 5 | C21: JB 1-4 + manure+ water | D21: -342 | E21: -715 | F21: 0 | G21: 0 | H21: 0 | I21: -466.4 | J21: -1260 | K21: -133 | L21: -190 | M21: -1100 | N21: -700 | O21: -3228 | P21: -1200 | Q21: -360 | R21: -750 | S21: -500
B22: 6 | C22: JB 5-6 + manure + water | D22: -342 | E22: -650 | F22: 0 | G22: 0 | H22: 0 | I22: -407 | J22: -1380 | K22: -140 | L22: -200 | M22: -1100 | N22: -700 | O22: -3004 | P22: 0 | Q22: 0 | R22: 0 | S22: -500
D25: kr/time | E25: kapacitet | F25: km/time
B26: 1 | C26: Tractor dumper | D26: =T_Tipvogn -> -625 | E26: =Normer!C25 -> 35 | F26: =TractorSpeedRoad -> 25
B27: 2 | C27: Lorry dumper | D27: =L_Dumper -> -675 | E27: =LorryDumpCap -> 55 | F27: =LorrySpeed -> 51.5
B30: Græsensilage kørsilo
F31: Udnyttelse
B32: Volume | C32: Højde | D32: 3 | E32: meter | F32: 3.2
C33: Længde | D33: 50 | E33: meter | F33: 45
C34: Brede | D34: 16 | E34: meter | F34: 15
B35: m3 i alt | D35: =D32*D33*D34 -> 2400 | F35: =F32*F33*F34 -> 2160
B37: Pris på anlægget
B38: L -elementer | C38: 3x1 meter | D38: -2300 | E38: kr
B39: Bund | C39: m2 | D39: -500 | E39: kr
B41: Omkostninger i alt
B42: Bund | F42: =D39*D33*D34 -> -400000 | G42: kr.
B43: Sider 2x 50+16 | F43: =(46+D33+D34)*D38 -> -257600 | G43: kr.
B44: I alt | F44: =F42+F43 -> -657600 | G44: kr.
B45: Jordarbejde mm + 10 pct | D45: 10 | F45: =F44+(F44*D45/100) -> -723360 | G45: kr.
B46: Cover | F46: ='Raw data Maize'!G55 -> -2400 | G46: kr.
B47: Labour | C47: =Tabels!C68 -> Arbejdstimer | D47: 6 | F47: =D47*timeløn -> -720 | G47: kr.
B48: Yearly costs, 20 yrs | F48: =-PMT(Interest,20,F45)+F46+F47 -> -63650.28017 | G48: kr./år
B49: Cost per m3 | F49: =F48/F35 -> -29.4677223 | G49: kr/m3
B51: Beregnet densitet af ensileret græs udfra stakhøjde og TS% | F51: =(255-(2.7*F52*100)+(6.7*F32)) -> 227.84 | G51: kgTS/m3 | I51: Density ensiled grass measured
B52: TS % i græs | F52: =Ley!C9 -> 0.18 | I52: Lenght of pile/clamp | K52: =F33 -> 45 | L52: m
B53: TS vægt i siloen | F53: =F51*F35 -> 492134.4 | G53: KgTS | I53: Bottom width | K53: =D34 -> 16 | L53: m
B54: Pris pr. ton TS | F54: =F48/F53 -> -0.1293351576 | G54: kr.KgTS | I54: Top width under dome | K54: =F34 -> 15 | L54: m
F55: =F49/DensCalcGrass -> -0.1293351576 | I55: Height under dome | K55: 3.2 | L55: m | M55: =(K54^2/(8*K56))+(K56/2) -> 88.050625
B56: v. TS30% er der 595 kg vådvægt per m3 | F56: =F49/595*1000 -> -49.5255837 | G56: kr/ton WW | I56: Dome height | K56: 0.32 | L56: m | M56: =M55-K56 -> 87.730625
I57: Area of silage | K57: =(((K53+K54)/2)*K55)+((M55^2*ACOS(M56/M55))-M56*0.5*K54) -> 52.80116478 | L57: m2 | M57: =((M55^2*ACOS(M56/M55))-M56*0.5*K54) -> 3.201164782
I58: Lenght of slide | K58: 0.8 | L58: m
I59: Weight of slide | K59: 8.3 | L59: ton
B60: Grass Silage Density | I60: Measured Silage Density in this pile | K60: =K59/(K57*K58) -> 0.1964918775 | L60: ton/m3
B61: Silage Dry Matter | C61: Silage Density | D61: kgTS/m3
B62: (%) | C62: (kg fresh weight/cubic metre)
B63: 18 | C63: 760 | D63: =C63*B63*0.01 -> 136.8
B64: 19 | C64: 740 | D64: =C64*B64*0.01 -> 140.6
B65: 20 | C65: 725 | D65: 145
B66: =B65+1 -> 21 | C66: 715 | D66: 150.15
B67: 22 | C67: 695 | D67: 152.9
B68: 23 | C68: 690 | D68: 158.7
B69: 24 | C69: 670 | D69: 160.8
B70: 25 | C70: 665 | D70: 166.25
B71: 26 | C71: 650 | D71: 169
B72: 27 | C72: 640 | D72: 172.8
B73: 28 | C73: 630 | D73: 176.4
B74: 29 | C74: 620 | D74: 179.8
B75: 30 | C75: 615 | D75: 184.5
B76: 31 | C76: 595 | D76: 184.45
B77: 32 | C77: 580 | D77: 185.6
B78: 33 | C78: 570 | D78: 188.1
B79: 34 | C79: 560 | D79: 190.4
B80: 35 | C80: 545 | D80: 190.75
B81: 36 | C81: 535 | D81: 192.6
B82: 37 | C82: 520 | D82: 192.4
B83: 38 | C83: 510 | D83: 193.8
B84: 39 | C84: 500 | D84: 195
B85: 40 | C85: 485 | D85: 194
B86: =B85+1 -> 41 | C86: 475 | D86: 194.75
B87: =B86+1 -> 42 | C87: 460 | D87: 193.2
B88: =B87+1 -> 43 | C88: 450 | D88: 193.5
B89: =B88+1 -> 44 | C89: 440 | D89: 193.6
B90: =B89+1 -> 45 | C90: 430 | D90: 193.5

Sheet Raw Clover
A1: Sædskiftegræs/hvidkløvergræs til slæt, 4 slæt | B1: Clover grass 4 cuts
A2: Ajourført 10-11-2017 | D2: Seeds | E2: N | F2: P | G2: k | H2: Manure | I2: Plastic | J2: Manure spredding | K2: Fertilizer, spred | L2: Sowing | M2: Mowing | N2: Raking | O2: Fine cutting, driving, handling | P2: Watering | Q2: watering, moving of | R2: watering pr. ml | S2: Other tasks
A3: Som ley, men med mere såsæd | C3: JB 1-3 | D3: 20 | E3: 284 | F3: 36 | G3: 262 | H3: 0 | I3: 173 | J3: 0 | K3: 3 | L3: 0.5 | M3: 4 | N3: 4 | O3: 4 | P3: 0 | Q3: 0 | R3: 0 | S3: 1
C4: JB 1-4 + watering | D4: 20 | E4: 299 | F4: 44 | G4: 316 | H4: 0 | I4: 212 | J4: 0 | K4: 3 | L4: 0.5 | M4: 4 | N4: 4 | O4: 4 | P4: 1 | Q4: 3 | R4: 150 | S4: 1
C5: JB 5-6 | D5: 20 | E5: 289 | F5: 38 | G5: 257 | H5: 0 | I5: 185 | J5: 0 | K5: 3 | L5: 0.5 | M5: 4 | N5: 4 | O5: 4 | P5: 0 | Q5: 0 | R5: 0 | S5: 1
C6: JB 1-3+ manure | D6: 20 | E6: 95 | F6: 0 | G6: 0 | H6: 60 | I6: 173 | J6: 60 | K6: 1 | L6: 0.5 | M6: 4 | N6: 4 | O6: 4 | P6: 0 | Q6: 0 | R6: 0 | S6: 1
C7: JB 1-4 + manure+ water | D7: 20 | E7: 110 | F7: 0 | G7: 0 | H7: 60 | I7: 212 | J7: 60 | K7: 1 | L7: 0.5 | M7: 4 | N7: 4 | O7: 4 | P7: 1 | Q7: 3 | R7: 150 | S7: 1
C8: JB 5-6 + manure + water | D8: 20 | E8: 100 | F8: 0 | G8: 0 | H8: 60 | I8: 185 | J8: 60 | K8: 1 | L8: 0.5 | M8: 4 | N8: 4 | O8: 4 | P8: 0 | Q8: 0 | R8: 0 | S8: 1
C10: JB 1-3 | D10: -42 | E10: -6.3 | F10: -12 | G10: -5 | H10: 0 | I10: -2.2 | J10: -21 | K10: -133 | L10: -380 | M10: -275 | N10: -175 | O10: -714 | P10: 0 | Q10: 0 | R10: 0 | S10: -500
C11: JB 1-4 + watering | D11: -42 | E11: -6.3 | F11: -12 | G11: -5 | H11: 0 | I11: -2.2 | J11: -21 | K11: -133 | L11: -380 | M11: -275 | N11: -175 | O11: -807 | P11: -1200 | Q11: -120 | R11: -5 | S11: -500
C12: JB 5-6 | D12: -42 | E12: -6.3 | F12: -12 | G12: -5 | H12: 0 | I12: -2.2 | J12: -21 | K12: -140 | L12: -400 | M12: -275 | N12: -175 | O12: -751 | P12: 0 | Q12: 0 | R12: 0 | S12: -500
C13: JB 1-3+ manure | D13: -42 | E13: -6.3 | F13: -12 | G13: -5 | H13: 0 | I13: -2.2 | J13: -21 | K13: -133 | L13: -380 | M13: -275 | N13: -175 | O13: -710 | P13: 0 | Q13: 0 | R13: 0 | S13: -500
C14: JB 1-4 + manure+ water | D14: -42 | E14: -6.3 | F14: -12 | G14: -5 | H14: 0 | I14: -2.2 | J14: -21 | K14: -133 | L14: -380 | M14: -275 | N14: -175 | O14: -807 | P14: -1200 | Q14: -120 | R14: -5 | S14: -500
C15: JB 5-6 + manure + water | D15: -42 | E15: -6.3 | F15: -12 | G15: -5 | H15: 0 | I15: -2.2 | J15: -23 | K15: -140 | L15: -400 | M15: -275 | N15: -175 | O15: -751 | P15: 0 | Q15: 0 | R15: 0 | S15: -500
B17: 1 | C17: JB 1-3 | D17: =D3*D10 -> -840 | E17: =E3*E10 -> -1789.2 | F17: =F3*F10 -> -432 | G17: =G3*G10 -> -1310 | H17: =H3*H10 -> 0 | I17: -380.6 | J17: 0 | K17: -399 | L17: -190 | M17: -1100 | N17: -700 | O17: -2856 | P17: 0 | Q17: 0 | R17: 0 | S17: =S3*S10 -> -500
B18: 2 | C18: JB 1-4 + watering | D18: =D4*D11 -> -840 | E18: -1883.7 | F18: -528 | G18: -1580 | H18: 0 | I18: -466.4 | J18: 0 | K18: -399 | L18: -190 | M18: -1100 | N18: -700 | O18: -3228 | P18: -1200 | Q18: -360 | R18: -750 | S18: -500
B19: 3 | C19: JB 5-6 | D19: -840 | E19: -1820.7 | F19: -456 | G19: -1285 | H19: 0 | I19: -407 | J19: 0 | K19: -420 | L19: -200 | M19: -1100 | N19: -700 | O19: -3004 | P19: 0 | Q19: 0 | R19: 0 | S19: -500
B20: 4 | C20: JB 1-3+ manure | D20: -840 | E20: -598.5 | F20: 0 | G20: 0 | H20: 0 | I20: -380.6 | J20: =J6*J13 -> -1260 | K20: -133 | L20: -190 | M20: -1100 | N20: -700 | O20: -2840 | P20: 0 | Q20: 0 | R20: 0 | S20: -500
B21: 5 | C21: JB 1-4 + manure+ water | D21: -840 | E21: -693 | F21: 0 | G21: 0 | H21: 0 | I21: -466.4 | J21: -1260 | K21: -133 | L21: -190 | M21: -1100 | N21: -700 | O21: -3228 | P21: -1200 | Q21: -360 | R21: -750 | S21: -500
B22: 6 | C22: JB 5-6 + manure + water | D22: -840 | E22: -630 | F22: 0 | G22: 0 | H22: 0 | I22: -407 | J22: -1380 | K22: -140 | L22: -200 | M22: -1100 | N22: -700 | O22: -3004 | P22: 0 | Q22: 0 | R22: 0 | S22: -500
D25: kr/time | E25: kapacitet | F25: km/time | I25: Fra Mogens Kjeldal okt 2016
B26: 1 | C26: Tractor dumper | D26: =T_Tipvogn -> -625 | E26: =Normer!C25 -> 35 | F26: =TractorSpeedRoad -> 25
B27: 2 | C27: Lorry dumper | D27: =L_Dumper -> -675 | E27: =LorryDumpCap -> 55 | F27: =LorrySpeed -> 51.5
I29: Traktor m frontskårlægger og snittevogn | M29: Skårlægning og opsamlervogn | Q29: Skårlægning og finsnitning
B30: Græsensilage kørsilo | I30: Arbejdsbredde | J30: 3 | K30: m | M30: Arbejdsbredde | N30: 12 | O30: m | Q30: Arbejdsbredde | R30: 12 | S30: m | V30: Priserne virker meget høje
F31: Udnyttelse | I31: hastighed | J31: 10 | K31: km/h | M31: hastighed | N31: 10 | O31: km/h | Q31: hastighed | R31: 10 | S31: km/h
B32: Volume | C32: Højde | D32: 3 | E32: meter | F32: 3.2 | I32: faktor | J32: 0.7 | M32: faktor | N32: 0.6 | Q32: faktor | R32: 0.6
C33: Længde | D33: 50 | E33: meter | F33: 45 | I33: kapacitet | J33: =+J30*J31*J32/10 -> 2.1 | K33: ha/h | M33: kapacitet | N33: =+N30*N31*N32/10 -> 7.2 | O33: ha/h | Q33: kapacitet | R33: =+R30*R31*R32/10 -> 7.2 | S33: ha/h
C34: Brede | D34: 16 | E34: meter | F34: 15 | I34: timepris | J34: 1800 | K34: kr/time | M34: timepris | N34: 1800 | O34: kr/time | Q34: timepris | R34: 1800 | S34: kr/time
B35: m3 i alt | D35: =D32*D33*D34 -> 2400 | F35: =F32*F33*F34 -> 2160 | I35: hektarpris | J35: =+J34/J33 -> 857.1428571 | K35: kr | M35: hektarpris | N35: =+N34/N33 -> 250 | O35: kr/ha | Q35: hektarpris | R35: =+R34/R33 -> 250 | S35: kr/ha
B37: Pris på anlægget | U37: Kan en finsnitter ikke skårlægge?
B38: L -elementer | C38: 3x1 meter | D38: -2300 | E38: kr
B39: Bund | C39: m2 | D39: -500 | E39: kr
B41: Omkostninger i alt | I41: Omlæsning fra traktor | M41: Opsamling
B42: Bund | F42: =D39*D33*D34 -> -400000 | G42: kr. | I42: kapacitet | J42: =J33 -> 2.1 | K42: ha/h | M42: Arbejdsbredde | N42: 12 | O42: m | Q42: Arbejdsbredde | R42: 12 | S42: m
B43: Sider 2x 50+16 | F43: =(46+D33+D34)*D38 -> -257600 | G43: kr. | I43: timepris | J43: 400 | K43: kr/time | M43: hastighed | N43: 5 | O43: km/h | Q43: hastighed | R43: 8 | S43: km/h
B44: I alt | F44: =F42+F43 -> -657600 | G44: kr. | I44: hektarpris | J44: =+J43/J42 -> 190.4761905 | K44: kr/ha | M44: faktor | N44: 0.5 | Q44: faktor | R44: 0.5
B45: Jordarbejde mm + 10 pct | D45: 10 | F45: =F44+(F44*D45/100) -> -723360 | G45: kr. | M45: kapacitet | N45: =+N42*N43*N44/10 -> 3 | O45: ha/h | Q45: kapacitet | R45: =+R42*R43*R44/10 -> 4.8 | S45: ha/h
B46: Cover | F46: ='Raw data Maize'!G55 -> -2400 | G46: kr. | M46: timepris | N46: 1600 | O46: kr/time | Q46: timepris | R46: 2700 | S46: kr/time
B47: Labour | C47: =Tabels!C68 -> Arbejdstimer | D47: 6 | F47: =D47*timeløn -> -720 | G47: kr. | M47: hektarpris | N47: =+N46/N45 -> 533.3333333 | O47: kr | Q47: hektarpris | R47: =+R46/R45 -> 562.5 | S47: kr
B48: Yearly costs, 20 yrs | F48: =-PMT(Interest,20,F45)+F46+F47 -> -63650.28017 | G48: kr./år
B49: Cost per m3 | F49: =F48/F35 -> -29.4677223 | G49: kr/m3
B51: Beregnet densitet af ensileret græs udfra stakhøjde og TS% | F51: =(255-(2.7*F52*100)+(6.7*F32)) -> 227.84 | G51: kgTS/m3
B52: TS % i græs | F52: =Ley!C9 -> 0.18
B53: TS vægt i siloen | F53: =F51*F35 -> 492134.4 | G53: KgTS | M53: kapacitet | N53: =N45 -> 3 | O53: ha/h | Q53: Arbejdsbredde | R53: =+M53 -> kapacitet | S53: m
B54: Pris pr. ton TS | F54: =F48/F53 -> -0.1293351576 | G54: kr.KgTS | M54: timepris | N54: 400 | O54: kr/time | Q54: hastighed | R54: 8 | S54: km/h
F55: =F49/DensCalcGrass -> -0.1293351576 | M55: hektarpris | N55: =+N54/N53 -> 133.3333333 | O55: kr | Q55: faktor | R55: 0.5
B56: v. TS30% er der 595 kg vådvægt per m3 | F56: =F49/595*1000 -> -49.5255837 | G56: kr/ton WW | Q56: kapacitet | R56: =R45 -> 4.8 | S56: ha/h
Q57: timepris | R57: 300 | S57: kr/time
Q58: hektarpris | R58: =+R57/R56 -> 62.5 | S58: kr/ha | U58: =R58+R47 -> 625
B60: Grass Silage Density | Q60: Den sidste her vil jeg gerne regne efter. Jeg er i tvivl om hvordan han har regnet her.
B61: Silage Dry Matter | C61: Silage Density | D61: kgTS/m3 | Q61: Det burde være prisen for aflæsning af græsset for traktor. Gennemgå evt med Henning og Hennings rapport
B62: (%) | C62: (kg fresh weight/cubic metre)
B63: 18 | C63: 760 | D63: =C63*B63*0.01 -> 136.8
B64: 19 | C64: 740 | D64: =C64*B64*0.01 -> 140.6
B65: 20 | C65: 725 | D65: 145
B66: =B65+1 -> 21 | C66: 715 | D66: 150.15
B67: 22 | C67: 695 | D67: 152.9
B68: 23 | C68: 690 | D68: 158.7
B69: 24 | C69: 670 | D69: 160.8
B70: 25 | C70: 665 | D70: 166.25
B71: 26 | C71: 650 | D71: 169 | F71: Density ensiled grass measured | H71: =F33 -> 45 | I71: m
B72: 27 | C72: 640 | D72: 172.8 | F72: Lenght of pile/clamp | H72: =D34 -> 16 | I72: m
B73: 28 | C73: 630 | D73: 176.4 | F73: Bottom width | H73: =F34 -> 15 | I73: m
B74: 29 | C74: 620 | D74: 179.8 | F74: Top width under dome | H74: 3.2 | I74: m | J74: =(H73^2/(8*H75))+(H75/2) -> 88.050625
B75: 30 | C75: 615 | D75: 184.5 | F75: Height under dome | H75: 0.32 | I75: m | J75: =J74-H75 -> 87.730625
B76: 31 | C76: 595 | D76: 184.45 | F76: Dome height | H76: =(((H72+H73)/2)*H74)+((J74^2*ACOS(J75/J74))-J75*0.5*H73) -> 52.80116478 | I76: m2 | J76: =((J74^2*ACOS(J75/J74))-J75*0.5*H73) -> 3.201164782
B77: 32 | C77: 580 | D77: 185.6 | F77: Area of silage | H77: 0.8 | I77: m
B78: 33 | C78: 570 | D78: 188.1 | F78: Lenght of slide | H78: 8.3 | I78: ton
B79: 34 | C79: 560 | D79: 190.4 | F79: Weight of slide | H79: =H78/(H76*H77) -> 0.1964918775 | I79: ton/m3
B80: 35 | C80: 545 | D80: 190.75 | F80: Measured Silage Density in this pile
B81: 36 | C81: 535 | D81: 192.6
B82: 37 | C82: 520 | D82: 192.4
B83: 38 | C83: 510 | D83: 193.8
B84: 39 | C84: 500 | D84: 195
B85: 40 | C85: 485 | D85: 194
B86: =B85+1 -> 41 | C86: 475 | D86: 194.75
B87: =B86+1 -> 42 | C87: 460 | D87: 193.2
B88: =B87+1 -> 43 | C88: 450 | D88: 193.5
B89: =B88+1 -> 44 | C89: 440 | D89: 193.6
B90: =B89+1 -> 45 | C90: 430 | D90: 193.5

Sheet Raw data Maize
B1: Sidst opdateret : Farmtal online: Majs til Helsæd: 10-11-2017
A2: Maize
C3: Seeds | D3: N | E3: P | F3: K | G3: Manure | H3: Weeds | I3: Plastic | J3: Ploughing | K3: Spread manure | L3: Fertilizer | M3: Seed bed harrowing | N3: Seeding | O3: Rolling | P3: Spread pesticide | Q3: Irrigation | R3: Irrigation, moving of | S3: Irrigation pr. ml | T3: Other tasks | U3: Cutting and transport
A4: 1 | B4: JB 1-3 | C4: 2 | D4: 171 | E4: 36 | F4: 151 | H4: 1 | I4: 153 | J4: 1 | L4: 1 | M4: 1 | N4: 1 | O4: 1 | P4: 2 | T4: 1
A5: 2 | B5: JB 1-4 m. vanding | C5: 2 | D5: 187 | E5: 39 | F5: 165 | H5: 1 | I5: 169 | J5: 1 | L5: 1 | M5: 1 | N5: 1 | O5: 1 | P5: 2 | Q5: 1 | R5: 2 | S5: 70 | T5: 1
A6: 3 | B6: JB 5-6 | C6: 2 | D6: 160 | E6: 39 | F6: 144 | H6: 1 | I6: 168 | J6: 1 | L6: 1 | M6: 1 | N6: 1 | O6: 1 | P6: 2 | T6: 1
A7: 1 | B7: JB 1-3 | C7: 2 | D7: 30 | E7: 15 | G7: 3200 | H7: 1 | I7: 153 | J7: 1 | K7: 45 | M7: 1 | N7: 1 | O7: 1 | P7: 2 | T7: 1
A8: 2 | B8: JB 1-4 m. vanding | C8: 2 | D8: 30 | E8: 15 | G8: 3500 | H8: 1 | I8: 169 | J8: 1 | K8: 50 | M8: 1 | N8: 1 | O8: 1 | P8: 2 | Q8: 1 | R8: 2 | S8: 70 | T8: 1
A9: 3 | B9: JB 5-6 | C9: 2 | D9: 30 | E9: 15 | G9: 2900 | H9: 1 | I9: 168 | J9: 1 | K9: 41 | M9: 1 | N9: 1 | O9: 1 | P9: 2 | T9: 1
A11: Enhedspris uden husdyrgødning:
A12: 1 | B12: JB 1-3 | C12: -800 | D12: -6.3 | E12: -12 | F12: -5 | H12: -440 | I12: -2.2 | J12: -608 | L12: -133 | M12: -152 | N12: -475 | O12: -165 | P12: -175 | T12: -500 | U12: -1700
A13: 2 | B13: JB 1-4 m. vanding | C13: -800 | D13: -6.3 | E13: -12 | F13: -5 | H13: -440 | I13: -2.2 | J13: -608 | L13: -133 | M13: -152 | N13: -475 | O13: -165 | P13: -175 | Q13: -1200 | R13: -120 | S13: -5 | T13: -500 | U13: -1785
A14: 3 | B14: JB 5-6 | C14: -800 | D14: -6.3 | E14: -12 | F14: -5 | H14: -440 | I14: -2.2 | J14: -675 | L14: -140 | M14: -160 | N14: -500 | O14: -165 | P14: -175 | T14: -500 | U14: -1777
A15: Enhedspris med husdyrgødning:
A16: 1 | B16: JB 1-3 | C16: -800 | D16: -6.3 | E16: -12 | F16: -5 | H16: -440 | I16: -2.2 | J16: -608 | K16: -20 | M16: -152 | N16: -475 | O16: -165 | P16: -175 | T16: -500 | U16: -1700
A17: 2 | B17: JB 1-4 m. vanding | C17: -800 | D17: -6.3 | E17: -12 | F17: -5 | H17: -440 | I17: -2.2 | J17: -608 | K17: -20 | M17: -152 | N17: -475 | O17: -165 | P17: -175 | Q17: -1200 | R17: -120 | S17: -5 | T17: -500 | U17: -1785
A18: 3 | B18: JB 5-6 | C18: -800 | D18: -6.3 | E18: -12 | F18: -5 | H18: -440 | I18: -2.2 | J18: -675 | K18: -22 | M18: -160 | N18: -500 | O18: -165 | P18: -175 | T18: -500 | U18: -1777
A21: 1 | B21: ='Raw data Beets'!B18 -> JB 1-3 | C21: =C4*C12 -> -1600 | D21: -1077.3 | E21: -432 | F21: -755 | G21: 0 | H21: -440 | I21: -336.6 | J21: -608 | K21: 0 | L21: -133 | M21: -152 | N21: -475 | O21: -165 | P21: -350 | Q21: 0 | R21: 0 | S21: 0 | T21: -500 | U21: =U12 -> -1700
A22: 2 | B22: JB 1-4, water | C22: -1600 | D22: -1178.1 | E22: -468 | F22: -825 | G22: 0 | H22: -440 | I22: -371.8 | J22: -608 | K22: 0 | L22: -133 | M22: -152 | N22: -475 | O22: -165 | P22: -350 | Q22: -1200 | R22: -240 | S22: -350 | T22: -500 | U22: =U13 -> -1785
A23: 3 | B23: ='Raw data Beets'!B20 -> JB 5-6 | C23: -1600 | D23: -1008 | E23: -468 | F23: -720 | G23: 0 | H23: -440 | I23: -369.6 | J23: -675 | K23: 0 | L23: -140 | M23: -160 | N23: -500 | O23: -165 | P23: -350 | Q23: 0 | R23: 0 | S23: 0 | T23: -500 | U23: =U14 -> -1777
A24: 4 | B24: JB 1-3, manure | C24: =C7*C16 -> -1600 | D24: -189 | E24: -180 | F24: 0 | G24: 0 | H24: -440 | I24: -336.6 | J24: -608 | K24: -900 | L24: 0 | M24: -152 | N24: -475 | O24: -165 | P24: -350 | Q24: 0 | R24: 0 | S24: 0 | T24: -500 | U24: =U16 -> -1700
A25: 5 | B25: JB 1-4, man, water | C25: -1600 | D25: -189 | E25: -180 | F25: 0 | G25: 0 | H25: -440 | I25: -371.8 | J25: -608 | K25: -1000 | L25: 0 | M25: -152 | N25: -475 | O25: -165 | P25: -350 | Q25: -1200 | R25: -240 | S25: -350 | T25: -500 | U25: =U17 -> -1785
A26: 6 | B26: JB 5-6, manure | C26: -1600 | D26: -189 | E26: -180 | F26: 0 | G26: 0 | H26: -440 | I26: -369.6 | J26: -675 | K26: -902 | L26: 0 | M26: -160 | N26: -500 | O26: -165 | P26: -350 | Q26: 0 | R26: 0 | S26: 0 | T26: -500 | U26: =U18 -> -1777
C29: kr/time | D29: kapacitet | E29: km/time
A30: 1 | B30: Tractor dumper | C30: =T_Tipvogn -> -625 | D30: =Normer!C25 -> 35 | E30: =TractorSpeedRoad -> 25
A31: 2 | B31: Lorry dumper | C31: =L_Dumper -> -675 | D31: =LorryDumpCap -> 55 | E31: =LorrySpeed -> 51.5
C33: Kapacitet | D33: kr./m3
A34: 1 | B34: Clamp Silo | C34: 1890 | D34: =G59 -> -33.67739692
A35: 2 | B35: Pile | C35: 480 | D35: =S54 -> -4.385
Y36: balleensilering er ikke godt til helsæd
C37: Majsensilage kørsilo med enkeltsider | K37: Stor siloposer | P37: Markstak til majs over 28% TS
G38: Udnyttelse | P38: Majshelsæd markstak | S38: Markstak placeres oftest hvor afgrøden blev høstet
C39: Volume | D39: Højde | E39: 3 | F39: meter | G39: 2.8
D40: Længde | E40: 50 | F40: meter | G40: 45 | P40: Volumen | Q40: Længde | S40: 40 | T40: m
D41: Brede | E41: 16 | F41: meter | G41: 15 | Q41: bredde | S41: 10m-8m
C42: m3 i alt | E42: =E39*E40*E41 -> 2400 | G42: =G39*G40*G41 -> 1890 | Q42: Tværsnitsareal | S42: 12 | T42: m2 | U42: højde 1.5 m
C43: m2 plastik + 20% | E43: =E40*E41*1.2 -> 960 | P43: m3 i alt | S43: =S40*S42 -> 480 | T43: m3
C45: Pris på anlægget
C46: L -elementer | D46: 3x1 meter | E46: 2300 | F46: kr | P46: Underfolie | S46: -540 | T46: Kr. | U46: Rulle på 12x50m
C47: Bund | D47: m2 | E47: 500 | F47: kr | P47: Topfolie | S47: -1200 | T47: Kr. | U47: Rulle på 12x50m
P48: Overdækningsnet | S48: =-(4*1140)/10 -> -456 | T48: Kr. | U48: holdbarhed 10 år
C49: Omkostninger i alt | P49: Dæksider | S49: =-1200/10 -> -120 | T49: kr. | U49: holdbarhed 10 år
C50: Bund | G50: =-E47*E40*E41 -> -400000 | P50: Tildækning | S50: =0.32*(timeløn/60)*S43 -> -307.2 | T50: kr. | U50: Hvert år
C51: Sider 2x 50+16 | G51: =-(46+E40+E41)*E46 -> -257600 | P51: Ilægning | U51: 2 gummigeder, en til tilkørsel, en til pakning
C52: I alt | G52: =G50+G51 -> -657600
C53: Jordarbejde mm + 10 pct | E53: 10 | G53: =G52+(G52*E53/100) -> -723360 | H53: kr. | P53: Samlet årlig omkostning | S53: =S46+S47+(S48/10)+(S49/10)+S50 -> -2104.8 | T53: kr.
C54: Coverplastic pris | G54: -2.5 | H54: kr./m2 | P54: Omkostning per m3 ensilage | S54: =S53/S43 -> -4.385 | T54: Kr./m3
B55: Årlige omkostninger | C55: Cover | G55: =G54*E43 -> -2400 | H55: kr.
B56: Årlige omkostninger | C56: Labour for covering | F56: 6 | G56: =F56*timeløn -> -720 | H56: kr. | P56: Tab fra markstak: Farmtest nr. 63 Ensilering i storpose kontra markstak.
C57: Levetid silo ifølge SKAT | G57: 20 | H57: år | P57: Ensilering i markstak gav 2.6% tab i totalmængde. Lagret fra nov-juli og udtaget fra juli-sep. Dvs. 9-11 mdr lagring
C58: Årlig omkostning | G58: =-PMT(Interest,G57,G53)+G55+G56 -> -63650.28017 | H58: kr/år | P58: En m fra udtagningsfladen er %TS uændret efter udtagning. Selve udtagningsfladen er 20% lavere TS
G59: =G58/G42 -> -33.67739692 | H59: kr/m3 | P59: komprimering 283 kgTs/m3
C61: Silage Density | E61: =Maize!H31 -> 0.1905445514 | F61: tons/m3 | G61: =G59/E61 -> -176.7429017 | H61: kr/ton | P61: Ilægning: Brug tallene fra farmtal online om transport og ilægning. Den må være det samme for køresilo/plansilo og markstak
C62: TS % i græs | E62: =DMMaize -> 0.34 | G62: =G59/(E61*E62) -> -519.8320638 | H62: kr/tonTS
G63: =G62/1000 -> -0.5198320638 | H63: kr/kgTS
C71: Bunker Silo with or without Rounded Top Surface
C73: = | D73: = | E73: = | F73: = | G73: =
C74: Length of Silage Removed (feet)= | G74: 3
C75: Bottom Width of Bunker (feet) = | G75: =G41 -> 15
C76: Silage Depth-Measured from Floor to Bottom of Domed Silage (ft) = | G76: =G39 -> 2.8
C77: Dome Height above Silage Depth = Maximum silage height minus Pile Depth. | G77: 3
C78: Use Dome Height = 0.01 when silage is level on top.
C79: Top Width Measured at Bottom of Domed Silage (feet) = | G79: 14
C80: Bunker Silo Results
C81: ------------------------------------------------------------------- | D81: ------------ | E81: ------------- | F81: ------------ | G81: ---------------------------
C82: Calculated Volume of Feed Removed (cu. feet) = | G82: =+G88+G92 -> 208.8093282
C83: Average Density of Stored Silage (As Fed) (lbs AF/cu ft) = | G83: =+G36/G82 -> 0
C84: Average Dry Matter Density of Stored Silage (lbs DM/cu ft) = | G84: =+G83*(100-G37)/100 -> 0
C85: Feedout Rate (inches per day) = | G85: =+G74*12/G38 -> 
C86: ------------------------------------------------------------------- | D86: ------------ | E86: ------------- | F86: ------------ | G86: ---------------------------
C87: Area Within Bunker Walls (sq ft) = | G87: =((+G75+G79)/2)*G76 -> 40.6
C88: Volume (cu ft)of silage below the silage dome = | G88: =+G74*G87 -> 121.8
C89: Radius of Silage Dome. (ft) | G89: =(G79*G79/(8*G77))+G77/2 -> 9.666666667
C90: Radius minus Dome Height (ft) = | G90: =+G89-G77 -> 6.666666667
C91: Cross section area (sq ft) of silage in the silage dome = | G91: =(+G89^2)*(ACOS(+G90/G89))-(+G90*SQRT((2*G77*G89)-G77^2)) -> 29.00310939
C92: Volume (cu ft) of silage in the silage dome = | G92: =G91*G74 -> 87.00932818

Sheet Bulk Density Tables
B2: Silage Bulk Density Tables | H2: Silage Bulk Density Tables
A4: Grass Silage Density | D4: Maize Silage Density | G4: Whole Crop Silage Density | J4: Whole Crop Silage Density Cont.
A5: Silage Dry Matter | B5: Silage Density | D5: Silage Dry Matter | E5: Silage Density | G5: Silage Dry Matter | H5: Silage Density | J5: Silage Dry Matter | K5: Silage Density
A6: (%) | B6: (kg fresh weight/cubic metre) | D6: (%) | E6: (kg fresh weight/cubic metre) | G6: (%) | H6: (kg fresh weight/cubic metre) | J6: (%) | K6: (kg fresh weight/cubic metre)
A7: 18 | B7: 760 | D7: 25 | E7: 648 | G7: 35 | H7: 607 | J7: 53 | K7: 567
A8: 19 | B8: 740 | D8: 26 | E8: 643 | G8: 36 | H8: 605 | J8: 54 | K8: 565
A9: 20 | B9: 725 | D9: 27 | E9: 638 | G9: 37 | H9: 603 | J9: 55 | K9: 563
A10: =A9+1 -> 21 | B10: 715 | D10: 28 | E10: 633 | G10: 38 | H10: 600 | J10: 56 | K10: 561
A11: 22 | B11: 695 | D11: 29 | E11: 628 | G11: 39 | H11: 598 | J11: 57 | K11: 559
A12: 23 | B12: 690 | D12: 30 | E12: 623 | G12: 40 | H12: 596 | J12: 58 | K12: 556
A13: 24 | B13: 670 | D13: 31 | E13: 618 | G13: 41 | H13: 594 | J13: 59 | K13: 554
A14: 25 | B14: 665 | D14: 32 | E14: 613 | G14: 42 | H14: 592 | J14: 60 | K14: 552
A15: 26 | B15: 650 | D15: 33 | E15: 608 | G15: 43 | H15: 589 | J15: 61 | K15: 550
A16: 27 | B16: 640 | D16: 34 | E16: 603 | G16: 44 | H16: 587 | J16: 62 | K16: 548
A17: 28 | B17: 630 | D17: 35 | E17: 598 | G17: 45 | H17: 585 | J17: 63 | K17: 545
A18: 29 | B18: 620 | G18: 46 | H18: 583 | J18: 64 | K18: 543
A19: 30 | B19: 615 | G19: 47 | H19: 581 | J19: 65 | K19: 541
A20: 31 | B20: 595 | G20: 48 | H20: 578 | J20: 66 | K20: 539
A21: 32 | B21: 580 | G21: 49 | H21: 576 | J21: 67 | K21: 537
A22: 33 | B22: 570 | G22: 50 | H22: 574 | J22: 68 | K22: 534
A23: 34 | B23: 560 | G23: 51 | H23: 572 | J23: 69 | K23: 532
A24: 35 | B24: 545 | G24: 52 | H24: 570 | J24: 70 | K24: 530
A25: 36 | B25: 535
A26: 37 | B26: 520
A27: 38 | B27: 510
A28: 39 | B28: 500
A29: 40 | B29: 485
A30: 41 | B30: 475
A31: 42 | B31: 460
A32: 43 | B32: 450
A33: 44 | B33: 440
A34: 45 | B34: 430

Sheet Silage loss
A1: Silage storage loss
A3: Removal rate
A4: inch | B4: ca. cm
A5: 3 | B5: 8 cm/day
A6: 6 | B6: 15 cm/day
A7: 9 | B7: 23 cm/day
B10: 8 cm

Sheet transporteksempler
A3: Halm og forksellige balletyper
B5: Traktor | D5: Lastbil
B6: Bigballer | C6: Flade | D6: Bigballer | E6: Flade | F6: Tunge | G6: Briketter
A7: Vægt | B7: 550 | C7: 500 | D7: 550 | E7: 500 | F7: 900
A8: Antal | B8: 24 | C8: 36 | D8: 24 | E8: 36 | F8: 24 | I8: baller
A9: Ton/tur | B9: =B7/1000*B8 -> 13.2 | C9: =C7/1000*C8 -> 18 | D9: =D7/1000*D8 -> 13.2 | E9: =E7/1000*E8 -> 18 | F9: =F7/1000*F8 -> 21.6 | G9: 22 | I9: ton/tur
A10: Gns hast | B10: 25 | C10: 25 | D10: 52 | E10: 52 | F10: 52 | G10: 52 | I10: km/t
A11: Timepris | B11: 550 | C11: 550 | D11: 625 | E11: 625 | F11: 625 | G11: 625 | I11: Kr/t
A12: kr/km | B12: =B11/B10 -> 22 | C12: 22 | D12: 12.01923077 | E12: 12.01923077 | F12: 12.01923077 | G12: 12.01923077 | I12: kr/km
A13: kr/ton/km | B13: =B12/B9 -> 1.666666667 | C13: 1.222222222 | D13: 0.9105477855 | E13: 0.6677350427 | F13: 0.5564458689 | G13: 0.5463286713

Sheet Ark2
A1: Efterafgrøder
A3: udbytte 1 ton TS/ha
A4: høstpris 750 kr/ha
A5: Frisk materiale koster 75 kr ved 10% TS
A7: fra kortlægningsrapporten
A10: Dybstrøelse, se også Thorsø Biogas rapport inde i biogasanlægsmappen

Sheet Beregnignsark
A1: Beregningsark | J1: Cost (kr./ton) | N1: 5 km | O1: 10 km | P1: 15 km | Q1: 5 km | R1: 10 km | S1: 20 km
B2: Yield | C2: Yield/ha | D2: DM% | E2: DM ton | F2: VS% | G2: VS ton | H2: m3CH4/tVS | I2: m3 CH4 | J2: Production | K2: Storage | L2: Pretreatment | M2: Losses | N2: Transport to facility | Q2: kr/m3 | R2: kr/m3 | S2: kr/m3
A3: Straw | B3: =StrawYield -> 676 | C3: =Yieldperha -> 3.38 | D3: =Straw!C7 -> 0.89 | E3: =D3*B3 -> 601.64 | F3: =VS -> 0.86 | G3: =F3*B3 -> 581.36 | H3: =MetanHvedehalm -> 230 | I3: =H3*G3 -> 133712.8 | J3: ='Results -straw'!B21 -> -117.5372781 | K3: ='Results -straw'!B22+'Results -straw'!B23 -> 0 | L3: ='Results -straw'!B25 -> 0 | N3: -106 | O3: -122 | P3: -138 | Q3: =((J3+K3+L3+N3)*B3)/I3 -> -1.130117685 | R3: =((J3+K3+L3+O3)*B3)/I3 -> -1.211007473 | S3: =((J3+K3+L3+P3)*B3)/I3 -> -1.29189726
A4: Rape straw | B4: =RapeYield -> 650 | C4: ='Rape straw'!C6 -> 3.25 | D4: ='Rape straw'!C7 -> 0.89 | E4: 578.5 | F4: =RapeVS -> 0.816 | G4: 530.4 | H4: =MethaneRape -> 310 | I4: 164424 | J4: ='Results rape straw'!B9 -> -194.2307692 | K4: ='Results rape straw'!B10+'Results rape straw'!B11 -> -193.8146462 | L4: ='Results rape straw'!B13 -> 0 | N4: -148 | O4: -157 | P4: -166 | Q4: =((J4+K4+L4+N4)*B4)/I4 -> -2.119091617 | R4: =((J4+K4+L4+O4)*B4)/I4 -> -2.154670365 | S4: =((J4+K4+L4+P4)*B4)/I4 -> -2.190249112
A5: Meadow grass | B5: =MeaYield -> 66 | C5: =MeaYieldHa -> 5.5 | D5: =MeaDM -> 0.8 | E5: 52.8 | F5: =MeaVS -> 0.68 | G5: 44.88 | H5: =MetanEng -> 250 | I5: 11220 | J5: ='Results meadow grass'!B12 -> -375.8181818 | K5: ='Results meadow grass'!B13 -> 0 | L5: ='Results meadow grass'!B15 -> 0 | N5: -73 | O5: -103 | P5: -132 | Q5: =((J5+K5+L5+N5)*B5)/I5 -> -2.640106952 | R5: =((J5+K5+L5+O5)*B5)/I5 -> -2.81657754 | S5: =((J5+K5+L5+P5)*B5)/I5 -> -2.987165775
A6: Beets | B6: =BeetYield -> 4300 | C6: =BeetFieldYield -> 86 | D6: =BeetTS -> 0.223 | E6: 958.9 | F6: =BeetVS -> 0.2007 | G6: 863.01 | H6: =Normer!Y27 -> 380 | I6: 327943.8 | J6: ='Results beets'!B6+'Results beets'!B7 -> -124.755814 | K6: ='Results beets'!B8 -> -11.37703433 | L6: ='Results beets'!B10 -> -16.42919897 | N6: -33 | O6: -37 | P6: -41 | Q6: =((J6+K6+L6+N6)*B6)/I6 -> -2.43309007 | R6: =((J6+K6+L6+O6)*B6)/I6 -> -2.485538081 | S6: =((J6+K6+L6+P6)*B6)/I6 -> -2.537986091
A7: Maize | B7: =MaWetWeight -> 1180.8 | C7: =Maize!C7 -> 36.9 | D7: =DMMaize -> 0.34 | E7: 401.472 | F7: =Maize!C10 -> 0.323 | G7: 381.3984 | H7: =Normer!Y28 -> 360 | I7: 137303.424 | J7: ='Results Maize'!B12+'Results Maize'!B13 -> -208.751355 | K7: ='Results Maize'!B15 -> -194.4871617 | N7: -22 | O7: -45 | P7: -67 | Q7: =((J7+K7+L7+N7)*B7)/I7 -> -3.657021987 | R7: =((J7+K7+L7+O7)*B7)/I7 -> -3.854820405 | S7: =((J7+K7+L7+P7)*B7)/I7 -> -4.044018891
A8: Ley | B8: =Leyyield -> 1500 | C8: =Ley!C7 -> 30 | D8: =Ley!C9 -> 0.18 | E8: 270 | F8: =Ley!C12 -> 0.162 | G8: 243 | H8: =Normer!Y22 -> 320 | I8: 77760 | J8: ='Results Ley'!C10+'Results Ley'!C11 -> -411.2047619 | K8: ='Results Ley'!C13+'Results Ley'!C16 -> -103.9703725
N10: includes 5 km transport to farm
